Department,Entity,Date of Payment,Expense Type,Expense Area,Supplier,Transaction Number,Amount,
United Kingdom Atomic Energy Authority,United Kingdom Atomic Energy Authority,20/01/2016,MATERIALS & SPARES,FUSION,40-30 UK Ltd,1900061292," 1,980.00",
United Kingdom Atomic Energy Authority,United Kingdom Atomic Energy Authority,06/01/2016,MATERIALS & SPARES,FUSION,600 UK,5100330513,562.50,
United Kingdom Atomic Energy Authority,United Kingdom Atomic Energy Authority,11/01/2016,PLANT SPARES,FUSION,A D INSTALLATION LTD,5100330688,670.00,
United Kingdom Atomic Energy Authority,United Kingdom Atomic Energy Authority,11/01/2016,PLANT SPARES,FUSION,A W CLARKE,5100331136,189.25,
United Kingdom Atomic Energy Authority,United Kingdom Atomic Energy Authority,11/01/2016,PLANT SPARES,FUSION,A W CLARKE,5100331137,219.60,
United Kingdom Atomic Energy Authority,United Kingdom Atomic Energy Authority,18/01/2016,PLANT SPARES,FUSION,A W CLARKE,5100331485,256.50,
United Kingdom Atomic Energy Authority,United Kingdom Atomic Energy Authority,11/01/2016,CONSUMABLES,FUSION,ABLOY SECURITY,5100330863,421.05,
United Kingdom Atomic Energy Authority,United Kingdom Atomic Energy Authority,18/01/2016,IT EQUIPMENT NON CAPITAL,FUSION,ACME TECHNOLOGY,5100331458,"1,455.00",
United Kingdom Atomic Energy Authority,United Kingdom Atomic Energy Authority,20/01/2016,IT EQUIPMENT NON CAPITAL,FUSION,ACME TECHNOLOGY,5100331459,"2,115.00",
United Kingdom Atomic Energy Authority,United Kingdom Atomic Energy Authority,18/01/2016,MATERIALS & SPARES,FUSION,ACRONA ENGINEERING LTD,5100331412,203.68,
United Kingdom Atomic Energy Authority,United Kingdom Atomic Energy Authority,11/01/2016,MATERIALS & SPARES,FUSION,ACRONA ENGINEERING LTD,5100330697,"1,267.04",
United Kingdom Atomic Energy Authority,United Kingdom Atomic Energy Authority,18/01/2016,MATERIALS & SPARES,FUSION,ACRONA ENGINEERING LTD,5100331411,"1,283.04",
United Kingdom Atomic Energy Authority,United Kingdom Atomic Energy Authority,11/01/2016,MATERIALS & SPARES,FUSION,ACRONA ENGINEERING LTD,5100331067,"2,031.79",
United Kingdom Atomic Energy Authority,United Kingdom Atomic Energy Authority,13/01/2016,MATERIALS & SPARES,FUSION,ADMITECH KFT,5100331079,"1,435.30",
United Kingdom Atomic Energy Authority,United Kingdom Atomic Energy Authority,13/01/2016,MATERIALS & SPARES,FUSION,ADMITECH KFT,5100331405,"2,893.43",
United Kingdom Atomic Energy Authority,United Kingdom Atomic Energy Authority,11/01/2016,MATERIALS & SPARES,FUSION,AGILENT TECHNOLOGIES LDA UL LTD,5100330939,"1,767.40",
United Kingdom Atomic Energy Authority,United Kingdom Atomic Energy Authority,13/01/2016,MATERIALS & SPARES,FUSION,AIHA - PROFICIENCY TESTING PROGRAMMES,5100331404,"3,644.36",
United Kingdom Atomic Energy Authority,United Kingdom Atomic Energy Authority,18/01/2016,MATERIALS & SPARES,FUSION,ANIXTER (UK) LTD,5100331185,-627.16,
United Kingdom Atomic Energy Authority,United Kingdom Atomic Energy Authority,18/01/2016,MATERIALS & SPARES,FUSION,ANIXTER (UK) LTD,5100330988,133.00,
United Kingdom Atomic Energy Authority,United Kingdom Atomic Energy Authority,06/01/2016,MATERIALS & SPARES,FUSION,ANIXTER (UK) LTD,5100330862,225.00,
United Kingdom Atomic Energy Authority,United Kingdom Atomic Energy Authority,18/01/2016,MATERIALS & SPARES,FUSION,ANIXTER (UK) LTD,5100331499,"1,312.50",
United Kingdom Atomic Energy Authority,United Kingdom Atomic Energy Authority,11/01/2016,MATERIALS & SPARES,FUSION,ANIXTER (UK) LTD,5100331073,"2,355.04",
United Kingdom Atomic Energy Authority,United Kingdom Atomic Energy Authority,11/01/2016,OPERATING LEASE,FUSION,ANNODATA BUSINESS COMMUNICATIONS,5100330753,183.24,
United Kingdom Atomic Energy Authority,United Kingdom Atomic Energy Authority,06/01/2016,OPERATING LEASE,FUSION,ANNODATA BUSINESS COMMUNICATIONS,5100330752,275.03,
United Kingdom Atomic Energy Authority,United Kingdom Atomic Energy Authority,06/01/2016,OPERATING LEASE,FUSION,ANNODATA BUSINESS COMMUNICATIONS,5100326818,"1,184.45",
United Kingdom Atomic Energy Authority,United Kingdom Atomic Energy Authority,11/01/2016,OPERATING LEASE,FUSION,ANNODATA BUSINESS COMMUNICATIONS,5100331139,"9,210.09",
United Kingdom Atomic Energy Authority,United Kingdom Atomic Energy Authority,06/01/2016,OPERATING LEASE,FUSION,ANNODATA BUSINESS COMMUNICATIONS,5100329846,"34,855.59",
United Kingdom Atomic Energy Authority,United Kingdom Atomic Energy Authority,11/01/2016,PERSONAL PROTECTIVE EQUIPMENT,FUSION,ARCO LTD,5100330744,-59.99,
United Kingdom Atomic Energy Authority,United Kingdom Atomic Energy Authority,11/01/2016,PERSONAL PROTECTIVE EQUIPMENT,FUSION,ARCO LTD,5100330786,-50.39,
United Kingdom Atomic Energy Authority,United Kingdom Atomic Energy Authority,11/01/2016,PERSONAL PROTECTIVE EQUIPMENT,FUSION,ARCO LTD,5100330946,4.46,
United Kingdom Atomic Energy Authority,United Kingdom Atomic Energy Authority,18/01/2016,PERSONAL PROTECTIVE EQUIPMENT,FUSION,ARCO LTD,5100331336,52.05,
United Kingdom Atomic Energy Authority,United Kingdom Atomic Energy Authority,11/01/2016,PERSONAL PROTECTIVE EQUIPMENT,SUPPORT SERVICES,ARCO LTD,5100330997,52.36,
United Kingdom Atomic Energy Authority,United Kingdom Atomic Energy Authority,18/01/2016,PERSONAL PROTECTIVE EQUIPMENT,FUSION,ARCO LTD,5100331400,53.48,
United Kingdom Atomic Energy Authority,United Kingdom Atomic Energy Authority,18/01/2016,PERSONAL PROTECTIVE EQUIPMENT,FUSION,ARCO LTD,5100331449,53.76,
United Kingdom Atomic Energy Authority,United Kingdom Atomic Energy Authority,18/01/2016,PERSONAL PROTECTIVE EQUIPMENT,FUSION,ARCO LTD,5100330955,58.39,
United Kingdom Atomic Energy Authority,United Kingdom Atomic Energy Authority,18/01/2016,PERSONAL PROTECTIVE EQUIPMENT,FUSION,ARCO LTD,5100330732,80.18,
United Kingdom Atomic Energy Authority,United Kingdom Atomic Energy Authority,13/01/2016,PERSONAL PROTECTIVE EQUIPMENT,PROPERTY,ARCO LTD,5100330949,105.56,
United Kingdom Atomic Energy Authority,United Kingdom Atomic Energy Authority,18/01/2016,PERSONAL PROTECTIVE EQUIPMENT,FUSION,ARCO LTD,5100331448,115.16,
United Kingdom Atomic Energy Authority,United Kingdom Atomic Energy Authority,11/01/2016,PERSONAL PROTECTIVE EQUIPMENT,FUSION,ARCO LTD,5100330987,143.96,
United Kingdom Atomic Energy Authority,United Kingdom Atomic Energy Authority,18/01/2016,PERSONAL PROTECTIVE EQUIPMENT,FUSION,ARCO LTD,5100331337,182.00,
United Kingdom Atomic Energy Authority,United Kingdom Atomic Energy Authority,11/01/2016,PERSONAL PROTECTIVE EQUIPMENT,FUSION,ARCO LTD,5100330961,191.98,
United Kingdom Atomic Energy Authority,United Kingdom Atomic Energy Authority,11/01/2016,PERSONAL PROTECTIVE EQUIPMENT,FUSION,ARCO LTD,5100330950,289.20,
United Kingdom Atomic Energy Authority,United Kingdom Atomic Energy Authority,18/01/2016,PERSONAL PROTECTIVE EQUIPMENT,FUSION,ARCO LTD,5100331447,387.80,
United Kingdom Atomic Energy Authority,United Kingdom Atomic Energy Authority,11/01/2016,PERSONAL PROTECTIVE EQUIPMENT,FUSION,ARCO LTD,5100330686,447.00,
United Kingdom Atomic Energy Authority,United Kingdom Atomic Energy Authority,11/01/2016,PERSONAL PROTECTIVE EQUIPMENT,FUSION,ARCO LTD,5100330947,447.00,
United Kingdom Atomic Energy Authority,United Kingdom Atomic Energy Authority,18/01/2016,PERSONAL PROTECTIVE EQUIPMENT,FUSION,ARCO LTD,5100331477,529.00,
United Kingdom Atomic Energy Authority,United Kingdom Atomic Energy Authority,18/01/2016,PERSONAL PROTECTIVE EQUIPMENT,FUSION,ARCO LTD,5100331335,548.64,
United Kingdom Atomic Energy Authority,United Kingdom Atomic Energy Authority,18/01/2016,PERSONAL PROTECTIVE EQUIPMENT,FUSION,ARCO LTD,5100331475,586.00,
United Kingdom Atomic Energy Authority,United Kingdom Atomic Energy Authority,18/01/2016,PLANT & EQUIPMENT,FUSION,ARVAL UK LIMITED,5100331341,239.11,
United Kingdom Atomic Energy Authority,United Kingdom Atomic Energy Authority,06/01/2016,PLANT SPARES,FUSION,AURIGA EUROPE PLC,5100330847,67.60,
United Kingdom Atomic Energy Authority,United Kingdom Atomic Energy Authority,06/01/2016,PLANT SPARES,FUSION,AURIGA EUROPE PLC,5100330848,145.09,
United Kingdom Atomic Energy Authority,United Kingdom Atomic Energy Authority,11/01/2016,CATERING,PROPERTY,AVENANCE PLC,5100331213,101.00,
United Kingdom Atomic Energy Authority,United Kingdom Atomic Energy Authority,11/01/2016,CATERING,PROPERTY,AVENANCE PLC,5100330982,249.32,
United Kingdom Atomic Energy Authority,United Kingdom Atomic Energy Authority,11/01/2016,MATERIALS & SPARES,FUSION,B&M Engineering Ltd,5100331133,100.00,
United Kingdom Atomic Energy Authority,United Kingdom Atomic Energy Authority,11/01/2016,MATERIALS & SPARES,FUSION,B&M Engineering Ltd,5100331152,105.00,
United Kingdom Atomic Energy Authority,United Kingdom Atomic Energy Authority,11/01/2016,MATERIALS & SPARES,FUSION,B&M Engineering Ltd,5100331155,105.00,
United Kingdom Atomic Energy Authority,United Kingdom Atomic Energy Authority,11/01/2016,MATERIALS & SPARES,FUSION,B&M Engineering Ltd,5100331144,120.00,
United Kingdom Atomic Energy Authority,United Kingdom Atomic Energy Authority,11/01/2016,MATERIALS & SPARES,FUSION,B&M Engineering Ltd,5100331148,140.00,
United Kingdom Atomic Energy Authority,United Kingdom Atomic Energy Authority,11/01/2016,MATERIALS & SPARES,FUSION,B&M Engineering Ltd,5100331145,163.00,
United Kingdom Atomic Energy Authority,United Kingdom Atomic Energy Authority,13/01/2016,MATERIALS & SPARES,PROPERTY,B&M Engineering Ltd,5100331143,190.00,
United Kingdom Atomic Energy Authority,United Kingdom Atomic Energy Authority,11/01/2016,MATERIALS & SPARES,FUSION,B&M Engineering Ltd,5100331140,220.00,
United Kingdom Atomic Energy Authority,United Kingdom Atomic Energy Authority,11/01/2016,MATERIALS & SPARES,FUSION,B&M Engineering Ltd,5100331153,231.00,
United Kingdom Atomic Energy Authority,United Kingdom Atomic Energy Authority,11/01/2016,MATERIALS & SPARES,FUSION,B&M Engineering Ltd,5100331142,300.00,
United Kingdom Atomic Energy Authority,United Kingdom Atomic Energy Authority,11/01/2016,MATERIALS & SPARES,FUSION,B&M Engineering Ltd,5100331141,520.00,
United Kingdom Atomic Energy Authority,United Kingdom Atomic Energy Authority,11/01/2016,MATERIALS & SPARES,FUSION,B&M Engineering Ltd,5100331156,560.00,
United Kingdom Atomic Energy Authority,United Kingdom Atomic Energy Authority,11/01/2016,MATERIALS & SPARES,FUSION,B&M Engineering Ltd,5100331150,"1,550.00",
United Kingdom Atomic Energy Authority,United Kingdom Atomic Energy Authority,11/01/2016,PROFESSIONAL SERVICES,PROPERTY,BARCELLOS LTD,5100331087,400.00,
United Kingdom Atomic Energy Authority,United Kingdom Atomic Energy Authority,06/01/2016,PLANT SPARES,FUSION,BATT CABLES PLC,5100330856,100.26,
United Kingdom Atomic Energy Authority,United Kingdom Atomic Energy Authority,06/01/2016,PLANT SPARES,FUSION,BATT CABLES PLC,5100330857,255.00,
United Kingdom Atomic Energy Authority,United Kingdom Atomic Energy Authority,08/01/2016,SUBSISTENCE,FUSION,Battelle Energy Alliance LLC,1900061277, 472.63,
United Kingdom Atomic Energy Authority,United Kingdom Atomic Energy Authority,20/01/2016,PROFESSIONAL SERVICES,SUPPORT SERVICES,BDO LLP,5100331581,"1,916.00",
United Kingdom Atomic Energy Authority,United Kingdom Atomic Energy Authority,18/01/2016,PLANT SPARES,FUSION,Beacon Group International Ltd,5100331491,105.30,
United Kingdom Atomic Energy Authority,United Kingdom Atomic Energy Authority,18/01/2016,LEGAL FEES,SUPPORT SERVICES,BIGGART BAILLIE,5100331534,535.00,
United Kingdom Atomic Energy Authority,United Kingdom Atomic Energy Authority,13/01/2016,PLANT & EQUIPMENT,FUSION,Blakley Electrics Limited,1900061285," 3,134.52",
United Kingdom Atomic Energy Authority,United Kingdom Atomic Energy Authority,18/01/2016,LAUNDRY,FUSION,BLUEBELL LAUNDRY,5100331371,76.39,
United Kingdom Atomic Energy Authority,United Kingdom Atomic Energy Authority,06/01/2016,LAUNDRY,FUSION,BLUEBELL LAUNDRY,5100330871,92.07,
United Kingdom Atomic Energy Authority,United Kingdom Atomic Energy Authority,18/01/2016,PROFESSIONAL SERVICES,FUSION,BNS NUCLEAR SERVICES,5100331462,"28,076.59",
United Kingdom Atomic Energy Authority,United Kingdom Atomic Energy Authority,18/01/2016,PROFESSIONAL SERVICES,FUSION,BNS NUCLEAR SERVICES,5100331408,"50,006.64",
United Kingdom Atomic Energy Authority,United Kingdom Atomic Energy Authority,12/01/2016,GASES,FUSION,BOC LTD,5100331358,-188.73,
United Kingdom Atomic Energy Authority,United Kingdom Atomic Energy Authority,18/01/2016,GASES,FUSION,BOC LTD,5100331457,3.42,
United Kingdom Atomic Energy Authority,United Kingdom Atomic Energy Authority,06/01/2016,GASES,FUSION,BOC LTD,5100330720,9.98,
United Kingdom Atomic Energy Authority,United Kingdom Atomic Energy Authority,11/01/2016,GASES,FUSION,BOC LTD,5100331020,36.82,
United Kingdom Atomic Energy Authority,United Kingdom Atomic Energy Authority,18/01/2016,GASES,FUSION,BOC LTD,5100331297,37.27,
United Kingdom Atomic Energy Authority,United Kingdom Atomic Energy Authority,18/01/2016,GASES,FUSION,BOC LTD,5100330890,41.10,
United Kingdom Atomic Energy Authority,United Kingdom Atomic Energy Authority,18/01/2016,GASES,FUSION,BOC LTD,5100331427,41.10,
United Kingdom Atomic Energy Authority,United Kingdom Atomic Energy Authority,18/01/2016,GASES,FUSION,BOC LTD,5100331299,48.10,
United Kingdom Atomic Energy Authority,United Kingdom Atomic Energy Authority,20/01/2016,GASES,FUSION,BOC LTD,5100331574,60.10,
United Kingdom Atomic Energy Authority,United Kingdom Atomic Energy Authority,18/01/2016,GASES,FUSION,BOC LTD,5100331298,62.53,
United Kingdom Atomic Energy Authority,United Kingdom Atomic Energy Authority,13/01/2016,GASES,FUSION,BOC LTD,5100330889,68.28,
United Kingdom Atomic Energy Authority,United Kingdom Atomic Energy Authority,06/01/2016,GASES,FUSION,BOC LTD,5100330342,89.22,
United Kingdom Atomic Energy Authority,United Kingdom Atomic Energy Authority,18/01/2016,GASES,FUSION,BOC LTD,5100331301,155.09,
United Kingdom Atomic Energy Authority,United Kingdom Atomic Energy Authority,18/01/2016,GASES,FUSION,BOC LTD,5100331362,188.73,
United Kingdom Atomic Energy Authority,United Kingdom Atomic Energy Authority,12/01/2016,GASES,FUSION,BOC LTD,5100331308,188.73,
United Kingdom Atomic Energy Authority,United Kingdom Atomic Energy Authority,11/01/2016,GASES,FUSION,BOC LTD,5100330891,215.81,
United Kingdom Atomic Energy Authority,United Kingdom Atomic Energy Authority,18/01/2016,GASES,FUSION,BOC LTD,5100331306,223.58,
United Kingdom Atomic Energy Authority,United Kingdom Atomic Energy Authority,18/01/2016,GASES,FUSION,BOC LTD,5100331309,229.67,
United Kingdom Atomic Energy Authority,United Kingdom Atomic Energy Authority,13/01/2016,GASES,FUSION,BOC LTD,5100330886,236.07,
United Kingdom Atomic Energy Authority,United Kingdom Atomic Energy Authority,18/01/2016,GASES,FUSION,BOC LTD,5100331443,261.75,
United Kingdom Atomic Energy Authority,United Kingdom Atomic Energy Authority,13/01/2016,GASES,FUSION,BOC LTD,5100330888,270.27,
United Kingdom Atomic Energy Authority,United Kingdom Atomic Energy Authority,11/01/2016,GASES,FUSION,BOC LTD,5100330892,276.40,
United Kingdom Atomic Energy Authority,United Kingdom Atomic Energy Authority,13/01/2016,GASES,FUSION,BOC LTD,5100331016,278.50,
United Kingdom Atomic Energy Authority,United Kingdom Atomic Energy Authority,18/01/2016,GASES,FUSION,BOC LTD,5100331300,337.78,
United Kingdom Atomic Energy Authority,United Kingdom Atomic Energy Authority,18/01/2016,GASES,FUSION,BOC LTD,5100331304,418.30,
United Kingdom Atomic Energy Authority,United Kingdom Atomic Energy Authority,06/01/2016,GASES,FUSION,BOC LTD,5100330712,"1,635.15",
United Kingdom Atomic Energy Authority,United Kingdom Atomic Energy Authority,18/01/2016,GASES,FUSION,BOC LTD,5100331296,"31,487.81",
United Kingdom Atomic Energy Authority,United Kingdom Atomic Energy Authority,11/01/2016,PROFESSIONAL SERVICES,FUSION,BODYCOTE HEAT LTD,5100331021,"1,531.93",
United Kingdom Atomic Energy Authority,United Kingdom Atomic Energy Authority,13/01/2016,UTILITIES/ELECTRICITY,PROPERTY,BRITISH GAS BUSINESS,5100323630,"-5,128.16",
United Kingdom Atomic Energy Authority,United Kingdom Atomic Energy Authority,13/01/2016,UTILITIES/ELECTRICITY,PROPERTY,BRITISH GAS BUSINESS,5100323627,"-4,468.62",
United Kingdom Atomic Energy Authority,United Kingdom Atomic Energy Authority,13/01/2016,UTILITIES/ELECTRICITY,PROPERTY,BRITISH GAS BUSINESS,5100323624,"-3,674.20",
United Kingdom Atomic Energy Authority,United Kingdom Atomic Energy Authority,13/01/2016,UTILITIES/ELECTRICITY,PROPERTY,BRITISH GAS BUSINESS,5100323626,"-2,892.90",
United Kingdom Atomic Energy Authority,United Kingdom Atomic Energy Authority,13/01/2016,UTILITIES/ELECTRICITY,PROPERTY,BRITISH GAS BUSINESS,5100323623,"-2,661.14",
United Kingdom Atomic Energy Authority,United Kingdom Atomic Energy Authority,13/01/2016,UTILITIES/ELECTRICITY,PROPERTY,BRITISH GAS BUSINESS,5100327045,"-2,290.87",
United Kingdom Atomic Energy Authority,United Kingdom Atomic Energy Authority,13/01/2016,UTILITIES/ELECTRICITY,PROPERTY,BRITISH GAS BUSINESS,5100324872,-87.98,
United Kingdom Atomic Energy Authority,United Kingdom Atomic Energy Authority,13/01/2016,UTILITIES/ELECTRICITY,PROPERTY,BRITISH GAS BUSINESS,5100326827,18.26,
United Kingdom Atomic Energy Authority,United Kingdom Atomic Energy Authority,13/01/2016,UTILITIES/ELECTRICITY,PROPERTY,BRITISH GAS BUSINESS,5100324435,19.67,
United Kingdom Atomic Energy Authority,United Kingdom Atomic Energy Authority,13/01/2016,UTILITIES/ELECTRICITY,PROPERTY,BRITISH GAS BUSINESS,5100325743,19.67,
United Kingdom Atomic Energy Authority,United Kingdom Atomic Energy Authority,13/01/2016,UTILITIES/ELECTRICITY,PROPERTY,BRITISH GAS BUSINESS,5100323198,32.61,
United Kingdom Atomic Energy Authority,United Kingdom Atomic Energy Authority,13/01/2016,UTILITIES/ELECTRICITY,PROPERTY,BRITISH GAS BUSINESS,5100321740,33.30,
United Kingdom Atomic Energy Authority,United Kingdom Atomic Energy Authority,13/01/2016,UTILITIES/ELECTRICITY,PROPERTY,BRITISH GAS BUSINESS,5100323628,42.01,
United Kingdom Atomic Energy Authority,United Kingdom Atomic Energy Authority,13/01/2016,UTILITIES/ELECTRICITY,PROPERTY,BRITISH GAS BUSINESS,5100328893,49.80,
United Kingdom Atomic Energy Authority,United Kingdom Atomic Energy Authority,13/01/2016,UTILITIES/ELECTRICITY,PROPERTY,BRITISH GAS BUSINESS,5100324438,51.48,
United Kingdom Atomic Energy Authority,United Kingdom Atomic Energy Authority,13/01/2016,UTILITIES/ELECTRICITY,PROPERTY,BRITISH GAS BUSINESS,5100325746,51.55,
United Kingdom Atomic Energy Authority,United Kingdom Atomic Energy Authority,13/01/2016,UTILITIES/ELECTRICITY,PROPERTY,BRITISH GAS BUSINESS,5100330951,52.79,
United Kingdom Atomic Energy Authority,United Kingdom Atomic Energy Authority,13/01/2016,UTILITIES/ELECTRICITY,PROPERTY,BRITISH GAS BUSINESS,5100326832,53.58,
United Kingdom Atomic Energy Authority,United Kingdom Atomic Energy Authority,13/01/2016,UTILITIES/ELECTRICITY,PROPERTY,BRITISH GAS BUSINESS,5100330954,54.88,
United Kingdom Atomic Energy Authority,United Kingdom Atomic Energy Authority,13/01/2016,UTILITIES/ELECTRICITY,PROPERTY,BRITISH GAS BUSINESS,5100328171,56.20,
United Kingdom Atomic Energy Authority,United Kingdom Atomic Energy Authority,13/01/2016,UTILITIES/ELECTRICITY,PROPERTY,BRITISH GAS BUSINESS,5100327954,63.85,
United Kingdom Atomic Energy Authority,United Kingdom Atomic Energy Authority,13/01/2016,UTILITIES/ELECTRICITY,PROPERTY,BRITISH GAS BUSINESS,5100326831,72.77,
United Kingdom Atomic Energy Authority,United Kingdom Atomic Energy Authority,13/01/2016,UTILITIES/ELECTRICITY,PROPERTY,BRITISH GAS BUSINESS,5100325745,73.41,
United Kingdom Atomic Energy Authority,United Kingdom Atomic Energy Authority,13/01/2016,UTILITIES/ELECTRICITY,PROPERTY,BRITISH GAS BUSINESS,5100330957,74.57,
United Kingdom Atomic Energy Authority,United Kingdom Atomic Energy Authority,13/01/2016,UTILITIES/ELECTRICITY,PROPERTY,BRITISH GAS BUSINESS,5100330956,76.70,
United Kingdom Atomic Energy Authority,United Kingdom Atomic Energy Authority,13/01/2016,UTILITIES/ELECTRICITY,PROPERTY,BRITISH GAS BUSINESS,5100325747,77.29,
United Kingdom Atomic Energy Authority,United Kingdom Atomic Energy Authority,13/01/2016,UTILITIES/ELECTRICITY,PROPERTY,BRITISH GAS BUSINESS,5100328897,78.90,
United Kingdom Atomic Energy Authority,United Kingdom Atomic Energy Authority,13/01/2016,UTILITIES/ELECTRICITY,PROPERTY,BRITISH GAS BUSINESS,5100324439,81.98,
United Kingdom Atomic Energy Authority,United Kingdom Atomic Energy Authority,13/01/2016,UTILITIES/ELECTRICITY,PROPERTY,BRITISH GAS BUSINESS,5100328172,83.64,
United Kingdom Atomic Energy Authority,United Kingdom Atomic Energy Authority,13/01/2016,UTILITIES/ELECTRICITY,PROPERTY,BRITISH GAS BUSINESS,5100326834,83.73,
United Kingdom Atomic Energy Authority,United Kingdom Atomic Energy Authority,13/01/2016,UTILITIES/ELECTRICITY,PROPERTY,BRITISH GAS BUSINESS,5100323551,84.43,
United Kingdom Atomic Energy Authority,United Kingdom Atomic Energy Authority,13/01/2016,UTILITIES/ELECTRICITY,PROPERTY,BRITISH GAS BUSINESS,5100324437,87.98,
United Kingdom Atomic Energy Authority,United Kingdom Atomic Energy Authority,13/01/2016,UTILITIES/ELECTRICITY,PROPERTY,BRITISH GAS BUSINESS,5100324873,87.98,
United Kingdom Atomic Energy Authority,United Kingdom Atomic Energy Authority,13/01/2016,UTILITIES/ELECTRICITY,PROPERTY,BRITISH GAS BUSINESS,5100328169,102.41,
United Kingdom Atomic Energy Authority,United Kingdom Atomic Energy Authority,13/01/2016,UTILITIES/ELECTRICITY,PROPERTY,BRITISH GAS BUSINESS,5100323556,106.82,
United Kingdom Atomic Energy Authority,United Kingdom Atomic Energy Authority,13/01/2016,UTILITIES/ELECTRICITY,PROPERTY,BRITISH GAS BUSINESS,5100327953,119.85,
United Kingdom Atomic Energy Authority,United Kingdom Atomic Energy Authority,13/01/2016,UTILITIES/ELECTRICITY,PROPERTY,BRITISH GAS BUSINESS,5100330948,156.57,
United Kingdom Atomic Energy Authority,United Kingdom Atomic Energy Authority,13/01/2016,UTILITIES/ELECTRICITY,PROPERTY,BRITISH GAS BUSINESS,5100328891,180.18,
United Kingdom Atomic Energy Authority,United Kingdom Atomic Energy Authority,13/01/2016,UTILITIES/ELECTRICITY,PROPERTY,BRITISH GAS BUSINESS,5100330945,183.27,
United Kingdom Atomic Energy Authority,United Kingdom Atomic Energy Authority,13/01/2016,UTILITIES/ELECTRICITY,PROPERTY,BRITISH GAS BUSINESS,5100325744,195.48,
United Kingdom Atomic Energy Authority,United Kingdom Atomic Energy Authority,13/01/2016,UTILITIES/ELECTRICITY,PROPERTY,BRITISH GAS BUSINESS,5100325749,245.05,
United Kingdom Atomic Energy Authority,United Kingdom Atomic Energy Authority,13/01/2016,UTILITIES/ELECTRICITY,PROPERTY,BRITISH GAS BUSINESS,5100325751,255.50,
United Kingdom Atomic Energy Authority,United Kingdom Atomic Energy Authority,13/01/2016,UTILITIES/ELECTRICITY,PROPERTY,BRITISH GAS BUSINESS,5100324436,265.62,
United Kingdom Atomic Energy Authority,United Kingdom Atomic Energy Authority,13/01/2016,UTILITIES/ELECTRICITY,PROPERTY,BRITISH GAS BUSINESS,5100326829,279.00,
United Kingdom Atomic Energy Authority,United Kingdom Atomic Energy Authority,13/01/2016,UTILITIES/ELECTRICITY,PROPERTY,BRITISH GAS BUSINESS,5100326838,289.15,
United Kingdom Atomic Energy Authority,United Kingdom Atomic Energy Authority,13/01/2016,UTILITIES/ELECTRICITY,PROPERTY,BRITISH GAS BUSINESS,5100326836,312.31,
United Kingdom Atomic Energy Authority,United Kingdom Atomic Energy Authority,13/01/2016,UTILITIES/ELECTRICITY,PROPERTY,BRITISH GAS BUSINESS,5100328168,331.37,
United Kingdom Atomic Energy Authority,United Kingdom Atomic Energy Authority,13/01/2016,UTILITIES/ELECTRICITY,PROPERTY,BRITISH GAS BUSINESS,5100324441,341.53,
United Kingdom Atomic Energy Authority,United Kingdom Atomic Energy Authority,13/01/2016,UTILITIES/ELECTRICITY,PROPERTY,BRITISH GAS BUSINESS,5100324443,345.23,
United Kingdom Atomic Energy Authority,United Kingdom Atomic Energy Authority,13/01/2016,UTILITIES/ELECTRICITY,PROPERTY,BRITISH GAS BUSINESS,5100327952,353.93,
United Kingdom Atomic Energy Authority,United Kingdom Atomic Energy Authority,13/01/2016,UTILITIES/ELECTRICITY,PROPERTY,BRITISH GAS BUSINESS,5100328899,366.19,
United Kingdom Atomic Energy Authority,United Kingdom Atomic Energy Authority,13/01/2016,UTILITIES/ELECTRICITY,PROPERTY,BRITISH GAS BUSINESS,5100330959,416.70,
United Kingdom Atomic Energy Authority,United Kingdom Atomic Energy Authority,13/01/2016,UTILITIES/ELECTRICITY,PROPERTY,BRITISH GAS BUSINESS,5100321749,420.05,
United Kingdom Atomic Energy Authority,United Kingdom Atomic Energy Authority,13/01/2016,UTILITIES/ELECTRICITY,PROPERTY,BRITISH GAS BUSINESS,5100330958,444.74,
United Kingdom Atomic Energy Authority,United Kingdom Atomic Energy Authority,13/01/2016,UTILITIES/ELECTRICITY,PROPERTY,BRITISH GAS BUSINESS,5100328175,459.02,
United Kingdom Atomic Energy Authority,United Kingdom Atomic Energy Authority,13/01/2016,UTILITIES/ELECTRICITY,PROPERTY,BRITISH GAS BUSINESS,5100328178,459.06,
United Kingdom Atomic Energy Authority,United Kingdom Atomic Energy Authority,13/01/2016,UTILITIES/ELECTRICITY,PROPERTY,BRITISH GAS BUSINESS,5100326835,468.00,
United Kingdom Atomic Energy Authority,United Kingdom Atomic Energy Authority,13/01/2016,UTILITIES/ELECTRICITY,PROPERTY,BRITISH GAS BUSINESS,5100323552,481.82,
United Kingdom Atomic Energy Authority,United Kingdom Atomic Energy Authority,13/01/2016,UTILITIES/ELECTRICITY,PROPERTY,BRITISH GAS BUSINESS,5100324440,522.88,
United Kingdom Atomic Energy Authority,United Kingdom Atomic Energy Authority,13/01/2016,UTILITIES/ELECTRICITY,PROPERTY,BRITISH GAS BUSINESS,5100325748,529.88,
United Kingdom Atomic Energy Authority,United Kingdom Atomic Energy Authority,13/01/2016,UTILITIES/ELECTRICITY,PROPERTY,BRITISH GAS BUSINESS,5100330966,549.33,
United Kingdom Atomic Energy Authority,United Kingdom Atomic Energy Authority,13/01/2016,UTILITIES/ELECTRICITY,PROPERTY,BRITISH GAS BUSINESS,5100323561,551.90,
United Kingdom Atomic Energy Authority,United Kingdom Atomic Energy Authority,13/01/2016,UTILITIES/ELECTRICITY,PROPERTY,BRITISH GAS BUSINESS,5100328890,584.80,
United Kingdom Atomic Energy Authority,United Kingdom Atomic Energy Authority,13/01/2016,UTILITIES/ELECTRICITY,PROPERTY,BRITISH GAS BUSINESS,5100328902,588.68,
United Kingdom Atomic Energy Authority,United Kingdom Atomic Energy Authority,13/01/2016,UTILITIES/ELECTRICITY,PROPERTY,BRITISH GAS BUSINESS,5100330964,592.23,
United Kingdom Atomic Energy Authority,United Kingdom Atomic Energy Authority,13/01/2016,UTILITIES/ELECTRICITY,PROPERTY,BRITISH GAS BUSINESS,5100323204,618.19,
United Kingdom Atomic Energy Authority,United Kingdom Atomic Energy Authority,13/01/2016,UTILITIES/ELECTRICITY,PROPERTY,BRITISH GAS BUSINESS,5100321746,644.41,
United Kingdom Atomic Energy Authority,United Kingdom Atomic Energy Authority,13/01/2016,UTILITIES/ELECTRICITY,PROPERTY,BRITISH GAS BUSINESS,5100326837,714.07,
United Kingdom Atomic Energy Authority,United Kingdom Atomic Energy Authority,13/01/2016,UTILITIES/ELECTRICITY,PROPERTY,BRITISH GAS BUSINESS,5100324442,758.62,
United Kingdom Atomic Energy Authority,United Kingdom Atomic Energy Authority,13/01/2016,UTILITIES/ELECTRICITY,PROPERTY,BRITISH GAS BUSINESS,5100325750,767.96,
United Kingdom Atomic Energy Authority,United Kingdom Atomic Energy Authority,13/01/2016,UTILITIES/ELECTRICITY,PROPERTY,BRITISH GAS BUSINESS,5100323207,774.09,
United Kingdom Atomic Energy Authority,United Kingdom Atomic Energy Authority,13/01/2016,UTILITIES/ELECTRICITY,PROPERTY,BRITISH GAS BUSINESS,5100328901,880.55,
United Kingdom Atomic Energy Authority,United Kingdom Atomic Energy Authority,13/01/2016,UTILITIES/ELECTRICITY,PROPERTY,BRITISH GAS BUSINESS,5100330943,905.82,
United Kingdom Atomic Energy Authority,United Kingdom Atomic Energy Authority,13/01/2016,UTILITIES/ELECTRICITY,PROPERTY,BRITISH GAS BUSINESS,5100330960,"1,065.10",
United Kingdom Atomic Energy Authority,United Kingdom Atomic Energy Authority,13/01/2016,UTILITIES/ELECTRICITY,PROPERTY,BRITISH GAS BUSINESS,5100330963,"1,217.06",
United Kingdom Atomic Energy Authority,United Kingdom Atomic Energy Authority,11/01/2016,PROFESSIONAL SERVICES,PROPERTY,BSP CONSULTING,5100330895,"1,540.00",
United Kingdom Atomic Energy Authority,United Kingdom Atomic Energy Authority,06/01/2016,MATERIALS & SPARES,FUSION,BUDGET FORKTRUCKS LTD,5100330929,312.00,
United Kingdom Atomic Energy Authority,United Kingdom Atomic Energy Authority,11/01/2016,MATERIALS & SPARES,FUSION,BUDGET FORKTRUCKS LTD,5100330923,342.33,
United Kingdom Atomic Energy Authority,United Kingdom Atomic Energy Authority,11/01/2016,MATERIALS & SPARES,FUSION,BUDGET FORKTRUCKS LTD,5100330921,390.00,
United Kingdom Atomic Energy Authority,United Kingdom Atomic Energy Authority,06/01/2016,MATERIALS & SPARES,FUSION,BUDGET FORKTRUCKS LTD,5100330925,390.00,
United Kingdom Atomic Energy Authority,United Kingdom Atomic Energy Authority,06/01/2016,MATERIALS & SPARES,FUSION,BUDGET FORKTRUCKS LTD,5100330931,390.00,
United Kingdom Atomic Energy Authority,United Kingdom Atomic Energy Authority,06/01/2016,MATERIALS & SPARES,FUSION,BUDGET FORKTRUCKS LTD,5100330927,793.00,
United Kingdom Atomic Energy Authority,United Kingdom Atomic Energy Authority,06/01/2016,CONSULTANCY,SUPPORT SERVICES,Burges Salmon,5100330849,"1,500.00",
United Kingdom Atomic Energy Authority,United Kingdom Atomic Energy Authority,20/01/2016,CATERING SUPPLIES,SUPPORT SERVICES,BWT UK LTD,5100331312,"1,319.58",
United Kingdom Atomic Energy Authority,United Kingdom Atomic Energy Authority,13/01/2016,MATERIALS & SPARES,FUSION,CANBERRA UK LTD,5100330628,"156,555.00",
United Kingdom Atomic Energy Authority,United Kingdom Atomic Energy Authority,11/01/2016,HEALTH PHYSICS,SUPPORT SERVICES,Capital business Services Ltd,5100331081,792.68,
United Kingdom Atomic Energy Authority,United Kingdom Atomic Energy Authority,06/01/2016,CONSUMABLES,FUSION,CARILLON INDUSTRIAL SERVICES LTD,5100330859,48.76,
United Kingdom Atomic Energy Authority,United Kingdom Atomic Energy Authority,18/01/2016,CONSUMABLES,FUSION,CARILLON INDUSTRIAL SERVICES LTD,5100331468,61.80,
United Kingdom Atomic Energy Authority,United Kingdom Atomic Energy Authority,18/01/2016,CONSUMABLES,FUSION,CARILLON INDUSTRIAL SERVICES LTD,5100331470,61.80,
United Kingdom Atomic Energy Authority,United Kingdom Atomic Energy Authority,18/01/2016,CONSUMABLES,FUSION,CARILLON INDUSTRIAL SERVICES LTD,5100331466,66.60,
United Kingdom Atomic Energy Authority,United Kingdom Atomic Energy Authority,18/01/2016,CONSUMABLES,FUSION,CARILLON INDUSTRIAL SERVICES LTD,5100331465,112.33,
United Kingdom Atomic Energy Authority,United Kingdom Atomic Energy Authority,20/01/2016,PROFESSIONAL SERVICES,PROPERTY,Carter Jonas LLP,5100331599,"5,000.00",
United Kingdom Atomic Energy Authority,United Kingdom Atomic Energy Authority,11/01/2016,LEGAL FEES,SUPPORT SERVICES,CATER LEYDON MILLARD LTD,5100330918,315.00,
United Kingdom Atomic Energy Authority,United Kingdom Atomic Energy Authority,06/01/2016,LEGAL FEES,SUPPORT SERVICES,CATER LEYDON MILLARD LTD,5100330842,560.00,
United Kingdom Atomic Energy Authority,United Kingdom Atomic Energy Authority,06/01/2016,LEGAL FEES,SUPPORT SERVICES,CATER LEYDON MILLARD LTD,5100330841,"3,369.38",
United Kingdom Atomic Energy Authority,United Kingdom Atomic Energy Authority,18/01/2016,CONSUMABLES,FUSION,CENTRAL METAL & ALLOYS LTD,5100331472,471.00,
United Kingdom Atomic Energy Authority,United Kingdom Atomic Energy Authority,13/01/2016,MATERIALS & SPARES,FUSION,CHANNEL SAFETY SERVICES LTD,5100331399,-435.42,
United Kingdom Atomic Energy Authority,United Kingdom Atomic Energy Authority,13/01/2016,MATERIALS & SPARES,FUSION,CHANNEL SAFETY SERVICES LTD,5100329529,435.42,
United Kingdom Atomic Energy Authority,United Kingdom Atomic Energy Authority,13/01/2016,MATERIALS & SPARES,FUSION,CHANNEL SAFETY SERVICES LTD,5100329530,435.42,
United Kingdom Atomic Energy Authority,United Kingdom Atomic Energy Authority,18/01/2016,LAUNDRY,FUSION,CLEAN LINEN SERVICES LTD,5100331022,78.85,
United Kingdom Atomic Energy Authority,United Kingdom Atomic Energy Authority,11/01/2016,PLANT & EQUIPMENT,FUSION,CN Technical Services Ltd,1900061278," 3,360.00",
United Kingdom Atomic Energy Authority,United Kingdom Atomic Energy Authority,11/01/2016,UTILITIES/GAS,PROPERTY,COFELY LTD,5100331008,"4,466.36",
United Kingdom Atomic Energy Authority,United Kingdom Atomic Energy Authority,06/01/2016,UTILITIES/GAS,PROPERTY,COFELY LTD,5100330804,"21,139.33",
United Kingdom Atomic Energy Authority,United Kingdom Atomic Energy Authority,11/01/2016,UTILITIES/GAS,PROPERTY,COFELY LTD,5100331010,"55,196.69",
United Kingdom Atomic Energy Authority,United Kingdom Atomic Energy Authority,08/01/2016,COMPENSATION,SUPPORT SERVICES,COMPENSATION CLAIMANT,1900061275," 16,300.00",
United Kingdom Atomic Energy Authority,United Kingdom Atomic Energy Authority,18/01/2016,MATERIALS & SPARES,FUSION,COMPLETE PCB SERVICES LTD,5100331483,284.80,
United Kingdom Atomic Energy Authority,United Kingdom Atomic Energy Authority,06/01/2016,MATERIALS & SPARES,FUSION,COMPLETE PCB SERVICES LTD,5100330835,298.40,
United Kingdom Atomic Energy Authority,United Kingdom Atomic Energy Authority,18/01/2016,REPAIRS & MAINTENANCE,FUSION,COMPRESSOR ENGINEERING LTD,5100331471,692.56,
United Kingdom Atomic Energy Authority,United Kingdom Atomic Energy Authority,15/01/2016,PROFESSIONAL SERVICES,FUSION,Copyright Clearance Center,1900061286," 1,867.81",
United Kingdom Atomic Energy Authority,United Kingdom Atomic Energy Authority,11/01/2016,MATERIALS & SPARES,FUSION,CPC PLC,5100331033,3.78,
United Kingdom Atomic Energy Authority,United Kingdom Atomic Energy Authority,18/01/2016,MATERIALS & SPARES,FUSION,CPC PLC,5100331294,6.75,
United Kingdom Atomic Energy Authority,United Kingdom Atomic Energy Authority,11/01/2016,MATERIALS & SPARES,FUSION,CPC PLC,5100331036,27.36,
United Kingdom Atomic Energy Authority,United Kingdom Atomic Energy Authority,11/01/2016,MATERIALS & SPARES,FUSION,CPC PLC,5100331077,36.68,
United Kingdom Atomic Energy Authority,United Kingdom Atomic Energy Authority,06/01/2016,MATERIALS & SPARES,FUSION,CPC PLC,5100330722,86.31,
United Kingdom Atomic Energy Authority,United Kingdom Atomic Energy Authority,13/01/2016,MATERIALS & SPARES,FUSION,CPC PLC,5100331295,118.00,
United Kingdom Atomic Energy Authority,United Kingdom Atomic Energy Authority,11/01/2016,MATERIALS & SPARES,FUSION,CPC PLC,5100331034,151.99,
United Kingdom Atomic Energy Authority,United Kingdom Atomic Energy Authority,21/01/2016,TRAINING COURSE FEES,FUSION,CRaG Systems,1900061295," 4,080.00",
United Kingdom Atomic Energy Authority,United Kingdom Atomic Energy Authority,05/01/2016,MATERIALS & SPARES,FUSION,CROMWELL LTD,5100331055,-135.78,
United Kingdom Atomic Energy Authority,United Kingdom Atomic Energy Authority,11/01/2016,MATERIALS & SPARES,FUSION,CROMWELL LTD,5100330911,0.24,
United Kingdom Atomic Energy Authority,United Kingdom Atomic Energy Authority,11/01/2016,MATERIALS & SPARES,FUSION,CROMWELL LTD,5100330909,26.49,
United Kingdom Atomic Energy Authority,United Kingdom Atomic Energy Authority,18/01/2016,MATERIALS & SPARES,FUSION,CROMWELL LTD,5100331526,67.20,
United Kingdom Atomic Energy Authority,United Kingdom Atomic Energy Authority,18/01/2016,MATERIALS & SPARES,FUSION,CROMWELL LTD,5100331532,74.86,
United Kingdom Atomic Energy Authority,United Kingdom Atomic Energy Authority,18/01/2016,MATERIALS & SPARES,FUSION,CROMWELL LTD,5100331527,82.60,
United Kingdom Atomic Energy Authority,United Kingdom Atomic Energy Authority,13/01/2016,MATERIALS & SPARES,FUSION,CROMWELL LTD,5100330910,90.20,
United Kingdom Atomic Energy Authority,United Kingdom Atomic Energy Authority,18/01/2016,MATERIALS & SPARES,FUSION,CROMWELL LTD,5100331530,122.83,
United Kingdom Atomic Energy Authority,United Kingdom Atomic Energy Authority,05/01/2016,MATERIALS & SPARES,FUSION,CROMWELL LTD,5100330908,135.78,
United Kingdom Atomic Energy Authority,United Kingdom Atomic Energy Authority,11/01/2016,MATERIALS & SPARES,FUSION,CROMWELL LTD,5100331056,135.78,
United Kingdom Atomic Energy Authority,United Kingdom Atomic Energy Authority,18/01/2016,MATERIALS & SPARES,FUSION,CROMWELL LTD,5100331525,177.83,
United Kingdom Atomic Energy Authority,United Kingdom Atomic Energy Authority,18/01/2016,MATERIALS & SPARES,FUSION,CROMWELL LTD,5100330907,185.97,
United Kingdom Atomic Energy Authority,United Kingdom Atomic Energy Authority,18/01/2016,MATERIALS & SPARES,FUSION,CROMWELL LTD,5100331531,610.77,
United Kingdom Atomic Energy Authority,United Kingdom Atomic Energy Authority,18/01/2016,MATERIALS & SPARES,FUSION,CROMWELL LTD,5100331528,628.54,
United Kingdom Atomic Energy Authority,United Kingdom Atomic Energy Authority,13/01/2016,MATERIALS & SPARES,FUSION,CROMWELL LTD,5100331168,638.40,
United Kingdom Atomic Energy Authority,United Kingdom Atomic Energy Authority,18/01/2016,MATERIALS & SPARES,FUSION,CROMWELL LTD,5100331529,685.48,
United Kingdom Atomic Energy Authority,United Kingdom Atomic Energy Authority,06/01/2016,PROFESSIONAL SERVICES,FUSION,CTM Europe Ltd,5100330884,270.00,
United Kingdom Atomic Energy Authority,United Kingdom Atomic Energy Authority,18/01/2016,MATERIALS & SPARES,PROPERTY,Cut Keys Direct Ltd,5100331314,5.60,
United Kingdom Atomic Energy Authority,United Kingdom Atomic Energy Authority,18/01/2016,MATERIALS & SPARES,PROPERTY,Cut Keys Direct Ltd,5100331132,20.38,
United Kingdom Atomic Energy Authority,United Kingdom Atomic Energy Authority,06/01/2016,SOFTWARE,FUSION,DELCAM UK LTD,5100330858,"4,374.00",
United Kingdom Atomic Energy Authority,United Kingdom Atomic Energy Authority,11/01/2016,MATERIALS & SPARES,FUSION,DIDCOT PLANT LTD,5100331160,231.84,
United Kingdom Atomic Energy Authority,United Kingdom Atomic Energy Authority,13/01/2016,PLANT & EQUIPMENT,FUSION,DIGIKEY CORPORATION,5100330716,46.25,
United Kingdom Atomic Energy Authority,United Kingdom Atomic Energy Authority,11/01/2016,MATERIALS & SPARES,FUSION,DRAEGER SAFETY,5100331018,314.76,
United Kingdom Atomic Energy Authority,United Kingdom Atomic Energy Authority,15/01/2016,DELIVERY & CARRIAGE,FUSION,E&I Hire Limited,1900061287, 426.00,
United Kingdom Atomic Energy Authority,United Kingdom Atomic Energy Authority,20/01/2016,ELECTRICITY,FUSION,E.ON (UK) Ltd,5100331343,"10,115.74",
United Kingdom Atomic Energy Authority,United Kingdom Atomic Energy Authority,18/01/2016,ELECTRICITY,FUSION,E.ON (UK) Ltd,5100331198,"296,574.15",
United Kingdom Atomic Energy Authority,United Kingdom Atomic Energy Authority,13/01/2016,UTILITIES/ELECTRICITY,PROPERTY,EDF ENERGY,5100331110,68.01,
United Kingdom Atomic Energy Authority,United Kingdom Atomic Energy Authority,13/01/2016,UTILITIES/ELECTRICITY,PROPERTY,EDF ENERGY,5100331114,82.54,
United Kingdom Atomic Energy Authority,United Kingdom Atomic Energy Authority,13/01/2016,UTILITIES/ELECTRICITY,PROPERTY,EDF ENERGY,5100331112,276.69,
United Kingdom Atomic Energy Authority,United Kingdom Atomic Energy Authority,13/01/2016,UTILITIES/ELECTRICITY,PROPERTY,EDF ENERGY,5100331108,902.02,
United Kingdom Atomic Energy Authority,United Kingdom Atomic Energy Authority,13/01/2016,UTILITIES/ELECTRICITY,PROPERTY,EDF ENERGY,5100331109,"1,600.31",
United Kingdom Atomic Energy Authority,United Kingdom Atomic Energy Authority,13/01/2016,UTILITIES/ELECTRICITY,PROPERTY,EDF ENERGY,5100331113,"3,009.96",
United Kingdom Atomic Energy Authority,United Kingdom Atomic Energy Authority,13/01/2016,UTILITIES/ELECTRICITY,PROPERTY,EDF ENERGY,5100331107,"3,039.30",
United Kingdom Atomic Energy Authority,United Kingdom Atomic Energy Authority,13/01/2016,UTILITIES/ELECTRICITY,PROPERTY,EDF ENERGY,5100331106,"7,562.34",
United Kingdom Atomic Energy Authority,United Kingdom Atomic Energy Authority,13/01/2016,UTILITIES/ELECTRICITY,PROPERTY,EDF ENERGY,5100331105,"19,357.83",
United Kingdom Atomic Energy Authority,United Kingdom Atomic Energy Authority,13/01/2016,UTILITIES/ELECTRICITY,PROPERTY,EDF ENERGY,5100331111,"28,400.11",
United Kingdom Atomic Energy Authority,United Kingdom Atomic Energy Authority,11/01/2016,UTILITIES/ELECTRICITY,FUSION,EDF ENERGY,5100331217,"82,578.87",
United Kingdom Atomic Energy Authority,United Kingdom Atomic Energy Authority,18/01/2016,PLANT & EQUIPMENT,FUSION,EDMUNDSON ELECTRICALS LTD,5100331225,-370.26,
United Kingdom Atomic Energy Authority,United Kingdom Atomic Energy Authority,06/01/2016,PLANT & EQUIPMENT,FUSION,EDMUNDSON ELECTRICALS LTD,5100330647,9.39,
United Kingdom Atomic Energy Authority,United Kingdom Atomic Energy Authority,11/01/2016,PLANT & EQUIPMENT,FUSION,EDMUNDSON ELECTRICALS LTD,5100331226,16.88,
United Kingdom Atomic Energy Authority,United Kingdom Atomic Energy Authority,11/01/2016,PLANT & EQUIPMENT,FUSION,EDMUNDSON ELECTRICALS LTD,5100331032,111.48,
United Kingdom Atomic Energy Authority,United Kingdom Atomic Energy Authority,20/01/2016,PLANT & EQUIPMENT,FUSION,EDMUNDSON ELECTRICALS LTD,5100331523,155.42,
United Kingdom Atomic Energy Authority,United Kingdom Atomic Energy Authority,18/01/2016,PLANT & EQUIPMENT,FUSION,EDMUNDSON ELECTRICALS LTD,5100331375,193.42,
United Kingdom Atomic Energy Authority,United Kingdom Atomic Energy Authority,11/01/2016,PLANT & EQUIPMENT,FUSION,EDMUNDSON ELECTRICALS LTD,5100331031,567.10,
United Kingdom Atomic Energy Authority,United Kingdom Atomic Energy Authority,11/01/2016,PLANT & EQUIPMENT,FUSION,EDMUNDSON ELECTRICALS LTD,5100330915,573.11,
United Kingdom Atomic Energy Authority,United Kingdom Atomic Energy Authority,11/01/2016,PLANT & EQUIPMENT,FUSION,EDMUNDSON ELECTRICALS LTD,5100330916,686.07,
United Kingdom Atomic Energy Authority,United Kingdom Atomic Energy Authority,18/01/2016,PLANT & EQUIPMENT,FUSION,EDMUNDSON ELECTRICALS LTD,5100331376,"1,551.92",
United Kingdom Atomic Energy Authority,United Kingdom Atomic Energy Authority,20/01/2016,PLANT & EQUIPMENT,FUSION,EDMUNDSON ELECTRICALS LTD,5100331522,"4,810.91",
United Kingdom Atomic Energy Authority,United Kingdom Atomic Energy Authority,11/01/2016,PLANT & EQUIPMENT,FUSION,EDWARDS LIMITED,5100330514,"6,714.41",
United Kingdom Atomic Energy Authority,United Kingdom Atomic Energy Authority,11/01/2016,F&F,SUPPORT SERVICES,EFG MATTHEWS OFFICE FURNITURE LTD,5100331120,-258.00,
United Kingdom Atomic Energy Authority,United Kingdom Atomic Energy Authority,11/01/2016,F&F,SUPPORT SERVICES,EFG MATTHEWS OFFICE FURNITURE LTD,5100325713,258.00,
United Kingdom Atomic Energy Authority,United Kingdom Atomic Energy Authority,18/01/2016,MATERIALS & SPARES,FUSION,EG Carter and Company Ltd,5100331320,"2,217.49",
United Kingdom Atomic Energy Authority,United Kingdom Atomic Energy Authority,18/01/2016,MATERIALS & SPARES,FUSION,EG Carter and Company Ltd,5100331319,"67,041.38",
United Kingdom Atomic Energy Authority,United Kingdom Atomic Energy Authority,11/01/2016,PROFESSIONAL SERVICES,FUSION,ELECTRIC STUDIO LTD,5100331212,"1,000.00",
United Kingdom Atomic Energy Authority,United Kingdom Atomic Energy Authority,08/01/2016,OTHER EMPLOYEE EXPENSES,SUPPORT SERVICES,EMPLOYEE EXPENSES,100792838,1.25,
United Kingdom Atomic Energy Authority,United Kingdom Atomic Energy Authority,23/01/2016,SUBSISTENCE,SUPPORT SERVICES,EMPLOYEE EXPENSES,100793118,1.25,
United Kingdom Atomic Energy Authority,United Kingdom Atomic Energy Authority,16/01/2016,SUBSISTENCE,SUPPORT SERVICES,EMPLOYEE EXPENSES,100792936,1.50,
United Kingdom Atomic Energy Authority,United Kingdom Atomic Energy Authority,08/01/2016,ROAD TRAVEL,FUSION,EMPLOYEE EXPENSES,100792790,1.60,
United Kingdom Atomic Energy Authority,United Kingdom Atomic Energy Authority,23/01/2016,ROAD TRAVEL,FUSION,EMPLOYEE EXPENSES,100793126,1.80,
United Kingdom Atomic Energy Authority,United Kingdom Atomic Energy Authority,16/01/2016,SUBSISTENCE,FUSION,EMPLOYEE EXPENSES,100792932,1.95,
United Kingdom Atomic Energy Authority,United Kingdom Atomic Energy Authority,08/01/2016,ROAD TRAVEL,FUSION,EMPLOYEE EXPENSES,100792816,2.00,
United Kingdom Atomic Energy Authority,United Kingdom Atomic Energy Authority,16/01/2016,SUBSISTENCE,SUPPORT SERVICES,EMPLOYEE EXPENSES,100792959,2.04,
United Kingdom Atomic Energy Authority,United Kingdom Atomic Energy Authority,16/01/2016,SUBSISTENCE,SUPPORT SERVICES,EMPLOYEE EXPENSES,100792962,2.04,
United Kingdom Atomic Energy Authority,United Kingdom Atomic Energy Authority,08/01/2016,ROAD TRAVEL,FUSION,EMPLOYEE EXPENSES,100792816,2.60,
United Kingdom Atomic Energy Authority,United Kingdom Atomic Energy Authority,08/01/2016,OTHER EMPLOYEE EXPENSES,FUSION,EMPLOYEE EXPENSES,100792839,2.70,
United Kingdom Atomic Energy Authority,United Kingdom Atomic Energy Authority,08/01/2016,OTHER EMPLOYEE EXPENSES,FUSION,EMPLOYEE EXPENSES,100792817,2.74,
United Kingdom Atomic Energy Authority,United Kingdom Atomic Energy Authority,23/01/2016,ROAD TRAVEL,SUPPORT SERVICES,EMPLOYEE EXPENSES,100793118,2.92,
United Kingdom Atomic Energy Authority,United Kingdom Atomic Energy Authority,08/01/2016,OTHER EMPLOYEE EXPENSES,FUSION,EMPLOYEE EXPENSES,100792793,3.00,
United Kingdom Atomic Energy Authority,United Kingdom Atomic Energy Authority,08/01/2016,ROAD TRAVEL,FUSION,EMPLOYEE EXPENSES,100792784,3.00,
United Kingdom Atomic Energy Authority,United Kingdom Atomic Energy Authority,23/01/2016,ROAD TRAVEL,SUPPORT SERVICES,EMPLOYEE EXPENSES,100793149,3.00,
United Kingdom Atomic Energy Authority,United Kingdom Atomic Energy Authority,08/01/2016,SUBSISTENCE,FUSION,EMPLOYEE EXPENSES,100792804,3.16,
United Kingdom Atomic Energy Authority,United Kingdom Atomic Energy Authority,08/01/2016,RAIL TRAVEL,FUSION,EMPLOYEE EXPENSES,100792792,3.27,
United Kingdom Atomic Energy Authority,United Kingdom Atomic Energy Authority,08/01/2016,SUBSISTENCE,SUPPORT SERVICES,EMPLOYEE EXPENSES,100792798,3.50,
United Kingdom Atomic Energy Authority,United Kingdom Atomic Energy Authority,08/01/2016,SUBSISTENCE,FUSION,EMPLOYEE EXPENSES,100792817,3.71,
United Kingdom Atomic Energy Authority,United Kingdom Atomic Energy Authority,23/01/2016,SUBSISTENCE,SUPPORT SERVICES,EMPLOYEE EXPENSES,100793149,3.75,
United Kingdom Atomic Energy Authority,United Kingdom Atomic Energy Authority,23/01/2016,OTHER EMPLOYEE EXPENSES,FUSION,EMPLOYEE EXPENSES,100793119,3.76,
United Kingdom Atomic Energy Authority,United Kingdom Atomic Energy Authority,23/01/2016,SUBSISTENCE,SUPPORT SERVICES,EMPLOYEE EXPENSES,100793134,3.99,
United Kingdom Atomic Energy Authority,United Kingdom Atomic Energy Authority,08/01/2016,ROAD TRAVEL,FUSION,EMPLOYEE EXPENSES,100792802,4.00,
United Kingdom Atomic Energy Authority,United Kingdom Atomic Energy Authority,16/01/2016,SUBSISTENCE,FUSION,EMPLOYEE EXPENSES,100792937,4.16,
United Kingdom Atomic Energy Authority,United Kingdom Atomic Energy Authority,23/01/2016,ROAD TRAVEL,FUSION,EMPLOYEE EXPENSES,100793138,4.33,
United Kingdom Atomic Energy Authority,United Kingdom Atomic Energy Authority,16/01/2016,SUBSISTENCE,FUSION,EMPLOYEE EXPENSES,100792937,4.35,
United Kingdom Atomic Energy Authority,United Kingdom Atomic Energy Authority,16/01/2016,TAXIS,FUSION,EMPLOYEE EXPENSES,100792974,4.40,
United Kingdom Atomic Energy Authority,United Kingdom Atomic Energy Authority,08/01/2016,RAIL TRAVEL,SUPPORT SERVICES,EMPLOYEE EXPENSES,100792789,4.40,
United Kingdom Atomic Energy Authority,United Kingdom Atomic Energy Authority,23/01/2016,MILEAGE ALLOWANCE,FUSION,EMPLOYEE EXPENSES,100793107,4.50,
United Kingdom Atomic Energy Authority,United Kingdom Atomic Energy Authority,23/01/2016,MILEAGE ALLOWANCE,FUSION,EMPLOYEE EXPENSES,100793109,4.50,
United Kingdom Atomic Energy Authority,United Kingdom Atomic Energy Authority,08/01/2016,RAIL TRAVEL,FUSION,EMPLOYEE EXPENSES,100792840,4.60,
United Kingdom Atomic Energy Authority,United Kingdom Atomic Energy Authority,08/01/2016,RAIL TRAVEL,SUPPORT SERVICES,EMPLOYEE EXPENSES,100792797,4.60,
United Kingdom Atomic Energy Authority,United Kingdom Atomic Energy Authority,16/01/2016,SUBSISTENCE,FUSION,EMPLOYEE EXPENSES,100792955,4.67,
United Kingdom Atomic Energy Authority,United Kingdom Atomic Energy Authority,23/01/2016,ROAD TRAVEL,FUSION,EMPLOYEE EXPENSES,100793107,4.75,
United Kingdom Atomic Energy Authority,United Kingdom Atomic Energy Authority,23/01/2016,ROAD TRAVEL,FUSION,EMPLOYEE EXPENSES,100793109,4.75,
United Kingdom Atomic Energy Authority,United Kingdom Atomic Energy Authority,23/01/2016,RAIL TRAVEL,FUSION,EMPLOYEE EXPENSES,100793119,4.81,
United Kingdom Atomic Energy Authority,United Kingdom Atomic Energy Authority,16/01/2016,ROAD TRAVEL,FUSION,EMPLOYEE EXPENSES,100792963,4.92,
United Kingdom Atomic Energy Authority,United Kingdom Atomic Energy Authority,23/01/2016,SUBSISTENCE,FUSION,EMPLOYEE EXPENSES,100793114,5.00,
United Kingdom Atomic Energy Authority,United Kingdom Atomic Energy Authority,08/01/2016,SUBSISTENCE,FUSION,EMPLOYEE EXPENSES,100792784,5.00,
United Kingdom Atomic Energy Authority,United Kingdom Atomic Energy Authority,23/01/2016,SUBSISTENCE,FUSION,EMPLOYEE EXPENSES,100793112,5.00,
United Kingdom Atomic Energy Authority,United Kingdom Atomic Energy Authority,08/01/2016,SUBSISTENCE,FUSION,EMPLOYEE EXPENSES,100792788,5.00,
United Kingdom Atomic Energy Authority,United Kingdom Atomic Energy Authority,08/01/2016,SUBSISTENCE,FUSION,EMPLOYEE EXPENSES,100792840,5.00,
United Kingdom Atomic Energy Authority,United Kingdom Atomic Energy Authority,08/01/2016,SUBSISTENCE,FUSION,EMPLOYEE EXPENSES,100792849,5.00,
United Kingdom Atomic Energy Authority,United Kingdom Atomic Energy Authority,08/01/2016,SUBSISTENCE,FUSION,EMPLOYEE EXPENSES,100792792,5.08,
United Kingdom Atomic Energy Authority,United Kingdom Atomic Energy Authority,23/01/2016,SUBSISTENCE,FUSION,EMPLOYEE EXPENSES,100793142,5.32,
United Kingdom Atomic Energy Authority,United Kingdom Atomic Energy Authority,08/01/2016,ROAD TRAVEL,FUSION,EMPLOYEE EXPENSES,100792782,5.42,
United Kingdom Atomic Energy Authority,United Kingdom Atomic Energy Authority,08/01/2016,ROAD TRAVEL,FUSION,EMPLOYEE EXPENSES,100792783,5.42,
United Kingdom Atomic Energy Authority,United Kingdom Atomic Energy Authority,23/01/2016,ROAD TRAVEL,FUSION,EMPLOYEE EXPENSES,100793108,5.42,
United Kingdom Atomic Energy Authority,United Kingdom Atomic Energy Authority,23/01/2016,ROAD TRAVEL,FUSION,EMPLOYEE EXPENSES,100793110,5.42,
United Kingdom Atomic Energy Authority,United Kingdom Atomic Energy Authority,23/01/2016,SUBSISTENCE,FUSION,EMPLOYEE EXPENSES,100793112,5.50,
United Kingdom Atomic Energy Authority,United Kingdom Atomic Energy Authority,23/01/2016,SUBSISTENCE,FUSION,EMPLOYEE EXPENSES,100793137,5.62,
United Kingdom Atomic Energy Authority,United Kingdom Atomic Energy Authority,08/01/2016,SUBSISTENCE,FUSION,EMPLOYEE EXPENSES,100792843,5.72,
United Kingdom Atomic Energy Authority,United Kingdom Atomic Energy Authority,16/01/2016,ROAD TRAVEL,SUPPORT SERVICES,EMPLOYEE EXPENSES,100792936,6.20,
United Kingdom Atomic Energy Authority,United Kingdom Atomic Energy Authority,08/01/2016,RAIL TRAVEL,FUSION,EMPLOYEE EXPENSES,100792841,6.21,
United Kingdom Atomic Energy Authority,United Kingdom Atomic Energy Authority,08/01/2016,RAIL TRAVEL,FUSION,EMPLOYEE EXPENSES,100792839,6.37,
United Kingdom Atomic Energy Authority,United Kingdom Atomic Energy Authority,08/01/2016,OTHER EMPLOYEE EXPENSES,FUSION,EMPLOYEE EXPENSES,100792792,6.42,
United Kingdom Atomic Energy Authority,United Kingdom Atomic Energy Authority,23/01/2016,ROAD TRAVEL,SUPPORT SERVICES,EMPLOYEE EXPENSES,100793134,6.50,
United Kingdom Atomic Energy Authority,United Kingdom Atomic Energy Authority,16/01/2016,MILEAGE ALLOWANCE,FUSION,EMPLOYEE EXPENSES,100792966,6.75,
United Kingdom Atomic Energy Authority,United Kingdom Atomic Energy Authority,16/01/2016,MILEAGE ALLOWANCE,FUSION,EMPLOYEE EXPENSES,100792967,6.75,
United Kingdom Atomic Energy Authority,United Kingdom Atomic Energy Authority,16/01/2016,MILEAGE ALLOWANCE,FUSION,EMPLOYEE EXPENSES,100792968,6.75,
United Kingdom Atomic Energy Authority,United Kingdom Atomic Energy Authority,08/01/2016,ROAD TRAVEL,FUSION,EMPLOYEE EXPENSES,100792842,6.77,
United Kingdom Atomic Energy Authority,United Kingdom Atomic Energy Authority,08/01/2016,MILEAGE ALLOWANCE,FUSION,EMPLOYEE EXPENSES,100792816,7.20,
United Kingdom Atomic Energy Authority,United Kingdom Atomic Energy Authority,08/01/2016,MILEAGE ALLOWANCE,FUSION,EMPLOYEE EXPENSES,100792780,7.20,
United Kingdom Atomic Energy Authority,United Kingdom Atomic Energy Authority,08/01/2016,MILEAGE ALLOWANCE,FUSION,EMPLOYEE EXPENSES,100792781,7.20,
United Kingdom Atomic Energy Authority,United Kingdom Atomic Energy Authority,16/01/2016,MILEAGE ALLOWANCE,FUSION,EMPLOYEE EXPENSES,100792929,7.20,
United Kingdom Atomic Energy Authority,United Kingdom Atomic Energy Authority,23/01/2016,MILEAGE ALLOWANCE,FUSION,EMPLOYEE EXPENSES,100793106,7.20,
United Kingdom Atomic Energy Authority,United Kingdom Atomic Energy Authority,23/01/2016,MILEAGE ALLOWANCE,SUPPORT SERVICES,EMPLOYEE EXPENSES,100793118,7.20,
United Kingdom Atomic Energy Authority,United Kingdom Atomic Energy Authority,16/01/2016,SUBSISTENCE,FUSION,EMPLOYEE EXPENSES,100792955,7.24,
United Kingdom Atomic Energy Authority,United Kingdom Atomic Energy Authority,08/01/2016,RAIL TRAVEL,FUSION,EMPLOYEE EXPENSES,100792801,7.27,
United Kingdom Atomic Energy Authority,United Kingdom Atomic Energy Authority,08/01/2016,ROAD TRAVEL,SUPPORT SERVICES,EMPLOYEE EXPENSES,100792789,7.50,
United Kingdom Atomic Energy Authority,United Kingdom Atomic Energy Authority,16/01/2016,SUBSISTENCE,FUSION,EMPLOYEE EXPENSES,100792932,7.87,
United Kingdom Atomic Energy Authority,United Kingdom Atomic Energy Authority,16/01/2016,MILEAGE ALLOWANCE,FUSION,EMPLOYEE EXPENSES,100792956,8.10,
United Kingdom Atomic Energy Authority,United Kingdom Atomic Energy Authority,08/01/2016,SUBSISTENCE,FUSION,EMPLOYEE EXPENSES,100792799,8.21,
United Kingdom Atomic Energy Authority,United Kingdom Atomic Energy Authority,16/01/2016,SUBSISTENCE,FUSION,EMPLOYEE EXPENSES,100792949,8.33,
United Kingdom Atomic Energy Authority,United Kingdom Atomic Energy Authority,23/01/2016,RAIL TRAVEL,FUSION,EMPLOYEE EXPENSES,100793130,8.38,
United Kingdom Atomic Energy Authority,United Kingdom Atomic Energy Authority,08/01/2016,TAXIS,FUSION,EMPLOYEE EXPENSES,100792840,8.50,
United Kingdom Atomic Energy Authority,United Kingdom Atomic Energy Authority,08/01/2016,RAIL TRAVEL,FUSION,EMPLOYEE EXPENSES,100792831,8.55,
United Kingdom Atomic Energy Authority,United Kingdom Atomic Energy Authority,16/01/2016,TAXIS,FUSION,EMPLOYEE EXPENSES,100792949,8.66,
United Kingdom Atomic Energy Authority,United Kingdom Atomic Energy Authority,08/01/2016,ROAD TRAVEL,FUSION,EMPLOYEE EXPENSES,100792822,8.87,
United Kingdom Atomic Energy Authority,United Kingdom Atomic Energy Authority,08/01/2016,SUBSISTENCE,FUSION,EMPLOYEE EXPENSES,100792831,9.54,
United Kingdom Atomic Energy Authority,United Kingdom Atomic Energy Authority,16/01/2016,ROAD TRAVEL,SUPPORT SERVICES,EMPLOYEE EXPENSES,100792961,9.92,
United Kingdom Atomic Energy Authority,United Kingdom Atomic Energy Authority,23/01/2016,SUBSISTENCE,FUSION,EMPLOYEE EXPENSES,100793126,10.00,
United Kingdom Atomic Energy Authority,United Kingdom Atomic Energy Authority,23/01/2016,SUBSISTENCE,FUSION,EMPLOYEE EXPENSES,100793111,10.00,
United Kingdom Atomic Energy Authority,United Kingdom Atomic Energy Authority,08/01/2016,SUBSISTENCE,FUSION,EMPLOYEE EXPENSES,100792815,10.00,
United Kingdom Atomic Energy Authority,United Kingdom Atomic Energy Authority,08/01/2016,RAIL TRAVEL,FUSION,EMPLOYEE EXPENSES,100792817,10.44,
United Kingdom Atomic Energy Authority,United Kingdom Atomic Energy Authority,08/01/2016,SUBSISTENCE,FUSION,EMPLOYEE EXPENSES,100792784,10.74,
United Kingdom Atomic Energy Authority,United Kingdom Atomic Energy Authority,08/01/2016,MILEAGE ALLOWANCE,FUSION,EMPLOYEE EXPENSES,100792802,10.80,
United Kingdom Atomic Energy Authority,United Kingdom Atomic Energy Authority,23/01/2016,RAIL TRAVEL,FUSION,EMPLOYEE EXPENSES,100793107,10.90,
United Kingdom Atomic Energy Authority,United Kingdom Atomic Energy Authority,23/01/2016,ROAD TRAVEL,FUSION,EMPLOYEE EXPENSES,100793136,11.14,
United Kingdom Atomic Energy Authority,United Kingdom Atomic Energy Authority,08/01/2016,SUBSISTENCE,FUSION,EMPLOYEE EXPENSES,100792802,11.30,
United Kingdom Atomic Energy Authority,United Kingdom Atomic Energy Authority,23/01/2016,ROAD TRAVEL,FUSION,EMPLOYEE EXPENSES,100793137,11.50,
United Kingdom Atomic Energy Authority,United Kingdom Atomic Energy Authority,08/01/2016,OTHER EMPLOYEE EXPENSES,FUSION,EMPLOYEE EXPENSES,100792827,11.60,
United Kingdom Atomic Energy Authority,United Kingdom Atomic Energy Authority,23/01/2016,TAXIS,FUSION,EMPLOYEE EXPENSES,100793115,11.69,
United Kingdom Atomic Energy Authority,United Kingdom Atomic Energy Authority,08/01/2016,RAIL TRAVEL,FUSION,EMPLOYEE EXPENSES,100792850,12.00,
United Kingdom Atomic Energy Authority,United Kingdom Atomic Energy Authority,08/01/2016,ROAD TRAVEL,FUSION,EMPLOYEE EXPENSES,100792841,12.27,
United Kingdom Atomic Energy Authority,United Kingdom Atomic Energy Authority,16/01/2016,ROAD TRAVEL,SUPPORT SERVICES,EMPLOYEE EXPENSES,100792959,12.33,
United Kingdom Atomic Energy Authority,United Kingdom Atomic Energy Authority,16/01/2016,ROAD TRAVEL,SUPPORT SERVICES,EMPLOYEE EXPENSES,100792962,12.33,
United Kingdom Atomic Energy Authority,United Kingdom Atomic Energy Authority,16/01/2016,RAIL TRAVEL,FUSION,EMPLOYEE EXPENSES,100792949,12.58,
United Kingdom Atomic Energy Authority,United Kingdom Atomic Energy Authority,08/01/2016,ROAD TRAVEL,FUSION,EMPLOYEE EXPENSES,100792839,12.59,
United Kingdom Atomic Energy Authority,United Kingdom Atomic Energy Authority,08/01/2016,ROAD TRAVEL,FUSION,EMPLOYEE EXPENSES,100792805,13.08,
United Kingdom Atomic Energy Authority,United Kingdom Atomic Energy Authority,23/01/2016,ROAD TRAVEL,FUSION,EMPLOYEE EXPENSES,100793121,13.16,
United Kingdom Atomic Energy Authority,United Kingdom Atomic Energy Authority,08/01/2016,ROAD TRAVEL,FUSION,EMPLOYEE EXPENSES,100792793,13.38,
United Kingdom Atomic Energy Authority,United Kingdom Atomic Energy Authority,08/01/2016,SUBSISTENCE,FUSION,EMPLOYEE EXPENSES,100792786,13.64,
United Kingdom Atomic Energy Authority,United Kingdom Atomic Energy Authority,08/01/2016,TAXIS,FUSION,EMPLOYEE EXPENSES,100792802,13.80,
United Kingdom Atomic Energy Authority,United Kingdom Atomic Energy Authority,23/01/2016,SUBSISTENCE,FUSION,EMPLOYEE EXPENSES,100793123,13.98,
United Kingdom Atomic Energy Authority,United Kingdom Atomic Energy Authority,08/01/2016,SUBSISTENCE,FUSION,EMPLOYEE EXPENSES,100792799,14.55,
United Kingdom Atomic Energy Authority,United Kingdom Atomic Energy Authority,23/01/2016,SUBSISTENCE,FUSION,EMPLOYEE EXPENSES,100793133,14.65,
United Kingdom Atomic Energy Authority,United Kingdom Atomic Energy Authority,08/01/2016,ROAD TRAVEL,FUSION,EMPLOYEE EXPENSES,100792802,15.00,
United Kingdom Atomic Energy Authority,United Kingdom Atomic Energy Authority,08/01/2016,TAXIS,FUSION,EMPLOYEE EXPENSES,100792799,15.00,
United Kingdom Atomic Energy Authority,United Kingdom Atomic Energy Authority,08/01/2016,SUBSISTENCE,FUSION,EMPLOYEE EXPENSES,100792819,15.00,
United Kingdom Atomic Energy Authority,United Kingdom Atomic Energy Authority,08/01/2016,SUBSISTENCE,FUSION,EMPLOYEE EXPENSES,100792834,15.58,
United Kingdom Atomic Energy Authority,United Kingdom Atomic Energy Authority,08/01/2016,TAXIS,FUSION,EMPLOYEE EXPENSES,100792815,16.00,
United Kingdom Atomic Energy Authority,United Kingdom Atomic Energy Authority,08/01/2016,RAIL TRAVEL,FUSION,EMPLOYEE EXPENSES,100792804,16.50,
United Kingdom Atomic Energy Authority,United Kingdom Atomic Energy Authority,16/01/2016,ROAD TRAVEL,FUSION,EMPLOYEE EXPENSES,100792937,16.93,
United Kingdom Atomic Energy Authority,United Kingdom Atomic Energy Authority,23/01/2016,ROAD TRAVEL,FUSION,EMPLOYEE EXPENSES,100793142,16.96,
United Kingdom Atomic Energy Authority,United Kingdom Atomic Energy Authority,08/01/2016,ROAD TRAVEL,FUSION,EMPLOYEE EXPENSES,100792825,17.10,
United Kingdom Atomic Energy Authority,United Kingdom Atomic Energy Authority,08/01/2016,TAXIS,FUSION,EMPLOYEE EXPENSES,100792790,17.36,
United Kingdom Atomic Energy Authority,United Kingdom Atomic Energy Authority,08/01/2016,ROAD TRAVEL,FUSION,EMPLOYEE EXPENSES,100792823,17.77,
United Kingdom Atomic Energy Authority,United Kingdom Atomic Energy Authority,08/01/2016,RAIL TRAVEL,FUSION,EMPLOYEE EXPENSES,100792849,18.00,
United Kingdom Atomic Energy Authority,United Kingdom Atomic Energy Authority,16/01/2016,MILEAGE ALLOWANCE,SUPPORT SERVICES,EMPLOYEE EXPENSES,100792959,18.00,
United Kingdom Atomic Energy Authority,United Kingdom Atomic Energy Authority,23/01/2016,ROAD TRAVEL,FUSION,EMPLOYEE EXPENSES,100793124,18.63,
United Kingdom Atomic Energy Authority,United Kingdom Atomic Energy Authority,16/01/2016,RAIL TRAVEL,FUSION,EMPLOYEE EXPENSES,100792963,19.40,
United Kingdom Atomic Energy Authority,United Kingdom Atomic Energy Authority,23/01/2016,RAIL TRAVEL,SUPPORT SERVICES,EMPLOYEE EXPENSES,100793134,19.45,
United Kingdom Atomic Energy Authority,United Kingdom Atomic Energy Authority,08/01/2016,TAXIS,FUSION,EMPLOYEE EXPENSES,100792817,19.74,
United Kingdom Atomic Energy Authority,United Kingdom Atomic Energy Authority,23/01/2016,ROAD TRAVEL,FUSION,EMPLOYEE EXPENSES,100793133,20.00,
United Kingdom Atomic Energy Authority,United Kingdom Atomic Energy Authority,23/01/2016,TAXIS,FUSION,EMPLOYEE EXPENSES,100793138,21.67,
United Kingdom Atomic Energy Authority,United Kingdom Atomic Energy Authority,08/01/2016,RAIL TRAVEL,FUSION,EMPLOYEE EXPENSES,100792851,21.79,
United Kingdom Atomic Energy Authority,United Kingdom Atomic Energy Authority,16/01/2016,SUBSISTENCE,FUSION,EMPLOYEE EXPENSES,100792974,23.60,
United Kingdom Atomic Energy Authority,United Kingdom Atomic Energy Authority,08/01/2016,ROAD TRAVEL,FUSION,EMPLOYEE EXPENSES,100792830,24.00,
United Kingdom Atomic Energy Authority,United Kingdom Atomic Energy Authority,08/01/2016,MILEAGE ALLOWANCE,SUPPORT SERVICES,EMPLOYEE EXPENSES,100792798,24.30,
United Kingdom Atomic Energy Authority,United Kingdom Atomic Energy Authority,23/01/2016,ROAD TRAVEL,FUSION,EMPLOYEE EXPENSES,100793119,25.19,
United Kingdom Atomic Energy Authority,United Kingdom Atomic Energy Authority,23/01/2016,TAXIS,FUSION,EMPLOYEE EXPENSES,100793146,25.80,
United Kingdom Atomic Energy Authority,United Kingdom Atomic Energy Authority,08/01/2016,TAXIS,FUSION,EMPLOYEE EXPENSES,100792805,26.26,
United Kingdom Atomic Energy Authority,United Kingdom Atomic Energy Authority,16/01/2016,ROAD TRAVEL,FUSION,EMPLOYEE EXPENSES,100792939,26.27,
United Kingdom Atomic Energy Authority,United Kingdom Atomic Energy Authority,16/01/2016,SUBSISTENCE,FUSION,EMPLOYEE EXPENSES,100792972,27.99,
United Kingdom Atomic Energy Authority,United Kingdom Atomic Energy Authority,23/01/2016,TAXIS,SUPPORT SERVICES,EMPLOYEE EXPENSES,100793134,28.00,
United Kingdom Atomic Energy Authority,United Kingdom Atomic Energy Authority,08/01/2016,RAIL TRAVEL,FUSION,EMPLOYEE EXPENSES,100792834,28.30,
United Kingdom Atomic Energy Authority,United Kingdom Atomic Energy Authority,08/01/2016,ROAD TRAVEL,FUSION,EMPLOYEE EXPENSES,100792793,29.00,
United Kingdom Atomic Energy Authority,United Kingdom Atomic Energy Authority,08/01/2016,ROAD TRAVEL,FUSION,EMPLOYEE EXPENSES,100792835,29.00,
United Kingdom Atomic Energy Authority,United Kingdom Atomic Energy Authority,08/01/2016,ROAD TRAVEL,FUSION,EMPLOYEE EXPENSES,100792851,29.00,
United Kingdom Atomic Energy Authority,United Kingdom Atomic Energy Authority,08/01/2016,RAIL TRAVEL,FUSION,EMPLOYEE EXPENSES,100792836,29.20,
United Kingdom Atomic Energy Authority,United Kingdom Atomic Energy Authority,23/01/2016,TAXIS,FUSION,EMPLOYEE EXPENSES,100793145,29.25,
United Kingdom Atomic Energy Authority,United Kingdom Atomic Energy Authority,23/01/2016,ROAD TRAVEL,FUSION,EMPLOYEE EXPENSES,100793124,30.80,
United Kingdom Atomic Energy Authority,United Kingdom Atomic Energy Authority,08/01/2016,ROAD TRAVEL,FUSION,EMPLOYEE EXPENSES,100792817,31.43,
United Kingdom Atomic Energy Authority,United Kingdom Atomic Energy Authority,08/01/2016,TAXIS,FUSION,EMPLOYEE EXPENSES,100792801,32.00,
United Kingdom Atomic Energy Authority,United Kingdom Atomic Energy Authority,23/01/2016,TAXIS,FUSION,EMPLOYEE EXPENSES,100793133,32.00,
United Kingdom Atomic Energy Authority,United Kingdom Atomic Energy Authority,23/01/2016,ROAD TRAVEL,FUSION,EMPLOYEE EXPENSES,100793139,32.71,
United Kingdom Atomic Energy Authority,United Kingdom Atomic Energy Authority,16/01/2016,RAIL TRAVEL,FUSION,EMPLOYEE EXPENSES,100792974,33.10,
United Kingdom Atomic Energy Authority,United Kingdom Atomic Energy Authority,08/01/2016,RAIL TRAVEL,FUSION,EMPLOYEE EXPENSES,100792834,33.22,
United Kingdom Atomic Energy Authority,United Kingdom Atomic Energy Authority,23/01/2016,MILEAGE ALLOWANCE,FUSION,EMPLOYEE EXPENSES,100793120,33.60,
United Kingdom Atomic Energy Authority,United Kingdom Atomic Energy Authority,08/01/2016,OTHER EMPLOYEE EXPENSES,FUSION,EMPLOYEE EXPENSES,100792831,34.61,
United Kingdom Atomic Energy Authority,United Kingdom Atomic Energy Authority,23/01/2016,ROAD TRAVEL,FUSION,EMPLOYEE EXPENSES,100793115,35.20,
United Kingdom Atomic Energy Authority,United Kingdom Atomic Energy Authority,16/01/2016,MILEAGE ALLOWANCE,FUSION,EMPLOYEE EXPENSES,100792942,36.00,
United Kingdom Atomic Energy Authority,United Kingdom Atomic Energy Authority,16/01/2016,MILEAGE ALLOWANCE,SUPPORT SERVICES,EMPLOYEE EXPENSES,100792960,36.00,
United Kingdom Atomic Energy Authority,United Kingdom Atomic Energy Authority,08/01/2016,TAXIS,FUSION,EMPLOYEE EXPENSES,100792786,36.36,
United Kingdom Atomic Energy Authority,United Kingdom Atomic Energy Authority,08/01/2016,AIR TRAVEL,FUSION,EMPLOYEE EXPENSES,100792842,36.86,
United Kingdom Atomic Energy Authority,United Kingdom Atomic Energy Authority,16/01/2016,MILEAGE ALLOWANCE,SUPPORT SERVICES,EMPLOYEE EXPENSES,100792962,36.90,
United Kingdom Atomic Energy Authority,United Kingdom Atomic Energy Authority,16/01/2016,ROAD TRAVEL,FUSION,EMPLOYEE EXPENSES,100792958,37.50,
United Kingdom Atomic Energy Authority,United Kingdom Atomic Energy Authority,23/01/2016,SUBSISTENCE,FUSION,EMPLOYEE EXPENSES,100793126,37.62,
United Kingdom Atomic Energy Authority,United Kingdom Atomic Energy Authority,16/01/2016,MILEAGE ALLOWANCE,FUSION,EMPLOYEE EXPENSES,100792938,37.80,
United Kingdom Atomic Energy Authority,United Kingdom Atomic Energy Authority,08/01/2016,SUBSISTENCE,FUSION,EMPLOYEE EXPENSES,100792841,38.25,
United Kingdom Atomic Energy Authority,United Kingdom Atomic Energy Authority,08/01/2016,MILEAGE ALLOWANCE,FUSION,EMPLOYEE EXPENSES,100792824,38.70,
United Kingdom Atomic Energy Authority,United Kingdom Atomic Energy Authority,08/01/2016,RAIL TRAVEL,FUSION,EMPLOYEE EXPENSES,100792847,40.00,
United Kingdom Atomic Energy Authority,United Kingdom Atomic Energy Authority,23/01/2016,SUBSISTENCE,FUSION,EMPLOYEE EXPENSES,100793144,40.20,
United Kingdom Atomic Energy Authority,United Kingdom Atomic Energy Authority,23/01/2016,ROAD TRAVEL,FUSION,EMPLOYEE EXPENSES,100793123,42.58,
United Kingdom Atomic Energy Authority,United Kingdom Atomic Energy Authority,08/01/2016,TAXIS,FUSION,EMPLOYEE EXPENSES,100792793,42.60,
United Kingdom Atomic Energy Authority,United Kingdom Atomic Energy Authority,16/01/2016,ROAD TRAVEL,FUSION,EMPLOYEE EXPENSES,100792949,44.09,
United Kingdom Atomic Energy Authority,United Kingdom Atomic Energy Authority,08/01/2016,SUBSISTENCE,FUSION,EMPLOYEE EXPENSES,100792795,44.45,
United Kingdom Atomic Energy Authority,United Kingdom Atomic Energy Authority,08/01/2016,TAXIS,FUSION,EMPLOYEE EXPENSES,100792828,44.79,
United Kingdom Atomic Energy Authority,United Kingdom Atomic Energy Authority,08/01/2016,MILEAGE ALLOWANCE,FUSION,EMPLOYEE EXPENSES,100792817,45.00,
United Kingdom Atomic Energy Authority,United Kingdom Atomic Energy Authority,16/01/2016,ROAD TRAVEL,FUSION,EMPLOYEE EXPENSES,100792958,45.00,
United Kingdom Atomic Energy Authority,United Kingdom Atomic Energy Authority,23/01/2016,RAIL TRAVEL,SUPPORT SERVICES,EMPLOYEE EXPENSES,100793118,45.90,
United Kingdom Atomic Energy Authority,United Kingdom Atomic Energy Authority,08/01/2016,OTHER EMPLOYEE EXPENSES,FUSION,EMPLOYEE EXPENSES,100792826,46.25,
United Kingdom Atomic Energy Authority,United Kingdom Atomic Energy Authority,08/01/2016,MILEAGE ALLOWANCE,FUSION,EMPLOYEE EXPENSES,100792828,46.80,
United Kingdom Atomic Energy Authority,United Kingdom Atomic Energy Authority,08/01/2016,TAXIS,FUSION,EMPLOYEE EXPENSES,100792787,47.94,
United Kingdom Atomic Energy Authority,United Kingdom Atomic Energy Authority,08/01/2016,ROAD TRAVEL,FUSION,EMPLOYEE EXPENSES,100792825,48.20,
United Kingdom Atomic Energy Authority,United Kingdom Atomic Energy Authority,23/01/2016,RAIL TRAVEL,FUSION,EMPLOYEE EXPENSES,100793146,48.40,
United Kingdom Atomic Energy Authority,United Kingdom Atomic Energy Authority,08/01/2016,RAIL TRAVEL,FUSION,EMPLOYEE EXPENSES,100792844,48.70,
United Kingdom Atomic Energy Authority,United Kingdom Atomic Energy Authority,08/01/2016,ROAD TRAVEL,FUSION,EMPLOYEE EXPENSES,100792831,48.79,
United Kingdom Atomic Energy Authority,United Kingdom Atomic Energy Authority,23/01/2016,SUBSISTENCE,FUSION,EMPLOYEE EXPENSES,100793139,48.90,
United Kingdom Atomic Energy Authority,United Kingdom Atomic Energy Authority,08/01/2016,ROAD TRAVEL,FUSION,EMPLOYEE EXPENSES,100792824,49.00,
United Kingdom Atomic Energy Authority,United Kingdom Atomic Energy Authority,23/01/2016,MILEAGE ALLOWANCE,FUSION,EMPLOYEE EXPENSES,100793119,49.50,
United Kingdom Atomic Energy Authority,United Kingdom Atomic Energy Authority,08/01/2016,MILEAGE ALLOWANCE,FUSION,EMPLOYEE EXPENSES,100792819,50.40,
United Kingdom Atomic Energy Authority,United Kingdom Atomic Energy Authority,16/01/2016,SUBSISTENCE,SUPPORT SERVICES,EMPLOYEE EXPENSES,100792961,51.45,
United Kingdom Atomic Energy Authority,United Kingdom Atomic Energy Authority,08/01/2016,ROAD TRAVEL,FUSION,EMPLOYEE EXPENSES,100792815,51.58,
United Kingdom Atomic Energy Authority,United Kingdom Atomic Energy Authority,08/01/2016,MILEAGE ALLOWANCE,FUSION,EMPLOYEE EXPENSES,100792800,54.00,
United Kingdom Atomic Energy Authority,United Kingdom Atomic Energy Authority,08/01/2016,MILEAGE ALLOWANCE,FUSION,EMPLOYEE EXPENSES,100792788,54.00,
United Kingdom Atomic Energy Authority,United Kingdom Atomic Energy Authority,16/01/2016,MILEAGE ALLOWANCE,FUSION,EMPLOYEE EXPENSES,100792932,54.00,
United Kingdom Atomic Energy Authority,United Kingdom Atomic Energy Authority,08/01/2016,TAXIS,FUSION,EMPLOYEE EXPENSES,100792792,54.32,
United Kingdom Atomic Energy Authority,United Kingdom Atomic Energy Authority,23/01/2016,TAXIS,FUSION,EMPLOYEE EXPENSES,100793119,54.41,
United Kingdom Atomic Energy Authority,United Kingdom Atomic Energy Authority,08/01/2016,RAIL TRAVEL,FUSION,EMPLOYEE EXPENSES,100792820,54.70,
United Kingdom Atomic Energy Authority,United Kingdom Atomic Energy Authority,23/01/2016,RAIL TRAVEL,SUPPORT SERVICES,EMPLOYEE EXPENSES,100793149,54.70,
United Kingdom Atomic Energy Authority,United Kingdom Atomic Energy Authority,08/01/2016,SUBSISTENCE,FUSION,EMPLOYEE EXPENSES,100792788,58.29,
United Kingdom Atomic Energy Authority,United Kingdom Atomic Energy Authority,23/01/2016,MILEAGE ALLOWANCE,FUSION,EMPLOYEE EXPENSES,100793131,58.50,
United Kingdom Atomic Energy Authority,United Kingdom Atomic Energy Authority,16/01/2016,MILEAGE ALLOWANCE,FUSION,EMPLOYEE EXPENSES,100792944,59.40,
United Kingdom Atomic Energy Authority,United Kingdom Atomic Energy Authority,08/01/2016,OTHER EMPLOYEE EXPENSES,FUSION,EMPLOYEE EXPENSES,100792849,60.00,
United Kingdom Atomic Energy Authority,United Kingdom Atomic Energy Authority,08/01/2016,ROAD TRAVEL,FUSION,EMPLOYEE EXPENSES,100792829,61.42,
United Kingdom Atomic Energy Authority,United Kingdom Atomic Energy Authority,16/01/2016,MILEAGE ALLOWANCE,FUSION,EMPLOYEE EXPENSES,100792969,64.41,
United Kingdom Atomic Energy Authority,United Kingdom Atomic Energy Authority,16/01/2016,MILEAGE ALLOWANCE,FUSION,EMPLOYEE EXPENSES,100792949,64.80,
United Kingdom Atomic Energy Authority,United Kingdom Atomic Energy Authority,08/01/2016,EFDA TRAVEL EXPENSES,FUSION,EMPLOYEE EXPENSES,100792812,66.12,
United Kingdom Atomic Energy Authority,United Kingdom Atomic Energy Authority,16/01/2016,ROAD TRAVEL,FUSION,EMPLOYEE EXPENSES,100792970,66.25,
United Kingdom Atomic Energy Authority,United Kingdom Atomic Energy Authority,23/01/2016,RAIL TRAVEL,FUSION,EMPLOYEE EXPENSES,100793109,67.10,
United Kingdom Atomic Energy Authority,United Kingdom Atomic Energy Authority,08/01/2016,MILEAGE ALLOWANCE,FUSION,EMPLOYEE EXPENSES,100792845,67.20,
United Kingdom Atomic Energy Authority,United Kingdom Atomic Energy Authority,23/01/2016,SUBSISTENCE,FUSION,EMPLOYEE EXPENSES,100793141,71.55,
United Kingdom Atomic Energy Authority,United Kingdom Atomic Energy Authority,08/01/2016,AIR TRAVEL,FUSION,EMPLOYEE EXPENSES,100792829,73.73,
United Kingdom Atomic Energy Authority,United Kingdom Atomic Energy Authority,23/01/2016,SUBSISTENCE,FUSION,EMPLOYEE EXPENSES,100793139,74.21,
United Kingdom Atomic Energy Authority,United Kingdom Atomic Energy Authority,16/01/2016,SUBSISTENCE,FUSION,EMPLOYEE EXPENSES,100792974,77.50,
United Kingdom Atomic Energy Authority,United Kingdom Atomic Energy Authority,23/01/2016,SUBSISTENCE,FUSION,EMPLOYEE EXPENSES,100793114,78.71,
United Kingdom Atomic Energy Authority,United Kingdom Atomic Energy Authority,16/01/2016,ROAD TRAVEL,FUSION,EMPLOYEE EXPENSES,100792970,79.50,
United Kingdom Atomic Energy Authority,United Kingdom Atomic Energy Authority,08/01/2016,SUBSISTENCE,FUSION,EMPLOYEE EXPENSES,100792821,82.74,
United Kingdom Atomic Energy Authority,United Kingdom Atomic Energy Authority,08/01/2016,MILEAGE ALLOWANCE,FUSION,EMPLOYEE EXPENSES,100792830,83.70,
United Kingdom Atomic Energy Authority,United Kingdom Atomic Energy Authority,08/01/2016,CAR HIRE,FUSION,EMPLOYEE EXPENSES,100792843,85.06,
United Kingdom Atomic Energy Authority,United Kingdom Atomic Energy Authority,08/01/2016,RAIL TRAVEL,FUSION,EMPLOYEE EXPENSES,100792842,85.10,
United Kingdom Atomic Energy Authority,United Kingdom Atomic Energy Authority,08/01/2016,RAIL TRAVEL,FUSION,EMPLOYEE EXPENSES,100792843,85.13,
United Kingdom Atomic Energy Authority,United Kingdom Atomic Energy Authority,08/01/2016,SUBSISTENCE,FUSION,EMPLOYEE EXPENSES,100792787,85.47,
United Kingdom Atomic Energy Authority,United Kingdom Atomic Energy Authority,08/01/2016,RAIL TRAVEL,FUSION,EMPLOYEE EXPENSES,100792784,88.05,
United Kingdom Atomic Energy Authority,United Kingdom Atomic Energy Authority,16/01/2016,RAIL TRAVEL,SUPPORT SERVICES,EMPLOYEE EXPENSES,100792959,91.40,
United Kingdom Atomic Energy Authority,United Kingdom Atomic Energy Authority,16/01/2016,RAIL TRAVEL,SUPPORT SERVICES,EMPLOYEE EXPENSES,100792962,91.40,
United Kingdom Atomic Energy Authority,United Kingdom Atomic Energy Authority,23/01/2016,SUBSISTENCE,FUSION,EMPLOYEE EXPENSES,100793145,95.72,
United Kingdom Atomic Energy Authority,United Kingdom Atomic Energy Authority,08/01/2016,MILEAGE ALLOWANCE,FUSION,EMPLOYEE EXPENSES,100792831,96.30,
United Kingdom Atomic Energy Authority,United Kingdom Atomic Energy Authority,08/01/2016,MILEAGE ALLOWANCE,FUSION,EMPLOYEE EXPENSES,100792808,97.20,
United Kingdom Atomic Energy Authority,United Kingdom Atomic Energy Authority,23/01/2016,SUBSISTENCE,FUSION,EMPLOYEE EXPENSES,100793129,97.62,
United Kingdom Atomic Energy Authority,United Kingdom Atomic Energy Authority,08/01/2016,SUBSISTENCE,FUSION,EMPLOYEE EXPENSES,100792817,100.48,
United Kingdom Atomic Energy Authority,United Kingdom Atomic Energy Authority,08/01/2016,RAIL TRAVEL,FUSION,EMPLOYEE EXPENSES,100792842,101.94,
United Kingdom Atomic Energy Authority,United Kingdom Atomic Energy Authority,08/01/2016,SUBSISTENCE,FUSION,EMPLOYEE EXPENSES,100792831,104.60,
United Kingdom Atomic Energy Authority,United Kingdom Atomic Energy Authority,23/01/2016,PROFESSIONAL SUBSCRIPTION,FUSION,EMPLOYEE EXPENSES,100793116,112.80,
United Kingdom Atomic Energy Authority,United Kingdom Atomic Energy Authority,08/01/2016,SUBSISTENCE,FUSION,EMPLOYEE EXPENSES,100792851,113.65,
United Kingdom Atomic Energy Authority,United Kingdom Atomic Energy Authority,08/01/2016,OTHER EMPLOYEE EXPENSES,FUSION,EMPLOYEE EXPENSES,100792829,113.70,
United Kingdom Atomic Energy Authority,United Kingdom Atomic Energy Authority,08/01/2016,ROAD TRAVEL,FUSION,EMPLOYEE EXPENSES,100792843,114.21,
United Kingdom Atomic Energy Authority,United Kingdom Atomic Energy Authority,08/01/2016,PROFESSIONAL SUBSCRIPTION,SUPPORT SERVICES,EMPLOYEE EXPENSES,100792838,116.51,
United Kingdom Atomic Energy Authority,United Kingdom Atomic Energy Authority,08/01/2016,RAIL TRAVEL,FUSION,EMPLOYEE EXPENSES,100792837,116.80,
United Kingdom Atomic Energy Authority,United Kingdom Atomic Energy Authority,08/01/2016,SUBSISTENCE,FUSION,EMPLOYEE EXPENSES,100792822,118.44,
United Kingdom Atomic Energy Authority,United Kingdom Atomic Energy Authority,23/01/2016,PROFESSIONAL SUBSCRIPTION,FUSION,EMPLOYEE EXPENSES,100793140,122.90,
United Kingdom Atomic Energy Authority,United Kingdom Atomic Energy Authority,16/01/2016,PROFESSIONAL SUBSCRIPTION,FUSION,EMPLOYEE EXPENSES,100792931,125.75,
United Kingdom Atomic Energy Authority,United Kingdom Atomic Energy Authority,16/01/2016,SUBSISTENCE,FUSION,EMPLOYEE EXPENSES,100792972,128.12,
United Kingdom Atomic Energy Authority,United Kingdom Atomic Energy Authority,08/01/2016,PROFESSIONAL SUBSCRIPTION,FUSION,EMPLOYEE EXPENSES,100792814,130.00,
United Kingdom Atomic Energy Authority,United Kingdom Atomic Energy Authority,16/01/2016,PROFESSIONAL SUBSCRIPTION,FUSION,EMPLOYEE EXPENSES,100792930,136.00,
United Kingdom Atomic Energy Authority,United Kingdom Atomic Energy Authority,16/01/2016,PROFESSIONAL SUBSCRIPTION,FUSION,EMPLOYEE EXPENSES,100792945,136.00,
United Kingdom Atomic Energy Authority,United Kingdom Atomic Energy Authority,16/01/2016,PROFESSIONAL SUBSCRIPTION,SUPPORT SERVICES,EMPLOYEE EXPENSES,100792940,137.05,
United Kingdom Atomic Energy Authority,United Kingdom Atomic Energy Authority,08/01/2016,AIR TRAVEL,FUSION,EMPLOYEE EXPENSES,100792793,137.41,
United Kingdom Atomic Energy Authority,United Kingdom Atomic Energy Authority,08/01/2016,AIR TRAVEL,FUSION,EMPLOYEE EXPENSES,100792829,137.73,
United Kingdom Atomic Energy Authority,United Kingdom Atomic Energy Authority,08/01/2016,SUBSISTENCE,FUSION,EMPLOYEE EXPENSES,100792840,140.90,
United Kingdom Atomic Energy Authority,United Kingdom Atomic Energy Authority,08/01/2016,SUBSISTENCE,FUSION,EMPLOYEE EXPENSES,100792824,143.23,
United Kingdom Atomic Energy Authority,United Kingdom Atomic Energy Authority,16/01/2016,SUBSISTENCE,SUPPORT SERVICES,EMPLOYEE EXPENSES,100792960,143.61,
United Kingdom Atomic Energy Authority,United Kingdom Atomic Energy Authority,08/01/2016,MILEAGE ALLOWANCE,FUSION,EMPLOYEE EXPENSES,100792795,144.00,
United Kingdom Atomic Energy Authority,United Kingdom Atomic Energy Authority,08/01/2016,SUBSISTENCE,FUSION,EMPLOYEE EXPENSES,100792815,144.67,
United Kingdom Atomic Energy Authority,United Kingdom Atomic Energy Authority,08/01/2016,PROFESSIONAL SUBSCRIPTION,FUSION,EMPLOYEE EXPENSES,100792794,145.12,
United Kingdom Atomic Energy Authority,United Kingdom Atomic Energy Authority,23/01/2016,SUBSISTENCE,FUSION,EMPLOYEE EXPENSES,100793123,145.85,
United Kingdom Atomic Energy Authority,United Kingdom Atomic Energy Authority,08/01/2016,SUBSISTENCE,FUSION,EMPLOYEE EXPENSES,100792843,146.81,
United Kingdom Atomic Energy Authority,United Kingdom Atomic Energy Authority,08/01/2016,PROFESSIONAL SUBSCRIPTION,FUSION,EMPLOYEE EXPENSES,100792807,148.00,
United Kingdom Atomic Energy Authority,United Kingdom Atomic Energy Authority,16/01/2016,PROFESSIONAL SUBSCRIPTION,FUSION,EMPLOYEE EXPENSES,100792941,148.00,
United Kingdom Atomic Energy Authority,United Kingdom Atomic Energy Authority,16/01/2016,PROFESSIONAL SUBSCRIPTION,FUSION,EMPLOYEE EXPENSES,100792975,148.00,
United Kingdom Atomic Energy Authority,United Kingdom Atomic Energy Authority,23/01/2016,PROFESSIONAL SUBSCRIPTION,FUSION,EMPLOYEE EXPENSES,100793122,161.00,
United Kingdom Atomic Energy Authority,United Kingdom Atomic Energy Authority,23/01/2016,PROFESSIONAL SUBSCRIPTION,FUSION,EMPLOYEE EXPENSES,100793113,161.00,
United Kingdom Atomic Energy Authority,United Kingdom Atomic Energy Authority,23/01/2016,MILEAGE ALLOWANCE,FUSION,EMPLOYEE EXPENSES,100793147,163.20,
United Kingdom Atomic Energy Authority,United Kingdom Atomic Energy Authority,16/01/2016,EFDA TRAVEL EXPENSES,FUSION,EMPLOYEE EXPENSES,100792946,164.57,
United Kingdom Atomic Energy Authority,United Kingdom Atomic Energy Authority,08/01/2016,CAR HIRE,FUSION,EMPLOYEE EXPENSES,100792823,169.20,
United Kingdom Atomic Energy Authority,United Kingdom Atomic Energy Authority,23/01/2016,SUBSISTENCE,FUSION,EMPLOYEE EXPENSES,100793115,170.39,
United Kingdom Atomic Energy Authority,United Kingdom Atomic Energy Authority,23/01/2016,MILEAGE ALLOWANCE,FUSION,EMPLOYEE EXPENSES,100793114,171.00,
United Kingdom Atomic Energy Authority,United Kingdom Atomic Energy Authority,08/01/2016,OTHER EMPLOYEE EXPENSES,FUSION,EMPLOYEE EXPENSES,100792810,175.00,
United Kingdom Atomic Energy Authority,United Kingdom Atomic Energy Authority,08/01/2016,CAR HIRE,FUSION,EMPLOYEE EXPENSES,100792829,175.90,
United Kingdom Atomic Energy Authority,United Kingdom Atomic Energy Authority,08/01/2016,SUBSISTENCE,FUSION,EMPLOYEE EXPENSES,100792825,177.97,
United Kingdom Atomic Energy Authority,United Kingdom Atomic Energy Authority,08/01/2016,SUBSISTENCE,FUSION,EMPLOYEE EXPENSES,100792795,179.17,
United Kingdom Atomic Energy Authority,United Kingdom Atomic Energy Authority,08/01/2016,TRAINING COURSE FEES,FUSION,EMPLOYEE EXPENSES,100792844,180.00,
United Kingdom Atomic Energy Authority,United Kingdom Atomic Energy Authority,23/01/2016,SUBSISTENCE,FUSION,EMPLOYEE EXPENSES,100793142,181.90,
United Kingdom Atomic Energy Authority,United Kingdom Atomic Energy Authority,23/01/2016,RAIL TRAVEL,FUSION,EMPLOYEE EXPENSES,100793130,182.50,
United Kingdom Atomic Energy Authority,United Kingdom Atomic Energy Authority,08/01/2016,CAR HIRE,FUSION,EMPLOYEE EXPENSES,100792822,187.78,
United Kingdom Atomic Energy Authority,United Kingdom Atomic Energy Authority,08/01/2016,SUBSISTENCE,FUSION,EMPLOYEE EXPENSES,100792792,191.01,
United Kingdom Atomic Energy Authority,United Kingdom Atomic Energy Authority,08/01/2016,AIR TRAVEL,FUSION,EMPLOYEE EXPENSES,100792843,205.81,
United Kingdom Atomic Energy Authority,United Kingdom Atomic Energy Authority,08/01/2016,AIR TRAVEL,FUSION,EMPLOYEE EXPENSES,100792851,208.68,
United Kingdom Atomic Energy Authority,United Kingdom Atomic Energy Authority,08/01/2016,PROFESSIONAL SUBSCRIPTION,FUSION,EMPLOYEE EXPENSES,100792785,213.70,
United Kingdom Atomic Energy Authority,United Kingdom Atomic Energy Authority,08/01/2016,PROFESSIONAL SUBSCRIPTION,FUSION,EMPLOYEE EXPENSES,100792806,213.70,
United Kingdom Atomic Energy Authority,United Kingdom Atomic Energy Authority,08/01/2016,PROFESSIONAL SUBSCRIPTION,FUSION,EMPLOYEE EXPENSES,100792833,216.00,
United Kingdom Atomic Energy Authority,United Kingdom Atomic Energy Authority,16/01/2016,PROFESSIONAL SUBSCRIPTION,FUSION,EMPLOYEE EXPENSES,100792973,216.00,
United Kingdom Atomic Energy Authority,United Kingdom Atomic Energy Authority,08/01/2016,SUBSISTENCE,FUSION,EMPLOYEE EXPENSES,100792847,217.39,
United Kingdom Atomic Energy Authority,United Kingdom Atomic Energy Authority,08/01/2016,SUBSISTENCE,FUSION,EMPLOYEE EXPENSES,100792842,218.60,
United Kingdom Atomic Energy Authority,United Kingdom Atomic Energy Authority,23/01/2016,PROFESSIONAL SUBSCRIPTION,FUSION,EMPLOYEE EXPENSES,100793125,219.80,
United Kingdom Atomic Energy Authority,United Kingdom Atomic Energy Authority,16/01/2016,PROFESSIONAL SUBSCRIPTION,FUSION,EMPLOYEE EXPENSES,100792952,219.80,
United Kingdom Atomic Energy Authority,United Kingdom Atomic Energy Authority,08/01/2016,PROFESSIONAL SUBSCRIPTION,SUPPORT SERVICES,EMPLOYEE EXPENSES,100792791,221.00,
United Kingdom Atomic Energy Authority,United Kingdom Atomic Energy Authority,16/01/2016,PROFESSIONAL SUBSCRIPTION,SUPPORT SERVICES,EMPLOYEE EXPENSES,100792934,221.00,
United Kingdom Atomic Energy Authority,United Kingdom Atomic Energy Authority,16/01/2016,PROFESSIONAL SUBSCRIPTION,FUSION,EMPLOYEE EXPENSES,100792935,221.00,
United Kingdom Atomic Energy Authority,United Kingdom Atomic Energy Authority,23/01/2016,PROFESSIONAL SUBSCRIPTION,SUPPORT SERVICES,EMPLOYEE EXPENSES,100793117,221.00,
United Kingdom Atomic Energy Authority,United Kingdom Atomic Energy Authority,08/01/2016,SUBSISTENCE,FUSION,EMPLOYEE EXPENSES,100792819,229.92,
United Kingdom Atomic Energy Authority,United Kingdom Atomic Energy Authority,23/01/2016,PROFESSIONAL SUBSCRIPTION,FUSION,EMPLOYEE EXPENSES,100793143,241.10,
United Kingdom Atomic Energy Authority,United Kingdom Atomic Energy Authority,23/01/2016,BUSINESS ENTERTAINMENT,FUSION,EMPLOYEE EXPENSES,100793132,241.85,
United Kingdom Atomic Energy Authority,United Kingdom Atomic Energy Authority,16/01/2016,SUBSISTENCE,FUSION,EMPLOYEE EXPENSES,100792950,243.48,
United Kingdom Atomic Energy Authority,United Kingdom Atomic Energy Authority,23/01/2016,SUBSISTENCE,FUSION,EMPLOYEE EXPENSES,100793119,244.49,
United Kingdom Atomic Energy Authority,United Kingdom Atomic Energy Authority,16/01/2016,PROFESSIONAL SUBSCRIPTION,FUSION,EMPLOYEE EXPENSES,100792964,244.80,
United Kingdom Atomic Energy Authority,United Kingdom Atomic Energy Authority,08/01/2016,EFDA TRAVEL EXPENSES,FUSION,EMPLOYEE EXPENSES,100792813,248.96,
United Kingdom Atomic Energy Authority,United Kingdom Atomic Energy Authority,16/01/2016,PROFESSIONAL SUBSCRIPTION,FUSION,EMPLOYEE EXPENSES,100792953,253.30,
United Kingdom Atomic Energy Authority,United Kingdom Atomic Energy Authority,08/01/2016,PROFESSIONAL SUBSCRIPTION,FUSION,EMPLOYEE EXPENSES,100792803,253.30,
United Kingdom Atomic Energy Authority,United Kingdom Atomic Energy Authority,08/01/2016,PROFESSIONAL SUBSCRIPTION,FUSION,EMPLOYEE EXPENSES,100792818,253.30,
United Kingdom Atomic Energy Authority,United Kingdom Atomic Energy Authority,08/01/2016,PROFESSIONAL SUBSCRIPTION,FUSION,EMPLOYEE EXPENSES,100792832,253.30,
United Kingdom Atomic Energy Authority,United Kingdom Atomic Energy Authority,16/01/2016,PROFESSIONAL SUBSCRIPTION,FUSION,EMPLOYEE EXPENSES,100792943,253.30,
United Kingdom Atomic Energy Authority,United Kingdom Atomic Energy Authority,16/01/2016,PROFESSIONAL SUBSCRIPTION,FUSION,EMPLOYEE EXPENSES,100792951,253.30,
United Kingdom Atomic Energy Authority,United Kingdom Atomic Energy Authority,16/01/2016,PROFESSIONAL SUBSCRIPTION,FUSION,EMPLOYEE EXPENSES,100792954,253.30,
United Kingdom Atomic Energy Authority,United Kingdom Atomic Energy Authority,16/01/2016,PROFESSIONAL SUBSCRIPTION,FUSION,EMPLOYEE EXPENSES,100792957,253.30,
United Kingdom Atomic Energy Authority,United Kingdom Atomic Energy Authority,16/01/2016,PROFESSIONAL SUBSCRIPTION,FUSION,EMPLOYEE EXPENSES,100792971,253.30,
United Kingdom Atomic Energy Authority,United Kingdom Atomic Energy Authority,23/01/2016,PROFESSIONAL SUBSCRIPTION,FUSION,EMPLOYEE EXPENSES,100793127,253.30,
United Kingdom Atomic Energy Authority,United Kingdom Atomic Energy Authority,23/01/2016,PROFESSIONAL SUBSCRIPTION,FUSION,EMPLOYEE EXPENSES,100793128,253.30,
United Kingdom Atomic Energy Authority,United Kingdom Atomic Energy Authority,16/01/2016,MILEAGE ALLOWANCE,FUSION,EMPLOYEE EXPENSES,100792965,256.50,
United Kingdom Atomic Energy Authority,United Kingdom Atomic Energy Authority,23/01/2016,SUBSISTENCE,FUSION,EMPLOYEE EXPENSES,100793121,256.73,
United Kingdom Atomic Energy Authority,United Kingdom Atomic Energy Authority,08/01/2016,PROFESSIONAL SUBSCRIPTION,FUSION,EMPLOYEE EXPENSES,100792848,259.80,
United Kingdom Atomic Energy Authority,United Kingdom Atomic Energy Authority,08/01/2016,SUBSISTENCE,FUSION,EMPLOYEE EXPENSES,100792800,263.50,
United Kingdom Atomic Energy Authority,United Kingdom Atomic Energy Authority,23/01/2016,SUBSISTENCE,FUSION,EMPLOYEE EXPENSES,100793135,265.00,
United Kingdom Atomic Energy Authority,United Kingdom Atomic Energy Authority,08/01/2016,RAIL TRAVEL,FUSION,EMPLOYEE EXPENSES,100792847,270.97,
United Kingdom Atomic Energy Authority,United Kingdom Atomic Energy Authority,23/01/2016,SUBSISTENCE,FUSION,EMPLOYEE EXPENSES,100793130,272.99,
United Kingdom Atomic Energy Authority,United Kingdom Atomic Energy Authority,08/01/2016,PROFESSIONAL SUBSCRIPTION,FUSION,EMPLOYEE EXPENSES,100792809,280.00,
United Kingdom Atomic Energy Authority,United Kingdom Atomic Energy Authority,23/01/2016,SUBSISTENCE,FUSION,EMPLOYEE EXPENSES,100793141,291.54,
United Kingdom Atomic Energy Authority,United Kingdom Atomic Energy Authority,08/01/2016,PROFESSIONAL SUBSCRIPTION,FUSION,EMPLOYEE EXPENSES,100792796,294.80,
United Kingdom Atomic Energy Authority,United Kingdom Atomic Energy Authority,08/01/2016,PROFESSIONAL SUBSCRIPTION,FUSION,EMPLOYEE EXPENSES,100792846,294.80,
United Kingdom Atomic Energy Authority,United Kingdom Atomic Energy Authority,16/01/2016,EFDA TRAVEL EXPENSES,FUSION,EMPLOYEE EXPENSES,100792947,300.86,
United Kingdom Atomic Energy Authority,United Kingdom Atomic Energy Authority,23/01/2016,SUBSISTENCE,FUSION,EMPLOYEE EXPENSES,100793133,313.06,
United Kingdom Atomic Energy Authority,United Kingdom Atomic Energy Authority,08/01/2016,SUBSISTENCE,FUSION,EMPLOYEE EXPENSES,100792804,323.15,
United Kingdom Atomic Energy Authority,United Kingdom Atomic Energy Authority,08/01/2016,EFDA TRAVEL EXPENSES,FUSION,EMPLOYEE EXPENSES,100792811,326.81,
United Kingdom Atomic Energy Authority,United Kingdom Atomic Energy Authority,23/01/2016,SUBSISTENCE,FUSION,EMPLOYEE EXPENSES,100793137,336.43,
United Kingdom Atomic Energy Authority,United Kingdom Atomic Energy Authority,23/01/2016,PROFESSIONAL SUBSCRIPTION,SUPPORT SERVICES,EMPLOYEE EXPENSES,100793149,345.00,
United Kingdom Atomic Energy Authority,United Kingdom Atomic Energy Authority,08/01/2016,SUBSISTENCE,FUSION,EMPLOYEE EXPENSES,100792790,363.40,
United Kingdom Atomic Energy Authority,United Kingdom Atomic Energy Authority,16/01/2016,OTHER EMPLOYEE EXPENSES,FUSION,EMPLOYEE EXPENSES,100792938,363.73,
United Kingdom Atomic Energy Authority,United Kingdom Atomic Energy Authority,08/01/2016,OTHER EMPLOYEE EXPENSES,FUSION,EMPLOYEE EXPENSES,100792805,372.77,
United Kingdom Atomic Energy Authority,United Kingdom Atomic Energy Authority,08/01/2016,SUBSISTENCE,FUSION,EMPLOYEE EXPENSES,100792801,382.18,
United Kingdom Atomic Energy Authority,United Kingdom Atomic Energy Authority,23/01/2016,SUBSISTENCE,FUSION,EMPLOYEE EXPENSES,100793138,397.73,
United Kingdom Atomic Energy Authority,United Kingdom Atomic Energy Authority,23/01/2016,PROFESSIONAL SUBSCRIPTION,FUSION,EMPLOYEE EXPENSES,100793148,405.00,
United Kingdom Atomic Energy Authority,United Kingdom Atomic Energy Authority,08/01/2016,SUBSISTENCE,FUSION,EMPLOYEE EXPENSES,100792823,409.12,
United Kingdom Atomic Energy Authority,United Kingdom Atomic Energy Authority,23/01/2016,SUBSISTENCE,FUSION,EMPLOYEE EXPENSES,100793124,421.67,
United Kingdom Atomic Energy Authority,United Kingdom Atomic Energy Authority,08/01/2016,SUBSISTENCE,FUSION,EMPLOYEE EXPENSES,100792793,427.68,
United Kingdom Atomic Energy Authority,United Kingdom Atomic Energy Authority,08/01/2016,OTHER EMPLOYEE EXPENSES,FUSION,EMPLOYEE EXPENSES,100792808,435.91,
United Kingdom Atomic Energy Authority,United Kingdom Atomic Energy Authority,16/01/2016,SUBSISTENCE,FUSION,EMPLOYEE EXPENSES,100792949,442.64,
United Kingdom Atomic Energy Authority,United Kingdom Atomic Energy Authority,08/01/2016,SUBSISTENCE,FUSION,EMPLOYEE EXPENSES,100792834,473.04,
United Kingdom Atomic Energy Authority,United Kingdom Atomic Energy Authority,08/01/2016,SUBSISTENCE,FUSION,EMPLOYEE EXPENSES,100792828,488.25,
United Kingdom Atomic Energy Authority,United Kingdom Atomic Energy Authority,16/01/2016,EFDA TRAVEL EXPENSES,FUSION,EMPLOYEE EXPENSES,100792948,489.71,
United Kingdom Atomic Energy Authority,United Kingdom Atomic Energy Authority,08/01/2016,SUBSISTENCE,FUSION,EMPLOYEE EXPENSES,100792839,490.73,
United Kingdom Atomic Energy Authority,United Kingdom Atomic Energy Authority,16/01/2016,PROFESSIONAL SUBSCRIPTION,PROPERTY,EMPLOYEE EXPENSES,100792933,509.00,
United Kingdom Atomic Energy Authority,United Kingdom Atomic Energy Authority,16/01/2016,SUBSISTENCE,FUSION,EMPLOYEE EXPENSES,100792939,677.00,
United Kingdom Atomic Energy Authority,United Kingdom Atomic Energy Authority,08/01/2016,SUBSISTENCE,FUSION,EMPLOYEE EXPENSES,100792805,"1,084.29",
United Kingdom Atomic Energy Authority,United Kingdom Atomic Energy Authority,16/01/2016,SUBSISTENCE,FUSION,EMPLOYEE EXPENSES,100792938,"1,113.76",
United Kingdom Atomic Energy Authority,United Kingdom Atomic Energy Authority,16/01/2016,SUBSISTENCE,FUSION,EMPLOYEE EXPENSES,100792942,"1,379.67",
United Kingdom Atomic Energy Authority,United Kingdom Atomic Energy Authority,08/01/2016,SUBSISTENCE,FUSION,EMPLOYEE EXPENSES,100792829,"2,655.44",
United Kingdom Atomic Energy Authority,United Kingdom Atomic Energy Authority,08/01/2016,SUBSISTENCE,FUSION,EMPLOYEE EXPENSES,100792808,"3,803.92",
United Kingdom Atomic Energy Authority,United Kingdom Atomic Energy Authority,08/01/2016,VEHICLE REPAIRS,PROPERTY,VISITOR EXPENSES,1900061274, 438.00,
United Kingdom Atomic Energy Authority,United Kingdom Atomic Energy Authority,20/01/2016,MATERIALS & SPARES,FUSION,Enclustra GmbH,5100331632,"-1,599.22",
United Kingdom Atomic Energy Authority,United Kingdom Atomic Energy Authority,20/01/2016,MATERIALS & SPARES,FUSION,Enclustra GmbH,5100331633,"1,599.22",
United Kingdom Atomic Energy Authority,United Kingdom Atomic Energy Authority,21/01/2016,GRANTS & AWARDS,FUSION,Engineering Development Trust,1900061294," 3,000.00",
United Kingdom Atomic Energy Authority,United Kingdom Atomic Energy Authority,08/01/2016,STUDENT SPONSORSHIPS,FUSION,European School Culham,1900061276," 60,559.38",
United Kingdom Atomic Energy Authority,United Kingdom Atomic Energy Authority,13/01/2016,GRANTS & AWARDS,FUSION,Expenses,1900061283, 318.95,
United Kingdom Atomic Energy Authority,United Kingdom Atomic Energy Authority,20/01/2016,PROFESSIONAL SERVICES,FUSION,FAITHFUL & GOULD,5100331260,"4,738.00",
United Kingdom Atomic Energy Authority,United Kingdom Atomic Energy Authority,11/01/2016,PROFESSIONAL SERVICES,FUSION,FAITHFUL & GOULD,5100330922,"9,156.55",
United Kingdom Atomic Energy Authority,United Kingdom Atomic Energy Authority,18/01/2016,MATERIALS & SPARES,FUSION,FARNELL ELECTRONIC,5100331328,0.40,
United Kingdom Atomic Energy Authority,United Kingdom Atomic Energy Authority,18/01/2016,MATERIALS & SPARES,FUSION,FARNELL ELECTRONIC,5100331252,2.00,
United Kingdom Atomic Energy Authority,United Kingdom Atomic Energy Authority,18/01/2016,MATERIALS & SPARES,FUSION,FARNELL ELECTRONIC,5100331423,2.60,
United Kingdom Atomic Energy Authority,United Kingdom Atomic Energy Authority,06/01/2016,MATERIALS & SPARES,FUSION,FARNELL ELECTRONIC,5100330681,3.74,
United Kingdom Atomic Energy Authority,United Kingdom Atomic Energy Authority,18/01/2016,MATERIALS & SPARES,FUSION,FARNELL ELECTRONIC,5100331420,3.94,
United Kingdom Atomic Energy Authority,United Kingdom Atomic Energy Authority,11/01/2016,MATERIALS & SPARES,FUSION,FARNELL ELECTRONIC,5100331009,4.08,
United Kingdom Atomic Energy Authority,United Kingdom Atomic Energy Authority,06/01/2016,MATERIALS & SPARES,FUSION,FARNELL ELECTRONIC,5100330820,7.00,
United Kingdom Atomic Energy Authority,United Kingdom Atomic Energy Authority,18/01/2016,MATERIALS & SPARES,FUSION,FARNELL ELECTRONIC,5100331279,7.50,
United Kingdom Atomic Energy Authority,United Kingdom Atomic Energy Authority,18/01/2016,MATERIALS & SPARES,FUSION,FARNELL ELECTRONIC,5100331329,10.44,
United Kingdom Atomic Energy Authority,United Kingdom Atomic Energy Authority,06/01/2016,MATERIALS & SPARES,FUSION,FARNELL ELECTRONIC,5100330742,12.96,
United Kingdom Atomic Energy Authority,United Kingdom Atomic Energy Authority,18/01/2016,MATERIALS & SPARES,FUSION,FARNELL ELECTRONIC,5100331277,13.24,
United Kingdom Atomic Energy Authority,United Kingdom Atomic Energy Authority,18/01/2016,MATERIALS & SPARES,FUSION,FARNELL ELECTRONIC,5100331250,16.70,
United Kingdom Atomic Energy Authority,United Kingdom Atomic Energy Authority,18/01/2016,MATERIALS & SPARES,FUSION,FARNELL ELECTRONIC,5100331327,20.00,
United Kingdom Atomic Energy Authority,United Kingdom Atomic Energy Authority,18/01/2016,MATERIALS & SPARES,FUSION,FARNELL ELECTRONIC,5100331248,27.72,
United Kingdom Atomic Energy Authority,United Kingdom Atomic Energy Authority,18/01/2016,MATERIALS & SPARES,FUSION,FARNELL ELECTRONIC,5100331251,27.87,
United Kingdom Atomic Energy Authority,United Kingdom Atomic Energy Authority,06/01/2016,MATERIALS & SPARES,FUSION,FARNELL ELECTRONIC,5100330651,33.45,
United Kingdom Atomic Energy Authority,United Kingdom Atomic Energy Authority,18/01/2016,MATERIALS & SPARES,FUSION,FARNELL ELECTRONIC,5100331273,43.32,
United Kingdom Atomic Energy Authority,United Kingdom Atomic Energy Authority,18/01/2016,MATERIALS & SPARES,FUSION,FARNELL ELECTRONIC,5100331249,43.32,
United Kingdom Atomic Energy Authority,United Kingdom Atomic Energy Authority,11/01/2016,MATERIALS & SPARES,FUSION,FARNELL ELECTRONIC,5100331206,43.56,
United Kingdom Atomic Energy Authority,United Kingdom Atomic Energy Authority,11/01/2016,MATERIALS & SPARES,FUSION,FARNELL ELECTRONIC,5100331196,44.82,
United Kingdom Atomic Energy Authority,United Kingdom Atomic Energy Authority,11/01/2016,MATERIALS & SPARES,FUSION,FARNELL ELECTRONIC,5100331195,50.31,
United Kingdom Atomic Energy Authority,United Kingdom Atomic Energy Authority,20/01/2016,MATERIALS & SPARES,FUSION,FARNELL ELECTRONIC,5100331419,55.16,
United Kingdom Atomic Energy Authority,United Kingdom Atomic Energy Authority,11/01/2016,MATERIALS & SPARES,FUSION,FARNELL ELECTRONIC,5100330883,94.85,
United Kingdom Atomic Energy Authority,United Kingdom Atomic Energy Authority,18/01/2016,MATERIALS & SPARES,FUSION,FARNELL ELECTRONIC,5100331265,100.96,
United Kingdom Atomic Energy Authority,United Kingdom Atomic Energy Authority,20/01/2016,MATERIALS & SPARES,FUSION,FARNELL ELECTRONIC,5100331330,108.78,
United Kingdom Atomic Energy Authority,United Kingdom Atomic Energy Authority,13/01/2016,MATERIALS & SPARES,FUSION,FARNELL ELECTRONIC,5100331014,115.09,
United Kingdom Atomic Energy Authority,United Kingdom Atomic Energy Authority,18/01/2016,MATERIALS & SPARES,FUSION,FARNELL ELECTRONIC,5100331253,115.42,
United Kingdom Atomic Energy Authority,United Kingdom Atomic Energy Authority,11/01/2016,MATERIALS & SPARES,FUSION,FARNELL ELECTRONIC,5100331199,128.04,
United Kingdom Atomic Energy Authority,United Kingdom Atomic Energy Authority,06/01/2016,MATERIALS & SPARES,FUSION,FARNELL ELECTRONIC,5100330056,128.72,
United Kingdom Atomic Energy Authority,United Kingdom Atomic Energy Authority,11/01/2016,MATERIALS & SPARES,FUSION,FARNELL ELECTRONIC,5100331005,147.55,
United Kingdom Atomic Energy Authority,United Kingdom Atomic Energy Authority,18/01/2016,MATERIALS & SPARES,FUSION,FARNELL ELECTRONIC,5100331274,155.72,
United Kingdom Atomic Energy Authority,United Kingdom Atomic Energy Authority,06/01/2016,MATERIALS & SPARES,FUSION,FARNELL ELECTRONIC,5100328815,171.04,
United Kingdom Atomic Energy Authority,United Kingdom Atomic Energy Authority,18/01/2016,MATERIALS & SPARES,FUSION,FARNELL ELECTRONIC,5100331421,177.10,
United Kingdom Atomic Energy Authority,United Kingdom Atomic Energy Authority,18/01/2016,MATERIALS & SPARES,FUSION,FARNELL ELECTRONIC,5100331278,190.58,
United Kingdom Atomic Energy Authority,United Kingdom Atomic Energy Authority,11/01/2016,MATERIALS & SPARES,FUSION,FARNELL ELECTRONIC,5100330504,255.11,
United Kingdom Atomic Energy Authority,United Kingdom Atomic Energy Authority,11/01/2016,MATERIALS & SPARES,FUSION,FARNELL ELECTRONIC,5100329884,278.80,
United Kingdom Atomic Energy Authority,United Kingdom Atomic Energy Authority,11/01/2016,MATERIALS & SPARES,FUSION,FARNELL ELECTRONIC,5100331197,279.28,
United Kingdom Atomic Energy Authority,United Kingdom Atomic Energy Authority,11/01/2016,MATERIALS & SPARES,FUSION,FARNELL ELECTRONIC,5100329736,359.25,
United Kingdom Atomic Energy Authority,United Kingdom Atomic Energy Authority,11/01/2016,MATERIALS & SPARES,FUSION,FARNELL ELECTRONIC,5100330057,780.59,
United Kingdom Atomic Energy Authority,United Kingdom Atomic Energy Authority,18/01/2016,MATERIALS & SPARES,FUSION,FARNELL ELECTRONIC,5100331469,"4,879.87",
United Kingdom Atomic Energy Authority,United Kingdom Atomic Energy Authority,13/01/2016,REPAIRS & MAINTENANCE,FUSION,FARO EUROPE GMBH CO KG,5100331051,38.54,
United Kingdom Atomic Energy Authority,United Kingdom Atomic Energy Authority,11/01/2016,MATERIALS & SPARES,FUSION,FASTFIX,5100331181,58.79,
United Kingdom Atomic Energy Authority,United Kingdom Atomic Energy Authority,18/01/2016,PLANT & EQUIPMENT,FUSION,Feedwater LTD,5100331338,719.80,
United Kingdom Atomic Energy Authority,United Kingdom Atomic Energy Authority,13/01/2016,MATERIALS & SPARES,FUSION,FILEDER FILTER LTD,5100331348,408.20,
United Kingdom Atomic Energy Authority,United Kingdom Atomic Energy Authority,11/01/2016,PLANT & EQUIPMENT,FUSION,FISHER SCIENTIFIC UK LTD,5100330962,17.04,
United Kingdom Atomic Energy Authority,United Kingdom Atomic Energy Authority,18/01/2016,PLANT & EQUIPMENT,FUSION,FISHER SCIENTIFIC UK LTD,5100331334,61.63,
United Kingdom Atomic Energy Authority,United Kingdom Atomic Energy Authority,18/01/2016,PLANT & EQUIPMENT,FUSION,FISHER SCIENTIFIC UK LTD,5100331359,62.26,
United Kingdom Atomic Energy Authority,United Kingdom Atomic Energy Authority,18/01/2016,PLANT & EQUIPMENT,FUSION,FISHER SCIENTIFIC UK LTD,5100331478,599.06,
United Kingdom Atomic Energy Authority,United Kingdom Atomic Energy Authority,11/01/2016,PLANT & EQUIPMENT,FUSION,FISHER SCIENTIFIC UK LTD,5100331058,934.30,
United Kingdom Atomic Energy Authority,United Kingdom Atomic Energy Authority,11/01/2016,PLANT & EQUIPMENT,FUSION,FISHER SCIENTIFIC UK LTD,5100330965,"1,160.40",
United Kingdom Atomic Energy Authority,United Kingdom Atomic Energy Authority,06/01/2016,PLANT & EQUIPMENT,FUSION,FISHER SCIENTIFIC UK LTD,5100330739,"2,730.49",
United Kingdom Atomic Energy Authority,United Kingdom Atomic Energy Authority,18/01/2016,STATIONERY,FUSION,FLAPS ENVELOPES LTD,5100330678,243.78,
United Kingdom Atomic Energy Authority,United Kingdom Atomic Energy Authority,13/01/2016,STATIONERY,FUSION,Flashbay Limited,1900061284, 315.00,
United Kingdom Atomic Energy Authority,United Kingdom Atomic Energy Authority,06/01/2016,MATERIALS & SPARES,FUSION,FLEXIBLE REINFORCEMENT LIMITED,5100330867,"1,475.00",
United Kingdom Atomic Energy Authority,United Kingdom Atomic Energy Authority,18/01/2016,PLANT SPARES,FUSION,FLUID CONTROL LTD,5100331347,889.30,
United Kingdom Atomic Energy Authority,United Kingdom Atomic Energy Authority,18/01/2016,TRAINING COURSE FEES,FUSION,FORGETRACK LTD,5100331172,"6,266.84",
United Kingdom Atomic Energy Authority,United Kingdom Atomic Energy Authority,13/01/2016,MATERIALS & SPARES,FUSION,FORGEWELD LTD,5100330782,324.80,
United Kingdom Atomic Energy Authority,United Kingdom Atomic Energy Authority,18/01/2016,MATERIALS & SPARES,FUSION,FORGEWELD LTD,5100331481,465.90,
United Kingdom Atomic Energy Authority,United Kingdom Atomic Energy Authority,18/01/2016,MATERIALS & SPARES,FUSION,FORGEWELD LTD,5100331269,493.50,
United Kingdom Atomic Energy Authority,United Kingdom Atomic Energy Authority,18/01/2016,MATERIALS & SPARES,FUSION,FORWARD 2000 LTD,5100331482,16.16,
United Kingdom Atomic Energy Authority,United Kingdom Atomic Energy Authority,20/01/2016,MATERIALS & SPARES,FUSION,FORWARD 2000 LTD,5100331493,84.70,
United Kingdom Atomic Energy Authority,United Kingdom Atomic Energy Authority,11/01/2016,PLANT SPARES,FUSION,Fundamentals Limited,1900061279," 2,328.00",
United Kingdom Atomic Energy Authority,United Kingdom Atomic Energy Authority,11/01/2016,MATERIALS & SPARES,FUSION,GAS CONTROL EQUIPMENT LTD,5100330985,"1,078.00",
United Kingdom Atomic Energy Authority,United Kingdom Atomic Energy Authority,11/01/2016,PROFESSIONAL SERVICES,FUSION,GAU-Radioanalytical Laboratories,5100330598,340.00,
United Kingdom Atomic Energy Authority,United Kingdom Atomic Energy Authority,11/01/2016,PROFESSIONAL SERVICES,FUSION,GLANVILLE CONSULTANTS,5100331257,347.92,
United Kingdom Atomic Energy Authority,United Kingdom Atomic Energy Authority,11/01/2016,PROFESSIONAL SERVICES,FUSION,GLANVILLE CONSULTANTS,5100331184,"1,096.90",
United Kingdom Atomic Energy Authority,United Kingdom Atomic Energy Authority,13/01/2016,SITE SUPPORT SERVICES,PROPERTY,GO PLANT LTD,5100331171,341.00,
United Kingdom Atomic Energy Authority,United Kingdom Atomic Energy Authority,11/01/2016,PROFESSIONAL SERVICES,SUPPORT SERVICES,Government Actuary's Department,5100331167,"44,449.64",
United Kingdom Atomic Energy Authority,United Kingdom Atomic Energy Authority,11/01/2016,TAXIS,FUSION,HAROLDS CARS,5100331135,"4,682.82",
United Kingdom Atomic Energy Authority,United Kingdom Atomic Energy Authority,11/01/2016,MATERIALS & SPARES,FUSION,Harting Ltd,5100331169,78.64,
United Kingdom Atomic Energy Authority,United Kingdom Atomic Energy Authority,13/01/2016,PROFESSIONAL SERVICES,FUSION,HILLS WASTE SOLUTIONS LTD,5100331158,10.00,
United Kingdom Atomic Energy Authority,United Kingdom Atomic Energy Authority,13/01/2016,PROFESSIONAL SERVICES,FUSION,HILLS WASTE SOLUTIONS LTD,5100331154,25.00,
United Kingdom Atomic Energy Authority,United Kingdom Atomic Energy Authority,13/01/2016,PROFESSIONAL SERVICES,FUSION,HILLS WASTE SOLUTIONS LTD,5100331151,219.00,
United Kingdom Atomic Energy Authority,United Kingdom Atomic Energy Authority,13/01/2016,PROFESSIONAL SERVICES,FUSION,HILLS WASTE SOLUTIONS LTD,5100331159,225.10,
United Kingdom Atomic Energy Authority,United Kingdom Atomic Energy Authority,13/01/2016,PROFESSIONAL SERVICES,FUSION,HILLS WASTE SOLUTIONS LTD,5100331175,240.00,
United Kingdom Atomic Energy Authority,United Kingdom Atomic Energy Authority,13/01/2016,PROFESSIONAL SERVICES,FUSION,HILLS WASTE SOLUTIONS LTD,5100331157,261.10,
United Kingdom Atomic Energy Authority,United Kingdom Atomic Energy Authority,13/01/2016,PROFESSIONAL SERVICES,FUSION,HILLS WASTE SOLUTIONS LTD,5100331149,282.56,
United Kingdom Atomic Energy Authority,United Kingdom Atomic Energy Authority,13/01/2016,PROFESSIONAL SERVICES,FUSION,HILLS WASTE SOLUTIONS LTD,5100331134,"4,244.63",
United Kingdom Atomic Energy Authority,United Kingdom Atomic Energy Authority,18/01/2016,STATIONERY,FUSION,HOBS REPROGRAPHICS PLC,5100331403,3.99,
United Kingdom Atomic Energy Authority,United Kingdom Atomic Energy Authority,18/01/2016,TRAVEL,SUPPORT SERVICES,Hogg Robinson(Travel)Ltd T/A HRG UK,5100331264,"5,597.82",
United Kingdom Atomic Energy Authority,United Kingdom Atomic Energy Authority,13/01/2016,PROFESSIONAL SERVICES,FUSION,HONEYWELL ANALYTICS (SALES &SERVICE,5100330999,"2,665.00",
United Kingdom Atomic Energy Authority,United Kingdom Atomic Energy Authority,13/01/2016,PROFESSIONAL SERVICES,FUSION,HONEYWELL ANALYTICS (SALES &SERVICE,5100330777,"4,609.08",
United Kingdom Atomic Energy Authority,United Kingdom Atomic Energy Authority,11/01/2016,CLEANING,FUSION,HYDROBLAST,5100331065,285.00,
United Kingdom Atomic Energy Authority,United Kingdom Atomic Energy Authority,11/01/2016,CLEANING,FUSION,HYDROBLAST,5100330107,310.00,
United Kingdom Atomic Energy Authority,United Kingdom Atomic Energy Authority,13/01/2016,CLEANING,FUSION,HYDROBLAST,5100331177,405.00,
United Kingdom Atomic Energy Authority,United Kingdom Atomic Energy Authority,11/01/2016,CLEANING,FUSION,HYDROBLAST,5100331066,450.00,
United Kingdom Atomic Energy Authority,United Kingdom Atomic Energy Authority,20/01/2016,CLEANING,FUSION,HYDROBLAST,5100331474,460.00,
United Kingdom Atomic Energy Authority,United Kingdom Atomic Energy Authority,11/01/2016,CLEANING,FUSION,HYDROBLAST,5100330877,655.00,
United Kingdom Atomic Energy Authority,United Kingdom Atomic Energy Authority,11/01/2016,PROFESSIONAL SERVICES,FUSION,HYTEC ELECTRONICS LTD,5100330687,"3,049.20",
United Kingdom Atomic Energy Authority,United Kingdom Atomic Energy Authority,18/01/2016,MEDICAL EXPENSES,FUSION,IMASS LTD,5100330256,"4,562.50",
United Kingdom Atomic Energy Authority,United Kingdom Atomic Energy Authority,18/01/2016,MEDICAL EXPENSES,FUSION,IMASS LTD,5100331003,"4,562.50",
United Kingdom Atomic Energy Authority,United Kingdom Atomic Energy Authority,12/01/2016,PLANT & EQUIPMENT,FUSION,Industrial Electronic Wiring Ltd,1900061280, 944.39,
United Kingdom Atomic Energy Authority,United Kingdom Atomic Energy Authority,11/01/2016,MATERIALS & SPARES,FUSION,Industrial Technical Ltd,5100330971,"1,359.50",
United Kingdom Atomic Energy Authority,United Kingdom Atomic Energy Authority,11/01/2016,MATERIALS & SPARES,FUSION,Industrial Technical Ltd,5100330972,"1,359.50",
United Kingdom Atomic Energy Authority,United Kingdom Atomic Energy Authority,06/01/2016,PLANT & EQUIPMENT,FUSION,INSIGHT DIRECT LTD,5100330731,688.99,
United Kingdom Atomic Energy Authority,United Kingdom Atomic Energy Authority,11/01/2016,PLANT & EQUIPMENT,FUSION,INSIGHT DIRECT LTD,5100330876,688.99,
United Kingdom Atomic Energy Authority,United Kingdom Atomic Energy Authority,11/01/2016,MATERIALS & SPARES,FUSION,INSULATION CONTRACTING SERVICES,5100331187,"2,186.12",
United Kingdom Atomic Energy Authority,United Kingdom Atomic Energy Authority,11/01/2016,MATERIALS & SPARES,PROPERTY,INSULATION CONTRACTING SERVICES,5100331188,"2,897.05",
United Kingdom Atomic Energy Authority,United Kingdom Atomic Energy Authority,13/01/2016,BOOKS & PUBLICATIONS,FUSION,IOP Publishing Ltd - EUR,5100331091,843.75,
United Kingdom Atomic Energy Authority,United Kingdom Atomic Energy Authority,13/01/2016,BOOKS & PUBLICATIONS,FUSION,IOP Publishing Ltd - EUR,5100331083,937.50,
United Kingdom Atomic Energy Authority,United Kingdom Atomic Energy Authority,13/01/2016,BOOKS & PUBLICATIONS,FUSION,IOP Publishing Ltd - EUR,5100331086,"1,031.25",
United Kingdom Atomic Energy Authority,United Kingdom Atomic Energy Authority,13/01/2016,BOOKS & PUBLICATIONS,FUSION,IOP Publishing Ltd - EUR,5100331094,"1,031.25",
United Kingdom Atomic Energy Authority,United Kingdom Atomic Energy Authority,13/01/2016,BOOKS & PUBLICATIONS,FUSION,IOP Publishing Ltd - EUR,5100331090,"1,125.00",
United Kingdom Atomic Energy Authority,United Kingdom Atomic Energy Authority,13/01/2016,BOOKS & PUBLICATIONS,FUSION,IOP Publishing Ltd - EUR,5100331084,"1,218.75",
United Kingdom Atomic Energy Authority,United Kingdom Atomic Energy Authority,13/01/2016,BOOKS & PUBLICATIONS,FUSION,IOP Publishing Ltd - EUR,5100331093,"1,218.75",
United Kingdom Atomic Energy Authority,United Kingdom Atomic Energy Authority,13/01/2016,BOOKS & PUBLICATIONS,FUSION,IOP Publishing Ltd - EUR,5100331089,"1,312.49",
United Kingdom Atomic Energy Authority,United Kingdom Atomic Energy Authority,13/01/2016,BOOKS & PUBLICATIONS,FUSION,IOP Publishing Ltd - EUR,5100331092,"1,312.49",
United Kingdom Atomic Energy Authority,United Kingdom Atomic Energy Authority,13/01/2016,BOOKS & PUBLICATIONS,FUSION,IOP Publishing Ltd - EUR,5100331095,"1,406.24",
United Kingdom Atomic Energy Authority,United Kingdom Atomic Energy Authority,13/01/2016,BOOKS & PUBLICATIONS,FUSION,IOP Publishing Ltd - EUR,5100331088,"1,687.49",
United Kingdom Atomic Energy Authority,United Kingdom Atomic Energy Authority,13/01/2016,PLANT & EQUIPMENT,PROPERTY,IPM FITTINGS,5100331063,124.40,
United Kingdom Atomic Energy Authority,United Kingdom Atomic Energy Authority,11/01/2016,PLANT & EQUIPMENT,FUSION,IPM FITTINGS,5100331061,147.98,
United Kingdom Atomic Energy Authority,United Kingdom Atomic Energy Authority,11/01/2016,PLANT & EQUIPMENT,FUSION,IPM FITTINGS,5100331060,184.07,
United Kingdom Atomic Energy Authority,United Kingdom Atomic Energy Authority,11/01/2016,PLANT & EQUIPMENT,FUSION,IPM FITTINGS,5100331062,490.31,
United Kingdom Atomic Energy Authority,United Kingdom Atomic Energy Authority,13/01/2016,PLANT & EQUIPMENT,FUSION,IPM FITTINGS,5100331059,614.33,
United Kingdom Atomic Energy Authority,United Kingdom Atomic Energy Authority,06/01/2016,PLANT SPARES,FUSION,IPT-Albrecht,5100330784,364.83,
United Kingdom Atomic Energy Authority,United Kingdom Atomic Energy Authority,06/01/2016,MATERIALS & SPARES,FUSION,ISIS FLUID CONTROL LIMITED,5100330677,"1,578.12",
United Kingdom Atomic Energy Authority,United Kingdom Atomic Energy Authority,18/01/2016,PLANT & EQUIPMENT,FUSION,Island Optics Ltd,5100330936,"1,225.00",
United Kingdom Atomic Energy Authority,United Kingdom Atomic Energy Authority,06/01/2016,SOFTWARE,FUSION,ITT VISUAL INFORMATION SOLUTIONS,5100330721,"19,800.00",
United Kingdom Atomic Energy Authority,United Kingdom Atomic Energy Authority,11/01/2016,PLANT & EQUIPMENT,FUSION,J & J PNEUMATICS LTD,5100330776,"1,926.58",
United Kingdom Atomic Energy Authority,United Kingdom Atomic Energy Authority,06/01/2016,PLANT & EQUIPMENT,FUSION,JEMA,5100330846,"-2,243.19",
United Kingdom Atomic Energy Authority,United Kingdom Atomic Energy Authority,06/01/2016,PLANT & EQUIPMENT,FUSION,JEMA,5100330845,"44,863.75",
United Kingdom Atomic Energy Authority,United Kingdom Atomic Energy Authority,06/01/2016,PLANT & EQUIPMENT,FUSION,JEMA,5100330844,"51,054.18",
United Kingdom Atomic Energy Authority,United Kingdom Atomic Energy Authority,18/01/2016,PLANT & EQUIPMENT,FUSION,KAISER & KRAFT LTD,5100330967,"1,139.40",
United Kingdom Atomic Energy Authority,United Kingdom Atomic Energy Authority,20/01/2016,PROFESSIONAL SERVICES,PROPERTY,KEMP & KEMP,5100330764,"1,980.00",
United Kingdom Atomic Energy Authority,United Kingdom Atomic Energy Authority,20/01/2016,COMPUTER REPAIRS,FUSION,KEMPSTON CONTROLS,5100331186,-479.57,
United Kingdom Atomic Energy Authority,United Kingdom Atomic Energy Authority,20/01/2016,COMPUTER REPAIRS,FUSION,KEMPSTON CONTROLS,5100331173,738.00,
United Kingdom Atomic Energy Authority,United Kingdom Atomic Energy Authority,11/01/2016,LEGAL FEES,SUPPORT SERVICES,KEOGHS,5100331202,84.00,
United Kingdom Atomic Energy Authority,United Kingdom Atomic Energy Authority,11/01/2016,LEGAL FEES,SUPPORT SERVICES,KEOGHS,5100331200,94.50,
United Kingdom Atomic Energy Authority,United Kingdom Atomic Energy Authority,11/01/2016,LEGAL FEES,SUPPORT SERVICES,KEOGHS,5100331203,157.50,
United Kingdom Atomic Energy Authority,United Kingdom Atomic Energy Authority,11/01/2016,LEGAL FEES,SUPPORT SERVICES,KEOGHS,5100331270,168.00,
United Kingdom Atomic Energy Authority,United Kingdom Atomic Energy Authority,11/01/2016,LEGAL FEES,SUPPORT SERVICES,KEOGHS,5100331201,199.50,
United Kingdom Atomic Energy Authority,United Kingdom Atomic Energy Authority,18/01/2016,LEGAL FEES,SUPPORT SERVICES,KEOGHS,5100331533,312.50,
United Kingdom Atomic Energy Authority,United Kingdom Atomic Energy Authority,11/01/2016,LEGAL FEES,SUPPORT SERVICES,KEOGHS,5100331271,399.00,
United Kingdom Atomic Energy Authority,United Kingdom Atomic Energy Authority,11/01/2016,LEGAL FEES,SUPPORT SERVICES,KEOGHS,5100331204,409.50,
United Kingdom Atomic Energy Authority,United Kingdom Atomic Energy Authority,11/01/2016,LEGAL FEES,SUPPORT SERVICES,KEOGHS,5100331205,987.00,
United Kingdom Atomic Energy Authority,United Kingdom Atomic Energy Authority,11/01/2016,MATERIALS & SPARES,PROPERTY,KEY INDUSTRIAL EQUIPMENT LTD,5100330695,25.00,
United Kingdom Atomic Energy Authority,United Kingdom Atomic Energy Authority,06/01/2016,MATERIALS & SPARES,PROPERTY,KEY INDUSTRIAL EQUIPMENT LTD,5100330861,35.00,
United Kingdom Atomic Energy Authority,United Kingdom Atomic Energy Authority,11/01/2016,MATERIALS & SPARES,FUSION,KEY INDUSTRIAL EQUIPMENT LTD,5100330944,476.00,
United Kingdom Atomic Energy Authority,United Kingdom Atomic Energy Authority,18/01/2016,BUILDING REPAIRS,FUSION,KNOWLES & SONS (OXFORD) LTD,5100331326,25.00,
United Kingdom Atomic Energy Authority,United Kingdom Atomic Energy Authority,18/01/2016,BUILDING REPAIRS,FUSION,KNOWLES & SONS (OXFORD) LTD,5100331325,25.00,
United Kingdom Atomic Energy Authority,United Kingdom Atomic Energy Authority,18/01/2016,BUILDING REPAIRS,PROPERTY,KNOWLES & SONS (OXFORD) LTD,5100331324,25.00,
United Kingdom Atomic Energy Authority,United Kingdom Atomic Energy Authority,18/01/2016,BUILDING REPAIRS,SUPPORT SERVICES,KNOWLES & SONS (OXFORD) LTD,5100331323,26.99,
United Kingdom Atomic Energy Authority,United Kingdom Atomic Energy Authority,18/01/2016,BUILDING REPAIRS,PROPERTY,KNOWLES & SONS (OXFORD) LTD,5100331322,26.99,
United Kingdom Atomic Energy Authority,United Kingdom Atomic Energy Authority,18/01/2016,BUILDING REPAIRS,PROPERTY,KNOWLES & SONS (OXFORD) LTD,5100331321,37.19,
United Kingdom Atomic Energy Authority,United Kingdom Atomic Energy Authority,18/01/2016,BUILDING REPAIRS,PROPERTY,KNOWLES & SONS (OXFORD) LTD,5100331318,40.64,
United Kingdom Atomic Energy Authority,United Kingdom Atomic Energy Authority,18/01/2016,BUILDING REPAIRS,FUSION,KNOWLES & SONS (OXFORD) LTD,5100331317,40.91,
United Kingdom Atomic Energy Authority,United Kingdom Atomic Energy Authority,18/01/2016,BUILDING REPAIRS,SUPPORT SERVICES,KNOWLES & SONS (OXFORD) LTD,5100331316,49.28,
United Kingdom Atomic Energy Authority,United Kingdom Atomic Energy Authority,18/01/2016,BUILDING REPAIRS,PROPERTY,KNOWLES & SONS (OXFORD) LTD,5100331315,61.59,
United Kingdom Atomic Energy Authority,United Kingdom Atomic Energy Authority,18/01/2016,BUILDING REPAIRS,PROPERTY,KNOWLES & SONS (OXFORD) LTD,5100331313,74.79,
United Kingdom Atomic Energy Authority,United Kingdom Atomic Energy Authority,18/01/2016,BUILDING REPAIRS,PROPERTY,KNOWLES & SONS (OXFORD) LTD,5100331311,106.91,
United Kingdom Atomic Energy Authority,United Kingdom Atomic Energy Authority,18/01/2016,BUILDING REPAIRS,FUSION,KNOWLES & SONS (OXFORD) LTD,5100331292,149.58,
United Kingdom Atomic Energy Authority,United Kingdom Atomic Energy Authority,18/01/2016,BUILDING REPAIRS,SUPPORT SERVICES,KNOWLES & SONS (OXFORD) LTD,5100331291,195.76,
United Kingdom Atomic Energy Authority,United Kingdom Atomic Energy Authority,18/01/2016,BUILDING REPAIRS,PROPERTY,KNOWLES & SONS (OXFORD) LTD,5100331290,307.25,
United Kingdom Atomic Energy Authority,United Kingdom Atomic Energy Authority,18/01/2016,BUILDING REPAIRS,PROPERTY,KNOWLES & SONS (OXFORD) LTD,5100331289,720.05,
United Kingdom Atomic Energy Authority,United Kingdom Atomic Energy Authority,18/01/2016,BUILDING REPAIRS,FUSION,KNOWLES & SONS (OXFORD) LTD,5100331288,792.00,
United Kingdom Atomic Energy Authority,United Kingdom Atomic Energy Authority,18/01/2016,BUILDING REPAIRS,FUSION,KNOWLES & SONS (OXFORD) LTD,5100331287,819.65,
United Kingdom Atomic Energy Authority,United Kingdom Atomic Energy Authority,18/01/2016,BUILDING REPAIRS,FUSION,KNOWLES & SONS (OXFORD) LTD,5100331286,853.85,
United Kingdom Atomic Energy Authority,United Kingdom Atomic Energy Authority,18/01/2016,BUILDING REPAIRS,FUSION,KNOWLES & SONS (OXFORD) LTD,5100331285,947.10,
United Kingdom Atomic Energy Authority,United Kingdom Atomic Energy Authority,18/01/2016,BUILDING REPAIRS,FUSION,KNOWLES & SONS (OXFORD) LTD,5100331284,"1,457.89",
United Kingdom Atomic Energy Authority,United Kingdom Atomic Energy Authority,18/01/2016,BUILDING REPAIRS,FUSION,KNOWLES & SONS (OXFORD) LTD,5100331283,"2,069.31",
United Kingdom Atomic Energy Authority,United Kingdom Atomic Energy Authority,18/01/2016,BUILDING REPAIRS,FUSION,KNOWLES & SONS (OXFORD) LTD,5100331282,"4,378.00",
United Kingdom Atomic Energy Authority,United Kingdom Atomic Energy Authority,18/01/2016,BUILDING REPAIRS,FUSION,KNOWLES & SONS (OXFORD) LTD,5100331281,"7,257.83",
United Kingdom Atomic Energy Authority,United Kingdom Atomic Energy Authority,18/01/2016,BUILDING REPAIRS,FUSION,KNOWLES & SONS (OXFORD) LTD,5100331280,"14,901.29",
United Kingdom Atomic Energy Authority,United Kingdom Atomic Energy Authority,13/01/2016,RENT OF VEHICLE & EQUIPMENT,FUSION,KONSTRUCTA SITE ACCOMMODATION HIRE,5100331223,402.00,
United Kingdom Atomic Energy Authority,United Kingdom Atomic Energy Authority,11/01/2016,MATERIALS & SPARES,FUSION,KRAUS & NAIMER LTD,5100330941,39.04,
United Kingdom Atomic Energy Authority,United Kingdom Atomic Energy Authority,11/01/2016,MATERIALS & SPARES,FUSION,KRAUS & NAIMER LTD,5100330693,592.51,
United Kingdom Atomic Energy Authority,United Kingdom Atomic Energy Authority,18/01/2016,MATERIALS & SPARES,FUSION,K-TECH SUPPLIES LTD,5100331356,120.15,
United Kingdom Atomic Energy Authority,United Kingdom Atomic Energy Authority,18/01/2016,MATERIALS & SPARES,FUSION,KURT J LESKER,5100330868,312.50,
United Kingdom Atomic Energy Authority,United Kingdom Atomic Energy Authority,06/01/2016,MATERIALS & SPARES,FUSION,KURT J LESKER,5100330730,"4,635.20",
United Kingdom Atomic Energy Authority,United Kingdom Atomic Energy Authority,06/01/2016,MATERIALS & SPARES,FUSION,Lambert Engineering Ltd,5100328341,"19,855.13",
United Kingdom Atomic Energy Authority,United Kingdom Atomic Energy Authority,13/01/2016,PLANT & EQUIPMENT,FUSION,LC Technologies ,1900061282, 682.50,
United Kingdom Atomic Energy Authority,United Kingdom Atomic Energy Authority,11/01/2016,CAR HIRE,FUSION,LEASEDRIVE VELO,5100330873,31.62,
United Kingdom Atomic Energy Authority,United Kingdom Atomic Energy Authority,18/01/2016,CAR HIRE,FUSION,LEASEDRIVE VELO,5100331368,31.62,
United Kingdom Atomic Energy Authority,United Kingdom Atomic Energy Authority,13/01/2016,CAR HIRE,FUSION,LEASEDRIVE VELO,5100330874,34.39,
United Kingdom Atomic Energy Authority,United Kingdom Atomic Energy Authority,11/01/2016,CAR HIRE,FUSION,LEASEDRIVE VELO,5100330875,36.44,
United Kingdom Atomic Energy Authority,United Kingdom Atomic Energy Authority,18/01/2016,CAR HIRE,FUSION,LEASEDRIVE VELO,5100331366,36.44,
United Kingdom Atomic Energy Authority,United Kingdom Atomic Energy Authority,18/01/2016,CAR HIRE,FUSION,LEASEDRIVE VELO,5100331503,39.80,
United Kingdom Atomic Energy Authority,United Kingdom Atomic Energy Authority,06/01/2016,CAR HIRE,SUPPORT SERVICES,LEASEDRIVE VELO,5100329371,48.06,
United Kingdom Atomic Energy Authority,United Kingdom Atomic Energy Authority,18/01/2016,CAR HIRE,FUSION,LEASEDRIVE VELO,5100331367,82.14,
United Kingdom Atomic Energy Authority,United Kingdom Atomic Energy Authority,06/01/2016,CAR HIRE,FUSION,LEASEDRIVE VELO,5100330666,91.72,
United Kingdom Atomic Energy Authority,United Kingdom Atomic Energy Authority,18/01/2016,CAR HIRE,FUSION,LEASEDRIVE VELO,5100331364,163.08,
United Kingdom Atomic Energy Authority,United Kingdom Atomic Energy Authority,13/01/2016,MATERIALS & SPARES,FUSION,Lennox Uk Ltd,5100330754,"1,231.99",
United Kingdom Atomic Energy Authority,United Kingdom Atomic Energy Authority,18/01/2016,COMPUTER REPAIRS,FUSION,LEVANT UPS LTD,5100331479,450.00,
United Kingdom Atomic Energy Authority,United Kingdom Atomic Energy Authority,18/01/2016,PLANT SPARES,FUSION,LEWVAC LLP,5100331345,230.00,
United Kingdom Atomic Energy Authority,United Kingdom Atomic Energy Authority,13/01/2016,PROFESSIONAL SERVICES,SUPPORT SERVICES,LOGICA CMG UK LTD,5100330994,"2,711.06",
United Kingdom Atomic Energy Authority,United Kingdom Atomic Energy Authority,20/01/2016,BUILDING REPAIRS,FUSION,LORNE STEWART PLC,5100331261,-167.16,
United Kingdom Atomic Energy Authority,United Kingdom Atomic Energy Authority,08/01/2016,BUILDING REPAIRS,FUSION,LORNE STEWART PLC,5100331243,-106.20,
United Kingdom Atomic Energy Authority,United Kingdom Atomic Energy Authority,08/01/2016,BUILDING REPAIRS,FUSION,LORNE STEWART PLC,5100331242,106.20,
United Kingdom Atomic Energy Authority,United Kingdom Atomic Energy Authority,20/01/2016,BUILDING REPAIRS,FUSION,LORNE STEWART PLC,5100331244,106.20,
United Kingdom Atomic Energy Authority,United Kingdom Atomic Energy Authority,20/01/2016,BUILDING REPAIRS,PROPERTY,LORNE STEWART PLC,5100331240,183.42,
United Kingdom Atomic Energy Authority,United Kingdom Atomic Energy Authority,20/01/2016,BUILDING REPAIRS,FUSION,LORNE STEWART PLC,5100331237,185.07,
United Kingdom Atomic Energy Authority,United Kingdom Atomic Energy Authority,20/01/2016,BUILDING REPAIRS,SUPPORT SERVICES,LORNE STEWART PLC,5100331235,302.34,
United Kingdom Atomic Energy Authority,United Kingdom Atomic Energy Authority,20/01/2016,BUILDING REPAIRS,PROPERTY,LORNE STEWART PLC,5100331227,350.43,
United Kingdom Atomic Energy Authority,United Kingdom Atomic Energy Authority,20/01/2016,BUILDING REPAIRS,FUSION,LORNE STEWART PLC,5100331245,447.97,
United Kingdom Atomic Energy Authority,United Kingdom Atomic Energy Authority,20/01/2016,BUILDING REPAIRS,PROPERTY,LORNE STEWART PLC,5100331224,700.85,
United Kingdom Atomic Energy Authority,United Kingdom Atomic Energy Authority,20/01/2016,BUILDING REPAIRS,FUSION,LORNE STEWART PLC,5100331247,722.26,
United Kingdom Atomic Energy Authority,United Kingdom Atomic Energy Authority,20/01/2016,BUILDING REPAIRS,PROPERTY,LORNE STEWART PLC,5100331241,732.02,
United Kingdom Atomic Energy Authority,United Kingdom Atomic Energy Authority,20/01/2016,BUILDING REPAIRS,FUSION,LORNE STEWART PLC,5100331246,941.10,
United Kingdom Atomic Energy Authority,United Kingdom Atomic Energy Authority,20/01/2016,BUILDING REPAIRS,PROPERTY,LORNE STEWART PLC,5100331231,983.34,
United Kingdom Atomic Energy Authority,United Kingdom Atomic Energy Authority,20/01/2016,BUILDING REPAIRS,PROPERTY,LORNE STEWART PLC,5100331239,999.66,
United Kingdom Atomic Energy Authority,United Kingdom Atomic Energy Authority,20/01/2016,BUILDING REPAIRS,PROPERTY,LORNE STEWART PLC,5100331228,"1,880.74",
United Kingdom Atomic Energy Authority,United Kingdom Atomic Energy Authority,20/01/2016,BUILDING REPAIRS,PROPERTY,LORNE STEWART PLC,5100331234,"3,123.75",
United Kingdom Atomic Energy Authority,United Kingdom Atomic Energy Authority,20/01/2016,BUILDING REPAIRS,PROPERTY,LORNE STEWART PLC,5100331219,"3,474.78",
United Kingdom Atomic Energy Authority,United Kingdom Atomic Energy Authority,20/01/2016,BUILDING REPAIRS,PROPERTY,LORNE STEWART PLC,5100331238,"4,546.87",
United Kingdom Atomic Energy Authority,United Kingdom Atomic Energy Authority,20/01/2016,BUILDING REPAIRS,FUSION,LORNE STEWART PLC,5100331229,"5,061.13",
United Kingdom Atomic Energy Authority,United Kingdom Atomic Energy Authority,20/01/2016,BUILDING REPAIRS,FUSION,LORNE STEWART PLC,5100331236,"5,530.68",
United Kingdom Atomic Energy Authority,United Kingdom Atomic Energy Authority,20/01/2016,BUILDING REPAIRS,FUSION,LORNE STEWART PLC,5100331222,"6,196.57",
United Kingdom Atomic Energy Authority,United Kingdom Atomic Energy Authority,20/01/2016,BUILDING REPAIRS,PROPERTY,LORNE STEWART PLC,5100331232,"11,286.03",
United Kingdom Atomic Energy Authority,United Kingdom Atomic Energy Authority,20/01/2016,BUILDING REPAIRS,PROPERTY,LORNE STEWART PLC,5100331218,"12,217.38",
United Kingdom Atomic Energy Authority,United Kingdom Atomic Energy Authority,20/01/2016,BUILDING REPAIRS,FUSION,LORNE STEWART PLC,5100331230,"18,507.83",
United Kingdom Atomic Energy Authority,United Kingdom Atomic Energy Authority,20/01/2016,BUILDING REPAIRS,FUSION,LORNE STEWART PLC,5100331220,"19,702.84",
United Kingdom Atomic Energy Authority,United Kingdom Atomic Energy Authority,20/01/2016,BUILDING REPAIRS,PROPERTY,LORNE STEWART PLC,5100331233,"34,855.64",
United Kingdom Atomic Energy Authority,United Kingdom Atomic Energy Authority,18/01/2016,STATIONERY,FUSION,LYRECO UK LIMITED,5100331497,-17.98,
United Kingdom Atomic Energy Authority,United Kingdom Atomic Energy Authority,18/01/2016,STATIONERY,FUSION,LYRECO UK LIMITED,5100331452,8.99,
United Kingdom Atomic Energy Authority,United Kingdom Atomic Energy Authority,18/01/2016,STATIONERY,FUSION,LYRECO UK LIMITED,5100331454,17.98,
United Kingdom Atomic Energy Authority,United Kingdom Atomic Energy Authority,11/01/2016,STATIONERY,FUSION,LYRECO UK LIMITED,5100330989,68.10,
United Kingdom Atomic Energy Authority,United Kingdom Atomic Energy Authority,18/01/2016,STATIONERY,FUSION,LYRECO UK LIMITED,5100331455,129.84,
United Kingdom Atomic Energy Authority,United Kingdom Atomic Energy Authority,06/01/2016,STATIONERY,FUSION,LYRECO UK LIMITED,5100330869,186.43,
United Kingdom Atomic Energy Authority,United Kingdom Atomic Energy Authority,06/01/2016,STATIONERY,FUSION,LYRECO UK LIMITED,5100330870,215.79,
United Kingdom Atomic Energy Authority,United Kingdom Atomic Energy Authority,18/01/2016,STATIONERY,SUPPORT SERVICES,LYRECO UK LIMITED,5100331456,308.80,
United Kingdom Atomic Energy Authority,United Kingdom Atomic Energy Authority,13/01/2016,STATIONERY,FUSION,LYRECO UK LIMITED,5100330641,578.91,
United Kingdom Atomic Energy Authority,United Kingdom Atomic Energy Authority,18/01/2016,STATIONERY,FUSION,LYRECO UK LIMITED,5100331450,582.44,
United Kingdom Atomic Energy Authority,United Kingdom Atomic Energy Authority,11/01/2016,DESIGN & CONSTRUCTION,FUSION,M.C. INTEG Limited,5100330924,"1,082.50",
United Kingdom Atomic Energy Authority,United Kingdom Atomic Energy Authority,06/01/2016,DESIGN & CONSTRUCTION,FUSION,M.C. INTEG Limited,5100330541,"14,072.50",
United Kingdom Atomic Energy Authority,United Kingdom Atomic Energy Authority,18/01/2016,PROFESSIONAL SERVICES,FUSION,MACHINING TECHNOLOGY (MACH-TECH),5100331355,"3,485.13",
United Kingdom Atomic Energy Authority,United Kingdom Atomic Energy Authority,06/01/2016,CONSUMABLES,FUSION,MacHowie Transport ltd,5100330850,750.00,
United Kingdom Atomic Energy Authority,United Kingdom Atomic Energy Authority,13/01/2016,MATERIALS & SPARES,FUSION,MANN+HUMMEL Vokes Air Ltd,5100331352,440.00,
United Kingdom Atomic Energy Authority,United Kingdom Atomic Energy Authority,06/01/2016,PROFESSIONAL SERVICES,FUSION,MCBAINS COOPER,5100330854,"1,000.00",
United Kingdom Atomic Energy Authority,United Kingdom Atomic Energy Authority,06/01/2016,PROFESSIONAL SERVICES,FUSION,MCBAINS COOPER,5100330806,"1,500.00",
United Kingdom Atomic Energy Authority,United Kingdom Atomic Energy Authority,20/01/2016,PLANT & EQUIPMENT,FUSION,MCDC VACCUUM LTD,5100331424,929.00,
United Kingdom Atomic Energy Authority,United Kingdom Atomic Energy Authority,18/01/2016,PROFESSIONAL SERVICES,SUPPORT SERVICES,Medigold Health Consultancy Ltd,5100331429,107.50,
United Kingdom Atomic Energy Authority,United Kingdom Atomic Energy Authority,18/01/2016,PROFESSIONAL SERVICES,SUPPORT SERVICES,Medigold Health Consultancy Ltd,5100331433,112.50,
United Kingdom Atomic Energy Authority,United Kingdom Atomic Energy Authority,18/01/2016,PROFESSIONAL SERVICES,SUPPORT SERVICES,Medigold Health Consultancy Ltd,5100331434,112.50,
United Kingdom Atomic Energy Authority,United Kingdom Atomic Energy Authority,18/01/2016,PROFESSIONAL SERVICES,SUPPORT SERVICES,Medigold Health Consultancy Ltd,5100331431,170.00,
United Kingdom Atomic Energy Authority,United Kingdom Atomic Energy Authority,18/01/2016,PROFESSIONAL SERVICES,SUPPORT SERVICES,Medigold Health Consultancy Ltd,5100331438,170.00,
United Kingdom Atomic Energy Authority,United Kingdom Atomic Energy Authority,18/01/2016,PROFESSIONAL SERVICES,SUPPORT SERVICES,Medigold Health Consultancy Ltd,5100331430,227.00,
United Kingdom Atomic Energy Authority,United Kingdom Atomic Energy Authority,18/01/2016,PROFESSIONAL SERVICES,SUPPORT SERVICES,Medigold Health Consultancy Ltd,5100331435,245.00,
United Kingdom Atomic Energy Authority,United Kingdom Atomic Energy Authority,18/01/2016,PROFESSIONAL SERVICES,SUPPORT SERVICES,Medigold Health Consultancy Ltd,5100331436,245.00,
United Kingdom Atomic Energy Authority,United Kingdom Atomic Energy Authority,18/01/2016,PROFESSIONAL SERVICES,SUPPORT SERVICES,Medigold Health Consultancy Ltd,5100331432,308.60,
United Kingdom Atomic Energy Authority,United Kingdom Atomic Energy Authority,18/01/2016,PROFESSIONAL SERVICES,SUPPORT SERVICES,Medigold Health Consultancy Ltd,5100331439,309.50,
United Kingdom Atomic Energy Authority,United Kingdom Atomic Energy Authority,18/01/2016,PROFESSIONAL SERVICES,SUPPORT SERVICES,Medigold Health Consultancy Ltd,5100331437,340.00,
United Kingdom Atomic Energy Authority,United Kingdom Atomic Energy Authority,18/01/2016,PROFESSIONAL SERVICES,SUPPORT SERVICES,Medigold Health Consultancy Ltd,5100331440,442.50,
United Kingdom Atomic Energy Authority,United Kingdom Atomic Energy Authority,06/01/2016,PLANT & EQUIPMENT,FUSION,MF HYDRAULICS LTD,5100330788,56.88,
United Kingdom Atomic Energy Authority,United Kingdom Atomic Energy Authority,11/01/2016,PLANT & EQUIPMENT,FUSION,MF HYDRAULICS LTD,5100330885,108.22,
United Kingdom Atomic Energy Authority,United Kingdom Atomic Energy Authority,18/01/2016,PLANT & EQUIPMENT,FUSION,MILLHILL TOOLS LTD,5100331379,14.55,
United Kingdom Atomic Energy Authority,United Kingdom Atomic Energy Authority,18/01/2016,PLANT & EQUIPMENT,FUSION,MILLHILL TOOLS LTD,5100331386,16.25,
United Kingdom Atomic Energy Authority,United Kingdom Atomic Energy Authority,18/01/2016,PLANT & EQUIPMENT,FUSION,MILLHILL TOOLS LTD,5100331385,33.84,
United Kingdom Atomic Energy Authority,United Kingdom Atomic Energy Authority,18/01/2016,PLANT & EQUIPMENT,FUSION,MILLHILL TOOLS LTD,5100331382,43.10,
United Kingdom Atomic Energy Authority,United Kingdom Atomic Energy Authority,18/01/2016,PLANT & EQUIPMENT,FUSION,MILLHILL TOOLS LTD,5100331384,51.02,
United Kingdom Atomic Energy Authority,United Kingdom Atomic Energy Authority,18/01/2016,PLANT & EQUIPMENT,FUSION,MILLHILL TOOLS LTD,5100331388,60.46,
United Kingdom Atomic Energy Authority,United Kingdom Atomic Energy Authority,18/01/2016,PLANT & EQUIPMENT,FUSION,MILLHILL TOOLS LTD,5100331380,108.48,
United Kingdom Atomic Energy Authority,United Kingdom Atomic Energy Authority,18/01/2016,PLANT & EQUIPMENT,FUSION,MILLHILL TOOLS LTD,5100331390,214.29,
United Kingdom Atomic Energy Authority,United Kingdom Atomic Energy Authority,11/01/2016,PROFESSIONAL SERVICES,FUSION,MKS INSTRUMENT UK LIMITED,5100330894,"1,554.25",
United Kingdom Atomic Energy Authority,United Kingdom Atomic Energy Authority,11/01/2016,HIRED STAFF,FUSION,MORSON INTERNATIONAL,5100330509,"-6,007.80",
United Kingdom Atomic Energy Authority,United Kingdom Atomic Energy Authority,20/01/2016,HIRED STAFF,FUSION,MORSON INTERNATIONAL,5100331514,11.36,
United Kingdom Atomic Energy Authority,United Kingdom Atomic Energy Authority,20/01/2016,HIRED STAFF,FUSION,MORSON INTERNATIONAL,5100331516,89.00,
United Kingdom Atomic Energy Authority,United Kingdom Atomic Energy Authority,20/01/2016,HIRED STAFF,FUSION,MORSON INTERNATIONAL,5100331515,117.66,
United Kingdom Atomic Energy Authority,United Kingdom Atomic Energy Authority,11/01/2016,HIRED STAFF,FUSION,MORSON INTERNATIONAL,5100331064,"345,793.86",
United Kingdom Atomic Energy Authority,United Kingdom Atomic Energy Authority,11/01/2016,MATERIALS & SPARES,FUSION,MOUSER ELECTRONICS,5100331004,0.70,
United Kingdom Atomic Energy Authority,United Kingdom Atomic Energy Authority,13/01/2016,MATERIALS & SPARES,FUSION,MOUSER ELECTRONICS,5100331006,26.80,
United Kingdom Atomic Energy Authority,United Kingdom Atomic Energy Authority,11/01/2016,MATERIALS & SPARES,FUSION,MOUSER ELECTRONICS,5100331007,50.60,
United Kingdom Atomic Energy Authority,United Kingdom Atomic Energy Authority,18/01/2016,AUDIT FEES,SUPPORT SERVICES,NATIONAL AUDIT OFFICE,5100331416,"22,500.00",
United Kingdom Atomic Energy Authority,United Kingdom Atomic Energy Authority,11/01/2016,ELECTRICITY,FUSION,NATIONAL GRID TRANSCO,5100330933,"3,821.45",
United Kingdom Atomic Energy Authority,United Kingdom Atomic Energy Authority,11/01/2016,PLANT & EQUIPMENT,FUSION,NATIONAL INSTRUMENTS LTD,5100330975,365.23,
United Kingdom Atomic Energy Authority,United Kingdom Atomic Energy Authority,11/01/2016,PLANT & EQUIPMENT,FUSION,NATIONAL INSTRUMENTS LTD,5100330981,446.21,
United Kingdom Atomic Energy Authority,United Kingdom Atomic Energy Authority,11/01/2016,PLANT & EQUIPMENT,FUSION,NATIONAL INSTRUMENTS LTD,5100330974,"5,899.24",
United Kingdom Atomic Energy Authority,United Kingdom Atomic Energy Authority,13/01/2016,PROFESSIONAL SERVICES,FUSION,NATIONAL PHYSICAL LABORATORY MGT LT,5100330942,"1,395.00",
United Kingdom Atomic Energy Authority,United Kingdom Atomic Energy Authority,13/01/2016,MATERIALS & SPARES,FUSION,NEWBURY ELECTRONICS,5100330606,"2,923.00",
United Kingdom Atomic Energy Authority,United Kingdom Atomic Energy Authority,18/01/2016,MATERIALS & SPARES,FUSION,NEWEY & EYRE LTD,5100331333,62.22,
United Kingdom Atomic Energy Authority,United Kingdom Atomic Energy Authority,11/01/2016,PLANT & EQUIPMENT,FUSION,NOR-CAL UK LTD,5100331069,643.70,
United Kingdom Atomic Energy Authority,United Kingdom Atomic Energy Authority,11/01/2016,PLANT & EQUIPMENT,FUSION,NOR-CAL UK LTD,5100331071,"4,916.70",
United Kingdom Atomic Energy Authority,United Kingdom Atomic Energy Authority,11/01/2016,HEALTH PHYSICS,FUSION,NUVIA LIMITED,5100330781,"28,308.99",
United Kingdom Atomic Energy Authority,United Kingdom Atomic Energy Authority,11/01/2016,CLEANING,PROPERTY,OCS CLEANING & SUPPORT SERVICES,5100330930,595.50,
United Kingdom Atomic Energy Authority,United Kingdom Atomic Energy Authority,18/01/2016,CLEANING,PROPERTY,OCS CLEANING & SUPPORT SERVICES,5100331344,"1,236.28",
United Kingdom Atomic Energy Authority,United Kingdom Atomic Energy Authority,18/01/2016,CLEANING,FUSION,OCS CLEANING & SUPPORT SERVICES,5100331272,"1,645.05",
United Kingdom Atomic Energy Authority,United Kingdom Atomic Energy Authority,11/01/2016,CLEANING,PROPERTY,OCS CLEANING & SUPPORT SERVICES,5100330973,"2,181.31",
United Kingdom Atomic Energy Authority,United Kingdom Atomic Energy Authority,11/01/2016,CLEANING,PROPERTY,OCS CLEANING & SUPPORT SERVICES,5100330970,"2,948.40",
United Kingdom Atomic Energy Authority,United Kingdom Atomic Energy Authority,11/01/2016,CLEANING,PROPERTY,OCS CLEANING & SUPPORT SERVICES,5100330996,"26,191.50",
United Kingdom Atomic Energy Authority,United Kingdom Atomic Energy Authority,11/01/2016,PROFESSIONAL SERVICES,FUSION,OHES ENNVIRONMENTAL LTD,5100331161,"3,325.02",
United Kingdom Atomic Energy Authority,United Kingdom Atomic Energy Authority,18/01/2016,PLANT & EQUIPMENT,FUSION,OMEGA ENGINEERING LTD,5100331340,"1,586.43",
United Kingdom Atomic Energy Authority,United Kingdom Atomic Energy Authority,11/01/2016,MATERIALS & SPARES,FUSION,ONDRIVES LTD,5100330676,"17,487.76",
United Kingdom Atomic Energy Authority,United Kingdom Atomic Energy Authority,11/01/2016,PROFESSIONAL SERVICES,SUPPORT SERVICES,ONE FIX RECRUITMENT,5100331054,425.00,
United Kingdom Atomic Energy Authority,United Kingdom Atomic Energy Authority,13/01/2016,PROFESSIONAL SERVICES,FUSION,ONE FIX RECRUITMENT,5100331053,575.00,
United Kingdom Atomic Energy Authority,United Kingdom Atomic Energy Authority,06/01/2016,PROFESSIONAL SERVICES,FUSION,ONE FIX RECRUITMENT,5100330585,895.00,
United Kingdom Atomic Energy Authority,United Kingdom Atomic Energy Authority,13/01/2016,PROFESSIONAL SERVICES,FUSION,ONE FIX RECRUITMENT,5100331052,"2,450.00",
United Kingdom Atomic Energy Authority,United Kingdom Atomic Energy Authority,18/01/2016,PROFESSIONAL SERVICES,FUSION,ONE FIX RECRUITMENT,5100331492,"2,868.00",
United Kingdom Atomic Energy Authority,United Kingdom Atomic Energy Authority,13/01/2016,TRANSPORT & REMOVAL,FUSION,ONTARIO POWER GENERATION,5100331266,"1,111.78",
United Kingdom Atomic Energy Authority,United Kingdom Atomic Energy Authority,20/01/2016,TRANSPORT & REMOVAL,FUSION,ONTARIO POWER GENERATION,5100331267,"91,251.50",
United Kingdom Atomic Energy Authority,United Kingdom Atomic Energy Authority,06/01/2016,MATERIALS & SPARES,FUSION,OXFORD BOLTS & BEARINGS,5100330729,32.84,
United Kingdom Atomic Energy Authority,United Kingdom Atomic Energy Authority,18/01/2016,MATERIALS & SPARES,FUSION,OXFORD BOLTS & BEARINGS,5100331332,33.75,
United Kingdom Atomic Energy Authority,United Kingdom Atomic Energy Authority,06/01/2016,MATERIALS & SPARES,FUSION,OXFORD BOLTS & BEARINGS,5100330865,46.32,
United Kingdom Atomic Energy Authority,United Kingdom Atomic Energy Authority,11/01/2016,MATERIALS & SPARES,FUSION,OXFORD BOLTS & BEARINGS,5100330998,204.70,
United Kingdom Atomic Energy Authority,United Kingdom Atomic Energy Authority,06/01/2016,MATERIALS & SPARES,FUSION,OXFORD BOLTS & BEARINGS,5100330727,355.50,
United Kingdom Atomic Energy Authority,United Kingdom Atomic Energy Authority,18/01/2016,MATERIALS & SPARES,FUSION,OXFORD BOLTS & BEARINGS,5100331339,469.00,
United Kingdom Atomic Energy Authority,United Kingdom Atomic Energy Authority,11/01/2016,MATERIALS & SPARES,FUSION,OXFORD BOLTS & BEARINGS,5100330866,760.00,
United Kingdom Atomic Energy Authority,United Kingdom Atomic Energy Authority,06/01/2016,TRAINING COURSE FEES,FUSION,OXFORD UNIVERSITY,5100330275,"7,928.00",
United Kingdom Atomic Energy Authority,United Kingdom Atomic Energy Authority,18/01/2016,PLANT & EQUIPMENT,FUSION,PATRICO LTD,5100331346,"8,400.00",
United Kingdom Atomic Energy Authority,United Kingdom Atomic Energy Authority,11/01/2016,TRAINING COURSE FEES,SUPPORT SERVICES,PEARCEMAYFIELD ASSOCIATED LTD,5100330774,"1,400.00",
United Kingdom Atomic Energy Authority,United Kingdom Atomic Energy Authority,18/01/2016,HIRED STAFF,FUSION,PELICAN SOFTWARE LTD,5100331350,"4,300.88",
United Kingdom Atomic Energy Authority,United Kingdom Atomic Energy Authority,18/01/2016,HIRED STAFF,FUSION,PELICAN SOFTWARE LTD,5100331351,"5,387.06",
United Kingdom Atomic Energy Authority,United Kingdom Atomic Energy Authority,11/01/2016,HIRED STAFF,FUSION,PELICAN SOFTWARE LTD,5100331268,"5,648.50",
United Kingdom Atomic Energy Authority,United Kingdom Atomic Energy Authority,06/01/2016,HIRED STAFF,FUSION,PELICAN SOFTWARE LTD,5100330645,"5,734.50",
United Kingdom Atomic Energy Authority,United Kingdom Atomic Energy Authority,06/01/2016,HIRED STAFF,FUSION,PELICAN SOFTWARE LTD,5100330649,"6,032.10",
United Kingdom Atomic Energy Authority,United Kingdom Atomic Energy Authority,18/01/2016,PROFESSIONAL SERVICES,FUSION,PERKIN ELMER LAS UK LTD,5100331494,962.00,
United Kingdom Atomic Energy Authority,United Kingdom Atomic Energy Authority,11/01/2016,PLANT & EQUIPMENT,FUSION,PFEIFFER VACUUM UK,5100330969,191.17,
United Kingdom Atomic Energy Authority,United Kingdom Atomic Energy Authority,11/01/2016,PLANT & EQUIPMENT,FUSION,PFEIFFER VACUUM UK,5100330953,252.80,
United Kingdom Atomic Energy Authority,United Kingdom Atomic Energy Authority,11/01/2016,PLANT & EQUIPMENT,FUSION,PFEIFFER VACUUM UK,5100330968,"1,985.90",
United Kingdom Atomic Energy Authority,United Kingdom Atomic Energy Authority,11/01/2016,PLANT & EQUIPMENT,FUSION,PHS GROUP PLC,5100330990,41.21,
United Kingdom Atomic Energy Authority,United Kingdom Atomic Energy Authority,11/01/2016,PLANT & EQUIPMENT,FUSION,PHS GROUP PLC,5100330992,41.21,
United Kingdom Atomic Energy Authority,United Kingdom Atomic Energy Authority,18/01/2016,PLANT & EQUIPMENT,FUSION,PHS GROUP PLC,5100331097,41.21,
United Kingdom Atomic Energy Authority,United Kingdom Atomic Energy Authority,06/01/2016,PROFESSIONAL SERVICES,SUPPORT SERVICES,Pi Consulting (UK) Ltd,5100330801,"1,298.50",
United Kingdom Atomic Energy Authority,United Kingdom Atomic Energy Authority,11/01/2016,MATERIALS & SPARES,FUSION,Pilz Automation Technology Ltd,5100331183,168.55,
United Kingdom Atomic Energy Authority,United Kingdom Atomic Energy Authority,11/01/2016,DESIGN & CONSTRUCTION,FUSION,PIPAWAY ENGINEERING LTD,5100331178,507.00,
United Kingdom Atomic Energy Authority,United Kingdom Atomic Energy Authority,11/01/2016,MATERIALS & SPARES,FUSION,PMD (UK) LTD,5100330938,75.00,
United Kingdom Atomic Energy Authority,United Kingdom Atomic Energy Authority,11/01/2016,MATERIALS & SPARES,FUSION,PMD (UK) LTD,5100330937,177.90,
United Kingdom Atomic Energy Authority,United Kingdom Atomic Energy Authority,18/01/2016,IT SOFTWARE,SUPPORT SERVICES,PORTCULLIS COMPUTER SECURITY,5100331074,"5,875.00",
United Kingdom Atomic Energy Authority,United Kingdom Atomic Energy Authority,11/01/2016,F&F,FUSION,POSTURITE UK LTD,5100331174,182.49,
United Kingdom Atomic Energy Authority,United Kingdom Atomic Energy Authority,13/01/2016,PLANT & EQUIPMENT,FUSION,POWELL & CO,5100331000,628.00,
United Kingdom Atomic Energy Authority,United Kingdom Atomic Energy Authority,13/01/2016,STATIONERY,FUSION,PREMIER PAPER GROUP LTD,5100331353,-87.34,
United Kingdom Atomic Energy Authority,United Kingdom Atomic Energy Authority,13/01/2016,STATIONERY,FUSION,PREMIER PAPER GROUP LTD,5100330432,87.34,
United Kingdom Atomic Energy Authority,United Kingdom Atomic Energy Authority,11/01/2016,STATIONERY,FUSION,PREMIER PAPER GROUP LTD,5100331078,341.68,
United Kingdom Atomic Energy Authority,United Kingdom Atomic Energy Authority,11/01/2016,HIRED STAFF,FUSION,Projectglobe Ltd,5100328059,400.00,
United Kingdom Atomic Energy Authority,United Kingdom Atomic Energy Authority,22/01/2016,ROAD TRAVEL,FUSION,PURCHASE CARDS,100793073,500.00,
United Kingdom Atomic Energy Authority,United Kingdom Atomic Energy Authority,22/01/2016,SOFTWARE - NON-CAP,SUPPORT SERVICES,PURCHASE CARDS,100793062,531.00,
United Kingdom Atomic Energy Authority,United Kingdom Atomic Energy Authority,22/01/2016,IT EQUIPMENT: NON CAPITAL,FUSION,PURCHASE CARDS,100793069,614.69,
United Kingdom Atomic Energy Authority,United Kingdom Atomic Energy Authority,22/01/2016,SOFTWARE - NON-CAP,FUSION,PURCHASE CARDS,100793062,657.79,
United Kingdom Atomic Energy Authority,United Kingdom Atomic Energy Authority,22/01/2016,CONSUMABLES,FUSION,PURCHASE CARDS,100793083,718.00,
United Kingdom Atomic Energy Authority,United Kingdom Atomic Energy Authority,22/01/2016,SOFTWARE - NON-CAP,FUSION,PURCHASE CARDS,100793062,796.50,
United Kingdom Atomic Energy Authority,United Kingdom Atomic Energy Authority,22/01/2016,SUBSISTENCE,FUSION,PURCHASE CARDS,100793056,867.24,
United Kingdom Atomic Energy Authority,United Kingdom Atomic Energy Authority,22/01/2016,MATERIALS & SPARES,FUSION,PURCHASE CARDS,100793060,900.69,
United Kingdom Atomic Energy Authority,United Kingdom Atomic Energy Authority,11/01/2016,SOFTWARE,FUSION,Q ASSOCIATES LTD,5100330768,"1,335.62",
United Kingdom Atomic Energy Authority,United Kingdom Atomic Energy Authority,07/01/2016,PLANT & EQUIPMENT,FUSION,Qualitrol Hathaway Instruments,1900061271," 1,920.00",
United Kingdom Atomic Energy Authority,United Kingdom Atomic Energy Authority,18/01/2016,PLANT & EQUIPMENT,FUSION,QUARTZELEC LTD,5100331444,"49,466.34",
United Kingdom Atomic Energy Authority,United Kingdom Atomic Energy Authority,18/01/2016,PROFESSIONAL SERVICES,FUSION,QUEENS UNIVERSITY BELFAST,5100331467,"20,908.51",
United Kingdom Atomic Energy Authority,United Kingdom Atomic Energy Authority,13/01/2016,PROFESSIONAL SERVICES,FUSION,RADIOCARBON DATING,5100331179,"2,038.60",
United Kingdom Atomic Energy Authority,United Kingdom Atomic Energy Authority,13/01/2016,PROFESSIONAL SERVICES,FUSION,RADIOCARBON DATING,5100331180,"16,133.60",
United Kingdom Atomic Energy Authority,United Kingdom Atomic Energy Authority,11/01/2016,MATERIALS & SPARES,FUSION,RADWELL INTERNATIONAL UK LTD,5100331057,44.66,
United Kingdom Atomic Energy Authority,United Kingdom Atomic Energy Authority,18/01/2016,CONSUMABLES,FUSION,RAJAPACK LTD,5100331360,154.49,
United Kingdom Atomic Energy Authority,United Kingdom Atomic Energy Authority,18/01/2016,MATERIALS & SPARES,FUSION,REBOUND ELECTRONICS (UK) LTD,5100331445,237.50,
United Kingdom Atomic Energy Authority,United Kingdom Atomic Energy Authority,13/01/2016,IT SOFTWARE,SUPPORT SERVICES,Red Plane Ltd,5100330928,375.00,
United Kingdom Atomic Energy Authority,United Kingdom Atomic Energy Authority,18/01/2016,HIRED STAFF,FUSION,Rekan Ltd,5100331484,"17,688.93",
United Kingdom Atomic Energy Authority,United Kingdom Atomic Energy Authority,11/01/2016,SECURITY & EMERGENCY,PROPERTY,RELIANCE SECURITY GROUP PLC,5100330980,"89,051.66",
United Kingdom Atomic Energy Authority,United Kingdom Atomic Energy Authority,11/01/2016,AUDIT FEES,SUPPORT SERVICES,RESEARCH COUCILS INTERNAL AUDIT SERVICE,5100330508,"13,290.15",
United Kingdom Atomic Energy Authority,United Kingdom Atomic Energy Authority,11/01/2016,SOFTWARE,SUPPORT SERVICES,RIVO SOFTWARE LIMITED,5100330976,850.00,
United Kingdom Atomic Energy Authority,United Kingdom Atomic Energy Authority,18/01/2016,MATERIALS & SPARES,FUSION,ROCHLING ENGINEERING PLASTICS,5100331446,50.00,
United Kingdom Atomic Energy Authority,United Kingdom Atomic Energy Authority,11/01/2016,PLANT & EQUIPMENT,FUSION,ROUTECO,5100330934,37.30,
United Kingdom Atomic Energy Authority,United Kingdom Atomic Energy Authority,18/01/2016,MATERIALS & SPARES,FUSION,RS COMPONENTS LTD,5100331480,-89.99,
United Kingdom Atomic Energy Authority,United Kingdom Atomic Energy Authority,13/01/2016,MATERIALS & SPARES,FUSION,RS COMPONENTS LTD,5100331415,-28.54,
United Kingdom Atomic Energy Authority,United Kingdom Atomic Energy Authority,13/01/2016,MATERIALS & SPARES,FUSION,RS COMPONENTS LTD,5100330826,-16.25,
United Kingdom Atomic Energy Authority,United Kingdom Atomic Energy Authority,11/01/2016,MATERIALS & SPARES,FUSION,RS COMPONENTS LTD,5100331045,2.06,
United Kingdom Atomic Energy Authority,United Kingdom Atomic Energy Authority,11/01/2016,MATERIALS & SPARES,FUSION,RS COMPONENTS LTD,5100330882,2.26,
United Kingdom Atomic Energy Authority,United Kingdom Atomic Energy Authority,11/01/2016,MATERIALS & SPARES,FUSION,RS COMPONENTS LTD,5100331040,2.69,
United Kingdom Atomic Energy Authority,United Kingdom Atomic Energy Authority,11/01/2016,MATERIALS & SPARES,FUSION,RS COMPONENTS LTD,5100331118,3.41,
United Kingdom Atomic Energy Authority,United Kingdom Atomic Energy Authority,11/01/2016,MATERIALS & SPARES,FUSION,RS COMPONENTS LTD,5100330913,3.53,
United Kingdom Atomic Energy Authority,United Kingdom Atomic Energy Authority,18/01/2016,MATERIALS & SPARES,FUSION,RS COMPONENTS LTD,5100331258,4.15,
United Kingdom Atomic Energy Authority,United Kingdom Atomic Energy Authority,18/01/2016,MATERIALS & SPARES,FUSION,RS COMPONENTS LTD,5100331487,4.20,
United Kingdom Atomic Energy Authority,United Kingdom Atomic Energy Authority,11/01/2016,MATERIALS & SPARES,FUSION,RS COMPONENTS LTD,5100330879,6.05,
United Kingdom Atomic Energy Authority,United Kingdom Atomic Energy Authority,13/01/2016,MATERIALS & SPARES,FUSION,RS COMPONENTS LTD,5100331189,8.33,
United Kingdom Atomic Energy Authority,United Kingdom Atomic Energy Authority,13/01/2016,MATERIALS & SPARES,FUSION,RS COMPONENTS LTD,5100331190,8.33,
United Kingdom Atomic Energy Authority,United Kingdom Atomic Energy Authority,11/01/2016,MATERIALS & SPARES,FUSION,RS COMPONENTS LTD,5100331211,9.70,
United Kingdom Atomic Energy Authority,United Kingdom Atomic Energy Authority,11/01/2016,MATERIALS & SPARES,FUSION,RS COMPONENTS LTD,5100331192,9.71,
United Kingdom Atomic Energy Authority,United Kingdom Atomic Energy Authority,11/01/2016,MATERIALS & SPARES,FUSION,RS COMPONENTS LTD,5100329674,10.66,
United Kingdom Atomic Energy Authority,United Kingdom Atomic Energy Authority,18/01/2016,MATERIALS & SPARES,FUSION,RS COMPONENTS LTD,5100331393,12.27,
United Kingdom Atomic Energy Authority,United Kingdom Atomic Energy Authority,11/01/2016,MATERIALS & SPARES,FUSION,RS COMPONENTS LTD,5100331207,20.95,
United Kingdom Atomic Energy Authority,United Kingdom Atomic Energy Authority,11/01/2016,MATERIALS & SPARES,FUSION,RS COMPONENTS LTD,5100330920,21.66,
United Kingdom Atomic Energy Authority,United Kingdom Atomic Energy Authority,18/01/2016,MATERIALS & SPARES,FUSION,RS COMPONENTS LTD,5100331486,21.91,
United Kingdom Atomic Energy Authority,United Kingdom Atomic Energy Authority,11/01/2016,MATERIALS & SPARES,FUSION,RS COMPONENTS LTD,5100331119,21.94,
United Kingdom Atomic Energy Authority,United Kingdom Atomic Energy Authority,18/01/2016,MATERIALS & SPARES,FUSION,RS COMPONENTS LTD,5100331262,28.36,
United Kingdom Atomic Energy Authority,United Kingdom Atomic Energy Authority,18/01/2016,MATERIALS & SPARES,FUSION,RS COMPONENTS LTD,5100329250,28.54,
United Kingdom Atomic Energy Authority,United Kingdom Atomic Energy Authority,11/01/2016,MATERIALS & SPARES,FUSION,RS COMPONENTS LTD,5100330906,28.96,
United Kingdom Atomic Energy Authority,United Kingdom Atomic Energy Authority,18/01/2016,MATERIALS & SPARES,FUSION,RS COMPONENTS LTD,5100331374,32.28,
United Kingdom Atomic Energy Authority,United Kingdom Atomic Energy Authority,18/01/2016,MATERIALS & SPARES,FUSION,RS COMPONENTS LTD,5100331256,33.42,
United Kingdom Atomic Energy Authority,United Kingdom Atomic Energy Authority,18/01/2016,MATERIALS & SPARES,FUSION,RS COMPONENTS LTD,5100331502,33.70,
United Kingdom Atomic Energy Authority,United Kingdom Atomic Energy Authority,11/01/2016,MATERIALS & SPARES,FUSION,RS COMPONENTS LTD,5100331193,34.24,
United Kingdom Atomic Energy Authority,United Kingdom Atomic Energy Authority,18/01/2016,MATERIALS & SPARES,FUSION,RS COMPONENTS LTD,5100331396,34.88,
United Kingdom Atomic Energy Authority,United Kingdom Atomic Energy Authority,18/01/2016,MATERIALS & SPARES,FUSION,RS COMPONENTS LTD,5100331263,37.51,
United Kingdom Atomic Energy Authority,United Kingdom Atomic Energy Authority,11/01/2016,MATERIALS & SPARES,FUSION,RS COMPONENTS LTD,5100330993,38.27,
United Kingdom Atomic Energy Authority,United Kingdom Atomic Energy Authority,11/01/2016,MATERIALS & SPARES,FUSION,RS COMPONENTS LTD,5100330940,45.69,
United Kingdom Atomic Energy Authority,United Kingdom Atomic Energy Authority,18/01/2016,MATERIALS & SPARES,FUSION,RS COMPONENTS LTD,5100331370,46.58,
United Kingdom Atomic Energy Authority,United Kingdom Atomic Energy Authority,18/01/2016,MATERIALS & SPARES,FUSION,RS COMPONENTS LTD,5100331496,49.49,
United Kingdom Atomic Energy Authority,United Kingdom Atomic Energy Authority,18/01/2016,MATERIALS & SPARES,FUSION,RS COMPONENTS LTD,5100331488,50.01,
United Kingdom Atomic Energy Authority,United Kingdom Atomic Energy Authority,18/01/2016,MATERIALS & SPARES,FUSION,RS COMPONENTS LTD,5100331391,50.55,
United Kingdom Atomic Energy Authority,United Kingdom Atomic Energy Authority,18/01/2016,MATERIALS & SPARES,FUSION,RS COMPONENTS LTD,5100331381,50.55,
United Kingdom Atomic Energy Authority,United Kingdom Atomic Energy Authority,11/01/2016,MATERIALS & SPARES,FUSION,RS COMPONENTS LTD,5100331044,52.22,
United Kingdom Atomic Energy Authority,United Kingdom Atomic Energy Authority,11/01/2016,MATERIALS & SPARES,FUSION,RS COMPONENTS LTD,5100331214,53.37,
United Kingdom Atomic Energy Authority,United Kingdom Atomic Energy Authority,18/01/2016,MATERIALS & SPARES,FUSION,RS COMPONENTS LTD,5100331397,54.86,
United Kingdom Atomic Energy Authority,United Kingdom Atomic Energy Authority,11/01/2016,MATERIALS & SPARES,FUSION,RS COMPONENTS LTD,5100330880,55.13,
United Kingdom Atomic Energy Authority,United Kingdom Atomic Energy Authority,13/01/2016,MATERIALS & SPARES,FUSION,RS COMPONENTS LTD,5100331216,55.69,
United Kingdom Atomic Energy Authority,United Kingdom Atomic Energy Authority,11/01/2016,MATERIALS & SPARES,FUSION,RS COMPONENTS LTD,5100330932,56.74,
United Kingdom Atomic Energy Authority,United Kingdom Atomic Energy Authority,13/01/2016,MATERIALS & SPARES,FUSION,RS COMPONENTS LTD,5100331115,57.02,
United Kingdom Atomic Energy Authority,United Kingdom Atomic Energy Authority,11/01/2016,MATERIALS & SPARES,FUSION,RS COMPONENTS LTD,5100330919,57.31,
United Kingdom Atomic Energy Authority,United Kingdom Atomic Energy Authority,11/01/2016,MATERIALS & SPARES,FUSION,RS COMPONENTS LTD,5100331002,57.43,
United Kingdom Atomic Energy Authority,United Kingdom Atomic Energy Authority,18/01/2016,MATERIALS & SPARES,FUSION,RS COMPONENTS LTD,5100331389,60.68,
United Kingdom Atomic Energy Authority,United Kingdom Atomic Energy Authority,11/01/2016,MATERIALS & SPARES,FUSION,RS COMPONENTS LTD,5100331049,61.66,
United Kingdom Atomic Energy Authority,United Kingdom Atomic Energy Authority,18/01/2016,MATERIALS & SPARES,FUSION,RS COMPONENTS LTD,5100331254,61.86,
United Kingdom Atomic Energy Authority,United Kingdom Atomic Energy Authority,18/01/2016,MATERIALS & SPARES,FUSION,RS COMPONENTS LTD,5100331394,66.36,
United Kingdom Atomic Energy Authority,United Kingdom Atomic Energy Authority,11/01/2016,MATERIALS & SPARES,FUSION,RS COMPONENTS LTD,5100330995,70.71,
United Kingdom Atomic Energy Authority,United Kingdom Atomic Energy Authority,11/01/2016,MATERIALS & SPARES,FUSION,RS COMPONENTS LTD,5100331030,72.39,
United Kingdom Atomic Energy Authority,United Kingdom Atomic Energy Authority,11/01/2016,MATERIALS & SPARES,FUSION,RS COMPONENTS LTD,5100331047,73.95,
United Kingdom Atomic Energy Authority,United Kingdom Atomic Energy Authority,11/01/2016,MATERIALS & SPARES,FUSION,RS COMPONENTS LTD,5100330893,75.46,
United Kingdom Atomic Energy Authority,United Kingdom Atomic Energy Authority,11/01/2016,MATERIALS & SPARES,FUSION,RS COMPONENTS LTD,5100331023,75.48,
United Kingdom Atomic Energy Authority,United Kingdom Atomic Energy Authority,11/01/2016,MATERIALS & SPARES,FUSION,RS COMPONENTS LTD,5100331043,75.68,
United Kingdom Atomic Energy Authority,United Kingdom Atomic Energy Authority,11/01/2016,MATERIALS & SPARES,FUSION,RS COMPONENTS LTD,5100330887,81.00,
United Kingdom Atomic Energy Authority,United Kingdom Atomic Energy Authority,11/01/2016,MATERIALS & SPARES,FUSION,RS COMPONENTS LTD,5100331019,85.12,
United Kingdom Atomic Energy Authority,United Kingdom Atomic Energy Authority,13/01/2016,MATERIALS & SPARES,FUSION,RS COMPONENTS LTD,5100331209,85.22,
United Kingdom Atomic Energy Authority,United Kingdom Atomic Energy Authority,18/01/2016,MATERIALS & SPARES,FUSION,RS COMPONENTS LTD,5100331042,89.99,
United Kingdom Atomic Energy Authority,United Kingdom Atomic Energy Authority,11/01/2016,MATERIALS & SPARES,FUSION,RS COMPONENTS LTD,5100330896,96.41,
United Kingdom Atomic Energy Authority,United Kingdom Atomic Energy Authority,11/01/2016,MATERIALS & SPARES,FUSION,RS COMPONENTS LTD,5100331046,97.77,
United Kingdom Atomic Energy Authority,United Kingdom Atomic Energy Authority,18/01/2016,MATERIALS & SPARES,FUSION,RS COMPONENTS LTD,5100331505,105.44,
United Kingdom Atomic Energy Authority,United Kingdom Atomic Energy Authority,06/01/2016,MATERIALS & SPARES,FUSION,RS COMPONENTS LTD,5100329822,106.43,
United Kingdom Atomic Energy Authority,United Kingdom Atomic Energy Authority,11/01/2016,MATERIALS & SPARES,FUSION,RS COMPONENTS LTD,5100330878,107.35,
United Kingdom Atomic Energy Authority,United Kingdom Atomic Energy Authority,18/01/2016,MATERIALS & SPARES,FUSION,RS COMPONENTS LTD,5100331501,110.25,
United Kingdom Atomic Energy Authority,United Kingdom Atomic Energy Authority,11/01/2016,MATERIALS & SPARES,FUSION,RS COMPONENTS LTD,5100330881,115.47,
United Kingdom Atomic Energy Authority,United Kingdom Atomic Energy Authority,11/01/2016,MATERIALS & SPARES,FUSION,RS COMPONENTS LTD,5100330898,117.82,
United Kingdom Atomic Energy Authority,United Kingdom Atomic Energy Authority,11/01/2016,MATERIALS & SPARES,FUSION,RS COMPONENTS LTD,5100331026,155.87,
United Kingdom Atomic Energy Authority,United Kingdom Atomic Energy Authority,18/01/2016,MATERIALS & SPARES,FUSION,RS COMPONENTS LTD,5100331361,176.25,
United Kingdom Atomic Energy Authority,United Kingdom Atomic Energy Authority,18/01/2016,MATERIALS & SPARES,FUSION,RS COMPONENTS LTD,5100331369,181.62,
United Kingdom Atomic Energy Authority,United Kingdom Atomic Energy Authority,06/01/2016,MATERIALS & SPARES,FUSION,RS COMPONENTS LTD,5100330787,182.85,
United Kingdom Atomic Energy Authority,United Kingdom Atomic Energy Authority,11/01/2016,MATERIALS & SPARES,FUSION,RS COMPONENTS LTD,5100331001,184.96,
United Kingdom Atomic Energy Authority,United Kingdom Atomic Energy Authority,11/01/2016,MATERIALS & SPARES,FUSION,RS COMPONENTS LTD,5100331048,186.41,
United Kingdom Atomic Energy Authority,United Kingdom Atomic Energy Authority,18/01/2016,MATERIALS & SPARES,FUSION,RS COMPONENTS LTD,5100331395,197.84,
United Kingdom Atomic Energy Authority,United Kingdom Atomic Energy Authority,18/01/2016,MATERIALS & SPARES,FUSION,RS COMPONENTS LTD,5100331383,219.15,
United Kingdom Atomic Energy Authority,United Kingdom Atomic Energy Authority,18/01/2016,MATERIALS & SPARES,FUSION,RS COMPONENTS LTD,5100331387,223.86,
United Kingdom Atomic Energy Authority,United Kingdom Atomic Energy Authority,18/01/2016,MATERIALS & SPARES,FUSION,RS COMPONENTS LTD,5100331414,253.31,
United Kingdom Atomic Energy Authority,United Kingdom Atomic Energy Authority,18/01/2016,MATERIALS & SPARES,FUSION,RS COMPONENTS LTD,5100331392,264.31,
United Kingdom Atomic Energy Authority,United Kingdom Atomic Energy Authority,06/01/2016,MATERIALS & SPARES,FUSION,RS COMPONENTS LTD,5100329035,288.78,
United Kingdom Atomic Energy Authority,United Kingdom Atomic Energy Authority,11/01/2016,MATERIALS & SPARES,FUSION,RS COMPONENTS LTD,5100331038,290.33,
United Kingdom Atomic Energy Authority,United Kingdom Atomic Energy Authority,06/01/2016,MATERIALS & SPARES,FUSION,RS COMPONENTS LTD,5100330772,293.28,
United Kingdom Atomic Energy Authority,United Kingdom Atomic Energy Authority,11/01/2016,MATERIALS & SPARES,FUSION,RS COMPONENTS LTD,5100331208,304.50,
United Kingdom Atomic Energy Authority,United Kingdom Atomic Energy Authority,11/01/2016,MATERIALS & SPARES,FUSION,RS COMPONENTS LTD,5100331215,331.74,
United Kingdom Atomic Energy Authority,United Kingdom Atomic Energy Authority,11/01/2016,MATERIALS & SPARES,FUSION,RS COMPONENTS LTD,5100331116,339.30,
United Kingdom Atomic Energy Authority,United Kingdom Atomic Energy Authority,11/01/2016,MATERIALS & SPARES,FUSION,RS COMPONENTS LTD,5100331050,340.16,
United Kingdom Atomic Energy Authority,United Kingdom Atomic Energy Authority,11/01/2016,MATERIALS & SPARES,FUSION,RS COMPONENTS LTD,5100331041,343.60,
United Kingdom Atomic Energy Authority,United Kingdom Atomic Energy Authority,11/01/2016,MATERIALS & SPARES,FUSION,RS COMPONENTS LTD,5100331039,356.75,
United Kingdom Atomic Energy Authority,United Kingdom Atomic Energy Authority,13/01/2016,MATERIALS & SPARES,FUSION,RS COMPONENTS LTD,5100330935,412.48,
United Kingdom Atomic Energy Authority,United Kingdom Atomic Energy Authority,11/01/2016,MATERIALS & SPARES,FUSION,RS COMPONENTS LTD,5100331117,422.49,
United Kingdom Atomic Energy Authority,United Kingdom Atomic Energy Authority,18/01/2016,MATERIALS & SPARES,FUSION,RS COMPONENTS LTD,5100331504,430.70,
United Kingdom Atomic Energy Authority,United Kingdom Atomic Energy Authority,11/01/2016,MATERIALS & SPARES,FUSION,RS COMPONENTS LTD,5100330584,594.90,
United Kingdom Atomic Energy Authority,United Kingdom Atomic Energy Authority,11/01/2016,MATERIALS & SPARES,FUSION,RS COMPONENTS LTD,5100330952,679.42,
United Kingdom Atomic Energy Authority,United Kingdom Atomic Energy Authority,18/01/2016,MATERIALS & SPARES,FUSION,RS COMPONENTS LTD,5100331373,684.10,
United Kingdom Atomic Energy Authority,United Kingdom Atomic Energy Authority,11/01/2016,MATERIALS & SPARES,FUSION,RS COMPONENTS LTD,5100331035,841.40,
United Kingdom Atomic Energy Authority,United Kingdom Atomic Energy Authority,18/01/2016,MATERIALS & SPARES,FUSION,RS COMPONENTS LTD,5100331507,"1,222.71",
United Kingdom Atomic Energy Authority,United Kingdom Atomic Energy Authority,18/01/2016,MATERIALS & SPARES,FUSION,RS COMPONENTS LTD,5100331506,"1,650.00",
United Kingdom Atomic Energy Authority,United Kingdom Atomic Energy Authority,06/01/2016,MATERIALS & SPARES,FUSION,SAE-TECH LTD,5100330838,560.00,
United Kingdom Atomic Energy Authority,United Kingdom Atomic Energy Authority,11/01/2016,IT EQUIPMENT NON CAPITAL,FUSION,SCAN COMPUTERS INTERNATIONAL LTD,5100331126,69.56,
United Kingdom Atomic Energy Authority,United Kingdom Atomic Energy Authority,11/01/2016,IT EQUIPMENT NON CAPITAL,FUSION,SCAN COMPUTERS INTERNATIONAL LTD,5100331125,"1,859.68",
United Kingdom Atomic Energy Authority,United Kingdom Atomic Energy Authority,18/01/2016,PROFESSIONAL SERVICES,FUSION,SCHNEIDER ELECTRIC,5100331451,"1,644.00",
United Kingdom Atomic Energy Authority,United Kingdom Atomic Energy Authority,11/01/2016,PROFESSIONAL SERVICES,FUSION,SCIENTIFIC MANUFACTURING,5100331085,150.00,
United Kingdom Atomic Energy Authority,United Kingdom Atomic Energy Authority,06/01/2016,PROFESSIONAL SERVICES,FUSION,SCIENTIFICS LTD,5100329910,891.00,
United Kingdom Atomic Energy Authority,United Kingdom Atomic Energy Authority,11/01/2016,PROFESSIONAL SERVICES,PROPERTY,SCIENTIFICS LTD,5100330917,"1,080.00",
United Kingdom Atomic Energy Authority,United Kingdom Atomic Energy Authority,11/01/2016,PROFESSIONAL SERVICES,FUSION,SCIENTIFICS LTD,5100331075,"1,485.00",
United Kingdom Atomic Energy Authority,United Kingdom Atomic Energy Authority,11/01/2016,PROFESSIONAL SERVICES,FUSION,SCIENTIFICS LTD,5100331072,"9,445.00",
United Kingdom Atomic Energy Authority,United Kingdom Atomic Energy Authority,11/01/2016,SITE SUPPORT SERVICES,PROPERTY,SCION ESTATES,5100331123,60.00,
United Kingdom Atomic Energy Authority,United Kingdom Atomic Energy Authority,11/01/2016,SITE SUPPORT SERVICES,PROPERTY,SCION ESTATES,5100330991,"10,704.02",
United Kingdom Atomic Energy Authority,United Kingdom Atomic Energy Authority,06/01/2016,MATERIALS & SPARES,FUSION,SCREWFIX DIRECT LTD,5100330813,33.33,
United Kingdom Atomic Energy Authority,United Kingdom Atomic Energy Authority,11/01/2016,MATERIALS & SPARES,FUSION,SCREWFIX DIRECT LTD,5100331024,42.49,
United Kingdom Atomic Energy Authority,United Kingdom Atomic Energy Authority,11/01/2016,MATERIALS & SPARES,FUSION,SCREWFIX DIRECT LTD,5100331027,57.95,
United Kingdom Atomic Energy Authority,United Kingdom Atomic Energy Authority,18/01/2016,MATERIALS & SPARES,FUSION,SCREWFIX DIRECT LTD,5100331028,189.16,
United Kingdom Atomic Energy Authority,United Kingdom Atomic Energy Authority,11/01/2016,MATERIALS & SPARES,FUSION,SCREWFIX DIRECT LTD,5100331025,206.09,
United Kingdom Atomic Energy Authority,United Kingdom Atomic Energy Authority,06/01/2016,PLANT SPARES,FUSION,Selby Engineering & Lifting Safety,5100330860,200.60,
United Kingdom Atomic Energy Authority,United Kingdom Atomic Energy Authority,13/01/2016,MATERIALS & SPARES,FUSION,seven solutions S.I,5100331402,"2,415.62",
United Kingdom Atomic Energy Authority,United Kingdom Atomic Energy Authority,18/01/2016,MATERIALS & SPARES,PROPERTY,SHL GROUP ,5100331293,392.00,
United Kingdom Atomic Energy Authority,United Kingdom Atomic Energy Authority,18/01/2016,CONSUMABLES,FUSION,Shropshire Stainless & Aluminium Ltd,5100331127,28.90,
United Kingdom Atomic Energy Authority,United Kingdom Atomic Energy Authority,11/01/2016,CONSUMABLES,FUSION,Shropshire Stainless & Aluminium Ltd,5100331129,58.00,
United Kingdom Atomic Energy Authority,United Kingdom Atomic Energy Authority,18/01/2016,CONSUMABLES,FUSION,Shropshire Stainless & Aluminium Ltd,5100331517,59.55,
United Kingdom Atomic Energy Authority,United Kingdom Atomic Energy Authority,11/01/2016,CONSUMABLES,FUSION,Shropshire Stainless & Aluminium Ltd,5100331131,93.50,
United Kingdom Atomic Energy Authority,United Kingdom Atomic Energy Authority,18/01/2016,CONSUMABLES,FUSION,Shropshire Stainless & Aluminium Ltd,5100331128,101.10,
United Kingdom Atomic Energy Authority,United Kingdom Atomic Energy Authority,11/01/2016,CONSUMABLES,FUSION,Shropshire Stainless & Aluminium Ltd,5100331130,572.00,
United Kingdom Atomic Energy Authority,United Kingdom Atomic Energy Authority,18/01/2016,PROFESSIONAL SERVICES,FUSION,SIGMA - ALDRICH CO LTD,5100331310,118.20,
United Kingdom Atomic Energy Authority,United Kingdom Atomic Energy Authority,11/01/2016,PLANT & EQUIPMENT,FUSION,SM GAUGE COMPANY LIMITED,5100331037,118.00,
United Kingdom Atomic Energy Authority,United Kingdom Atomic Energy Authority,06/01/2016,MATERIALS & SPARES,FUSION,SM System UK Ltd,5100330684,"2,460.00",
United Kingdom Atomic Energy Authority,United Kingdom Atomic Energy Authority,18/01/2016,MATERIALS & SPARES,FUSION,SMITHS METAL CENTRES LTD,5100331425,35.00,
United Kingdom Atomic Energy Authority,United Kingdom Atomic Energy Authority,20/01/2016,MATERIALS & SPARES,FUSION,SMITHS METAL CENTRES LTD,5100331576,129.00,
United Kingdom Atomic Energy Authority,United Kingdom Atomic Energy Authority,11/01/2016,PLANT & EQUIPMENT,FUSION,SOCOMEC SICON UPS LTD,5100330855,"10,259.50",
United Kingdom Atomic Energy Authority,United Kingdom Atomic Energy Authority,20/01/2016,UNIVERSITY PLACEMENT,FUSION,Southampton Solent University,5100331637,"4,275.00",
United Kingdom Atomic Energy Authority,United Kingdom Atomic Energy Authority,18/01/2016,MATERIALS & SPARES,FUSION,SOUTHERN CALIBRATION LABORATORY,5100331519,276.76,
United Kingdom Atomic Energy Authority,United Kingdom Atomic Energy Authority,06/01/2016,MATERIALS & SPARES,FUSION,SP SERVICES UK LTD,5100330725,140.86,
United Kingdom Atomic Energy Authority,United Kingdom Atomic Energy Authority,20/01/2016,PLANT SPARES,FUSION,Steinhuder Werzeug ind Apparatebau H. Wolfl ,1900061293, 809.53,
United Kingdom Atomic Energy Authority,United Kingdom Atomic Energy Authority,06/01/2016,CONSUMABLES,FUSION,STRUERS LTD,5100330619,90.00,
United Kingdom Atomic Energy Authority,United Kingdom Atomic Energy Authority,06/01/2016,CONSUMABLES,FUSION,STRUERS LTD,5100330669,628.00,
United Kingdom Atomic Energy Authority,United Kingdom Atomic Energy Authority,06/01/2016,CONSUMABLES,FUSION,STRUERS LTD,5100330809,874.11,
United Kingdom Atomic Energy Authority,United Kingdom Atomic Energy Authority,11/01/2016,VEHICLE REPAIRS,FUSION,SUTTON COURTENAY TYRES,5100331070,16.67,
United Kingdom Atomic Energy Authority,United Kingdom Atomic Energy Authority,11/01/2016,VEHICLE REPAIRS,FUSION,SUTTON COURTENAY TYRES,5100331080,71.54,
United Kingdom Atomic Energy Authority,United Kingdom Atomic Energy Authority,11/01/2016,PROFESSIONAL SERVICES,FUSION,SWAGELOK LONDON,5100330986,"1,372.09",
United Kingdom Atomic Energy Authority,United Kingdom Atomic Energy Authority,11/01/2016,PROFESSIONAL SERVICES,FUSION,SWAGELOK LONDON,5100330984,"1,773.19",
United Kingdom Atomic Energy Authority,United Kingdom Atomic Energy Authority,18/01/2016,PROFESSIONAL SERVICES,FUSION,SWAGELOK LONDON,5100331342,"5,287.11",
United Kingdom Atomic Energy Authority,United Kingdom Atomic Energy Authority,20/01/2016,PLANT & EQUIPMENT,FUSION,TACKLESTORE LTD,5100331575,113.67,
United Kingdom Atomic Energy Authority,United Kingdom Atomic Energy Authority,11/01/2016,MATERIALS & SPARES,FUSION,TAMO LTD,5100331017,"3,113.95",
United Kingdom Atomic Energy Authority,United Kingdom Atomic Energy Authority,18/01/2016,PLANT & EQUIPMENT,FUSION,TC LTD,5100331422,500.30,
United Kingdom Atomic Energy Authority,United Kingdom Atomic Energy Authority,18/01/2016,MATERIALS & SPARES,FUSION,TDK-LAMBDA UK LTD,5100331473,947.05,
United Kingdom Atomic Energy Authority,United Kingdom Atomic Energy Authority,13/01/2016,HIRED STAFF,FUSION,TESSELLA PLC,5100331121,"3,748.10",
United Kingdom Atomic Energy Authority,United Kingdom Atomic Energy Authority,11/01/2016,HIRED STAFF,FUSION,TESSELLA PLC,5100331122,"9,331.96",
United Kingdom Atomic Energy Authority,United Kingdom Atomic Energy Authority,06/01/2016,PLANT & EQUIPMENT,FUSION,THAMES VALLEY SAW SERVICE LTD,5100330853,60.00,
United Kingdom Atomic Energy Authority,United Kingdom Atomic Energy Authority,06/01/2016,PLANT & EQUIPMENT,FUSION,THAMES VALLEY SAW SERVICE LTD,5100330852,499.60,
United Kingdom Atomic Energy Authority,United Kingdom Atomic Energy Authority,06/01/2016,PLANT & EQUIPMENT,FUSION,THAMES VALLEY SAW SERVICE LTD,5100330851,874.30,
United Kingdom Atomic Energy Authority,United Kingdom Atomic Energy Authority,18/01/2016,UTILITIES/WATER,PROPERTY,THAMES WATER UTILITIES,5100331413,"5,439.11",
United Kingdom Atomic Energy Authority,United Kingdom Atomic Energy Authority,18/01/2016,UTILITIES/WATER,PROPERTY,THAMES WATER UTILITIES,5100331410,"7,486.46",
United Kingdom Atomic Energy Authority,United Kingdom Atomic Energy Authority,11/01/2016,BOOKS & PUBLICATIONS,SUPPORT SERVICES,THE BRITISH LIBRARY,5100331082,33.75,
United Kingdom Atomic Energy Authority,United Kingdom Atomic Energy Authority,20/01/2016,PROFESSIONAL SERVICES,PROPERTY,THE HARWELL SCIENCE & INNOVATION CA,5100331609,"-6,822.60",
United Kingdom Atomic Energy Authority,United Kingdom Atomic Energy Authority,20/01/2016,PROFESSIONAL SERVICES,PROPERTY,THE HARWELL SCIENCE & INNOVATION CA,5100331608,"6,822.60",
United Kingdom Atomic Energy Authority,United Kingdom Atomic Energy Authority,06/01/2016,PROFESSIONAL SERVICES,FUSION,THE SCIENTIFIC INSTRUMENT CENTRE LT,5100330789,234.13,
United Kingdom Atomic Energy Authority,United Kingdom Atomic Energy Authority,11/01/2016,MATERIALS & SPARES,FUSION,The Valve and Actuator Ltd,5100330831,95.10,
United Kingdom Atomic Energy Authority,United Kingdom Atomic Energy Authority,20/01/2016,MATERIALS & SPARES,FUSION,THERMO ELECTRON MANNUFACTURING LTD,5100331170,"2,035.73",
United Kingdom Atomic Energy Authority,United Kingdom Atomic Energy Authority,18/01/2016,MATERIALS & SPARES,FUSION,THORLABS LTD,5100331520,260.93,
United Kingdom Atomic Energy Authority,United Kingdom Atomic Energy Authority,18/01/2016,MATERIALS & SPARES,FUSION,TR FASTENINGS LTD,5100331453,148.34,
United Kingdom Atomic Energy Authority,United Kingdom Atomic Energy Authority,13/01/2016,HIRED STAFF,FUSION,TRASYS,5100331012,"6,392.85",
United Kingdom Atomic Energy Authority,United Kingdom Atomic Energy Authority,13/01/2016,HIRED STAFF,FUSION,TRASYS,5100331011,"7,652.55",
United Kingdom Atomic Energy Authority,United Kingdom Atomic Energy Authority,20/01/2016,HIRED STAFF,FUSION,TRASYS,5100331013,"8,452.50",
United Kingdom Atomic Energy Authority,United Kingdom Atomic Energy Authority,06/01/2016,SECURITY & EMERGENCY,PROPERTY,TRINITY PROTETION SYSTEMS,5100330790,-56.25,
United Kingdom Atomic Energy Authority,United Kingdom Atomic Energy Authority,18/01/2016,SECURITY & EMERGENCY,PROPERTY,TRINITY PROTETION SYSTEMS,5100331210,-9.59,
United Kingdom Atomic Energy Authority,United Kingdom Atomic Energy Authority,20/01/2016,SECURITY & EMERGENCY,PROPERTY,TRINITY PROTETION SYSTEMS,5100331548,-9.59,
United Kingdom Atomic Energy Authority,United Kingdom Atomic Energy Authority,18/01/2016,SECURITY & EMERGENCY,PROPERTY,TRINITY PROTETION SYSTEMS,5100331545,9.59,
United Kingdom Atomic Energy Authority,United Kingdom Atomic Energy Authority,06/01/2016,SECURITY & EMERGENCY,PROPERTY,TRINITY PROTETION SYSTEMS,5100330829,112.50,
United Kingdom Atomic Energy Authority,United Kingdom Atomic Energy Authority,18/01/2016,SECURITY & EMERGENCY,FUSION,TRINITY PROTETION SYSTEMS,5100331512,163.18,
United Kingdom Atomic Energy Authority,United Kingdom Atomic Energy Authority,06/01/2016,SECURITY & EMERGENCY,PROPERTY,TRINITY PROTETION SYSTEMS,5100330018,168.75,
United Kingdom Atomic Energy Authority,United Kingdom Atomic Energy Authority,18/01/2016,SECURITY & EMERGENCY,FUSION,TRINITY PROTETION SYSTEMS,5100331461,178.21,
United Kingdom Atomic Energy Authority,United Kingdom Atomic Energy Authority,20/01/2016,SECURITY & EMERGENCY,PROPERTY,TRINITY PROTETION SYSTEMS,5100329654,234.59,
United Kingdom Atomic Energy Authority,United Kingdom Atomic Energy Authority,18/01/2016,SECURITY & EMERGENCY,FUSION,TRINITY PROTETION SYSTEMS,5100331513,454.90,
United Kingdom Atomic Energy Authority,United Kingdom Atomic Energy Authority,18/01/2016,SECURITY & EMERGENCY,FUSION,TRINITY PROTETION SYSTEMS,5100331460,"1,291.67",
United Kingdom Atomic Energy Authority,United Kingdom Atomic Energy Authority,06/01/2016,CONSUMABLES,FUSION,TUNGSTEN ALLOYS,5100330595,715.00,
United Kingdom Atomic Energy Authority,United Kingdom Atomic Energy Authority,13/01/2016,MATERIALS & SPARES,FUSION,TVH,5100330608,-319.00,
United Kingdom Atomic Energy Authority,United Kingdom Atomic Energy Authority,11/01/2016,MATERIALS & SPARES,FUSION,TVH,5100330905,26.00,
United Kingdom Atomic Energy Authority,United Kingdom Atomic Energy Authority,11/01/2016,MATERIALS & SPARES,FUSION,TVH,5100330901,28.60,
United Kingdom Atomic Energy Authority,United Kingdom Atomic Energy Authority,11/01/2016,MATERIALS & SPARES,FUSION,TVH,5100330899,38.10,
United Kingdom Atomic Energy Authority,United Kingdom Atomic Energy Authority,11/01/2016,MATERIALS & SPARES,FUSION,TVH,5100330904,91.70,
United Kingdom Atomic Energy Authority,United Kingdom Atomic Energy Authority,13/01/2016,MATERIALS & SPARES,FUSION,TVH,5100329588,319.00,
United Kingdom Atomic Energy Authority,United Kingdom Atomic Energy Authority,11/01/2016,MATERIALS & SPARES,FUSION,TVH,5100330903,403.15,
United Kingdom Atomic Energy Authority,United Kingdom Atomic Energy Authority,18/01/2016,MATERIALS & SPARES,FUSION,TVH,5100331372,644.95,
United Kingdom Atomic Energy Authority,United Kingdom Atomic Energy Authority,07/01/2016,REGULATORY PAYMENTS,FUSION,UK Umbrella Service Ltd,1900061272, 44.00,
United Kingdom Atomic Energy Authority,United Kingdom Atomic Energy Authority,11/01/2016,MATERIALS & SPARES,FUSION,UNDERWOODS ELECTRICAL DISTRIBUTORS,5100330978,"1,602.11",
United Kingdom Atomic Energy Authority,United Kingdom Atomic Energy Authority,18/01/2016,MATERIALS & SPARES,FUSION,UNDERWOODS ELECTRICAL DISTRIBUTORS,5100331428,"1,920.50",
United Kingdom Atomic Energy Authority,United Kingdom Atomic Energy Authority,11/01/2016,MATERIALS & SPARES,FUSION,UNDERWOODS ELECTRICAL DISTRIBUTORS,5100330977,"7,294.40",
United Kingdom Atomic Energy Authority,United Kingdom Atomic Energy Authority,04/01/2016,UNIVERSITY PLACEMENT,FUSION,UNIVERSITY OF LIVERPOOL,5100330900,"-15,554.30",
United Kingdom Atomic Energy Authority,United Kingdom Atomic Energy Authority,11/01/2016,UNIVERSITY PLACEMENT,FUSION,UNIVERSITY OF LIVERPOOL,5100330808,"5,086.24",
United Kingdom Atomic Energy Authority,United Kingdom Atomic Energy Authority,04/01/2016,UNIVERSITY PLACEMENT,FUSION,UNIVERSITY OF LIVERPOOL,5100330902,"15,554.30",
United Kingdom Atomic Energy Authority,United Kingdom Atomic Energy Authority,13/01/2016,UNIVERSITY PLACEMENT,FUSION,UNIVERSITY OF MANCHESTER,5100331138,"1,645.71",
United Kingdom Atomic Energy Authority,United Kingdom Atomic Energy Authority,11/01/2016,UNIVERSITY PLACEMENT,FUSION,UNIVERSITY OF OXFORD,5100325495,"4,228.22",
United Kingdom Atomic Energy Authority,United Kingdom Atomic Energy Authority,18/01/2016,TRAINING COSTS,FUSION,UNIVERSITY OF THE WEST OF ENGLAND,5100331401,"5,625.00",
United Kingdom Atomic Energy Authority,United Kingdom Atomic Energy Authority,18/01/2016,UNIVERSITY PLACEMENT,FUSION,UNIVERSITY OF YORK,5100331495,-188.65,
United Kingdom Atomic Energy Authority,United Kingdom Atomic Energy Authority,18/01/2016,UNIVERSITY PLACEMENT,FUSION,UNIVERSITY OF YORK,5100331255,118.65,
United Kingdom Atomic Energy Authority,United Kingdom Atomic Energy Authority,11/01/2016,UNIVERSITY PLACEMENT,FUSION,UNIVERSITY OF YORK,5100331100,"1,049.51",
United Kingdom Atomic Energy Authority,United Kingdom Atomic Energy Authority,11/01/2016,UNIVERSITY PLACEMENT,FUSION,UNIVERSITY OF YORK,5100331101,"1,062.61",
United Kingdom Atomic Energy Authority,United Kingdom Atomic Energy Authority,11/01/2016,UNIVERSITY PLACEMENT,FUSION,UNIVERSITY OF YORK,5100331104,"1,680.59",
United Kingdom Atomic Energy Authority,United Kingdom Atomic Energy Authority,11/01/2016,UNIVERSITY PLACEMENT,FUSION,UNIVERSITY OF YORK,5100331103,"1,739.32",
United Kingdom Atomic Energy Authority,United Kingdom Atomic Energy Authority,18/01/2016,UNIVERSITY PLACEMENT,FUSION,UNIVERSITY OF YORK,5100331098,"3,406.68",
United Kingdom Atomic Energy Authority,United Kingdom Atomic Energy Authority,20/01/2016,UNIVERSITY PLACEMENT,FUSION,UNIVERSITY OF YORK,5100331102,"5,947.19",
United Kingdom Atomic Energy Authority,United Kingdom Atomic Energy Authority,11/01/2016,UNIVERSITY PLACEMENT,FUSION,UNIVERSITY OF YORK,5100331099,"15,017.00",
United Kingdom Atomic Energy Authority,United Kingdom Atomic Energy Authority,11/01/2016,UNIVERSITY PLACEMENT,FUSION,UNIVERSITY OF YORK,5100330758,"93,176.60",
United Kingdom Atomic Energy Authority,United Kingdom Atomic Energy Authority,18/01/2016,PROFESSIONAL SERVICES,FUSION,Vanix LLP,5100331194,"6,950.00",
United Kingdom Atomic Energy Authority,United Kingdom Atomic Energy Authority,18/01/2016,PROFESSIONAL SERVICES,FUSION,Vanix LLP,5100331191,"9,799.00",
United Kingdom Atomic Energy Authority,United Kingdom Atomic Energy Authority,11/01/2016,CONSUMABLES,SUPPORT SERVICES,VenusWorks Ltd,5100331068,"1,750.00",
United Kingdom Atomic Energy Authority,United Kingdom Atomic Energy Authority,11/01/2016,IT EQUIPMENT NON CAPITAL,FUSION,VIGLEN LIMITED,5100330912,"2,407.50",
United Kingdom Atomic Energy Authority,United Kingdom Atomic Energy Authority,11/01/2016,IT EQUIPMENT NON CAPITAL,FUSION,VIGLEN LIMITED,5100330914,"14,732.76",
United Kingdom Atomic Energy Authority,United Kingdom Atomic Energy Authority,11/01/2016,IT EQUIPMENT NON CAPITAL,FUSION,VIGLEN LIMITED,5100331029,"176,045.95",
United Kingdom Atomic Energy Authority,United Kingdom Atomic Energy Authority,06/01/2016,PLANT & EQUIPMENT,FUSION,VIRAC MARKETING LTD,5100330872,101.40,
United Kingdom Atomic Energy Authority,United Kingdom Atomic Energy Authority,20/01/2016,MATERIALS & SPARES,FUSION,WELDLOGIC EUROPE LTD,5100331596,451.35,
United Kingdom Atomic Energy Authority,United Kingdom Atomic Energy Authority,20/01/2016,CONFERENCES,FUSION,WHITE HART HOTEL,5100331626,85.00,
United Kingdom Atomic Energy Authority,United Kingdom Atomic Energy Authority,11/01/2016,PROFESSIONAL SERVICES,FUSION,Willmott Dixon Construction Ltd,5100331124,"602,099.00",
United Kingdom Atomic Energy Authority,United Kingdom Atomic Energy Authority,11/01/2016,MATERIALS & SPARES,FUSION,Zollern GMBH & Co KG,5100331305,"-13,410.45",
United Kingdom Atomic Energy Authority,United Kingdom Atomic Energy Authority,06/01/2016,MATERIALS & SPARES,FUSION,Zollern GMBH & Co KG,5100330136,"13,410.45",
United Kingdom Atomic Energy Authority,United Kingdom Atomic Energy Authority,11/01/2016,MATERIALS & SPARES,FUSION,Zollern GMBH & Co KG,5100331307,"13,410.45",
